﻿Department,Entity,Date of Payment,Expense Type,Expense Area,Supplier,Transaction Number, Amount ,Description,Supplier Post Code,Supplier Type
"Department for Business, Energy and Industrial Strategy","Department for Business, Energy and Industrial Strategy",05/01/2021,Professional Subscriptions,Bi - Business Engagement - Bi - Business Engagement,"Personal Expense, Name Withheld",373966,7.49,Mf Devolved Admin-professional Subscriptions,,EMPLOYEE
"Department for Business, Energy and Industrial Strategy","Department for Business, Energy and Industrial Strategy",28/01/2021,Travel Booking,Bi - Business Engagement - Bi - Business Engagement,Babl Global Ltd,377179,-10200,Mf Devolved Admin-travel Booking,EC4Y 1AE,VENDOR
"Department for Business, Energy and Industrial Strategy","Department for Business, Energy and Industrial Strategy",28/01/2021,Travel Booking,Bi - Business Engagement - Bi - Business Engagement,Babl Global Ltd,377180,5100,Mf Devolved Admin-travel Booking,EC4Y 1AE,VENDOR
"Department for Business, Energy and Industrial Strategy","Department for Business, Energy and Industrial Strategy",25/01/2021,Learning And Dev - Cs Skills,Bi - Business Engagement - Bi - Business Engagement,Belbin Associates Ltd,377182,595,Mf Devolved Admin-learning And Dev - Cs Skills,CB23 7EN,VENDOR
"Department for Business, Energy and Industrial Strategy","Department for Business, Energy and Industrial Strategy",28/01/2021,Travel Booking,Bi - Business Engagement - Bi - Business Engagement,Babl Global Ltd,377718,10200,Mf Devolved Admin-travel Booking,EC4Y 1AE,VENDOR
"Department for Business, Energy and Industrial Strategy","Department for Business, Energy and Industrial Strategy",21/01/2021,Purchase Of Intangible Software,Bi - Business Investment Director - Bi - Business Investment Director,Faculty Science Ltd,376826,71388,Mf Devolved Admin-purchase Of Intangible Software,W1G 9XS,VENDOR
"Department for Business, Energy and Industrial Strategy","Department for Business, Energy and Industrial Strategy",06/01/2021,Stationery,Bi - Corporate Finance Advisory And Investor Relations - Bi - Corporate Finance Advisory And Investor Relations,"Personal Expense, Name Withheld",374245,255.56,Mf Devolved Admin-stationery,,EMPLOYEE
"Department for Business, Energy and Industrial Strategy","Department for Business, Energy and Industrial Strategy",12/01/2021,Professional Subscriptions,Bi - Corporate Finance Advisory And Investor Relations - Bi - Corporate Finance Advisory And Investor Relations,"Personal Expense, Name Withheld",375101,395,Mf Devolved Admin-professional Subscriptions,,EMPLOYEE
"Department for Business, Energy and Industrial Strategy","Department for Business, Energy and Industrial Strategy",20/01/2021,Professional Subscriptions,Bi - Corporate Finance Advisory And Investor Relations - Bi - Corporate Finance Advisory And Investor Relations,"Personal Expense, Name Withheld",376631,395,Mf Devolved Admin-professional Subscriptions,,EMPLOYEE
"Department for Business, Energy and Industrial Strategy","Department for Business, Energy and Industrial Strategy",22/01/2021,Exp - Miscellaneous Expenditure - Iexpenses,Bi - Corporate Finance Advisory And Investor Relations - Bi - Corporate Finance Advisory And Investor Relations,"Personal Expense, Name Withheld",376929,199.97,Mf Devolved Admin-exp - Miscellaneous Expenditure - Iexpenses,,EMPLOYEE
"Department for Business, Energy and Industrial Strategy","Department for Business, Energy and Industrial Strategy",06/01/2021,External Legal Advice And Service,Bi - Economic Shocks - Bi - Economic Shocks,Dla Piper Uk Llp,369534,5783.36,South Tees Site Company-external Legal Advice And Service,S1 2JX,VENDOR
"Department for Business, Energy and Industrial Strategy","Department for Business, Energy and Industrial Strategy",04/01/2021,Capital Grants To Local Government,Bi - Economic Shocks - Bi - Economic Shocks,Tees Valley Combined Authority,371946,3652000,South Tees Site Company-capital Grants To Local Government,TS17 6QY,GRANT
"Department for Business, Energy and Industrial Strategy","Department for Business, Energy and Industrial Strategy",04/01/2021,Current Grants To Local Government,Bi - Economic Shocks - Bi - Economic Shocks,Tees Valley Combined Authority,371946,4536452,South Tees Site Company-current Grants To Local Government,TS17 6QY,GRANT
"Department for Business, Energy and Industrial Strategy","Department for Business, Energy and Industrial Strategy",04/01/2021,Capital Grants To Private Sector - Companies,Bi Regional Growth Fund - Bi Regional Growth Fund,Siemens Mobility Ltd,373200,319174.76,Exceptional Regional Growth Fund (Ergf)-Capital Grants To Private Sector - Companies,NW1 1AD,GRANT
"Department for Business, Energy and Industrial Strategy","Department for Business, Energy and Industrial Strategy",06/01/2021,Professional Subscriptions,Bi Regional Growth Fund - Bi Regional Growth Fund,"Personal Expense, Name Withheld",374268,395,Mf Devolved Admin-professional Subscriptions,,EMPLOYEE
"Department for Business, Energy and Industrial Strategy","Department for Business, Energy and Industrial Strategy",11/01/2021,On-line Databases,Bi Regional Growth Fund - Bi Regional Growth Fund,Dun & Bradstreet Ltd,374599,96,Mf Devolved Admin-on-line Databases,SL7 1AJ,VENDOR
"Department for Business, Energy and Industrial Strategy","Department for Business, Energy and Industrial Strategy",11/01/2021,Additions  - Cost - Information Technology,Bi Regional Growth Fund - Bi Regional Growth Fund,Jeremy Benn Associates Ltd,374693,17609.38,Exceptional Regional Growth Fund (Ergf)-Additions  - Cost - Information Technology,BD23 3FD,VENDOR
"Department for Business, Energy and Industrial Strategy","Department for Business, Energy and Industrial Strategy",13/01/2021,Information Facilities,Bi Regional Growth Fund - Bi Regional Growth Fund,Hm Land Registry,375793,6,Ex Rda Portfolio Management Office-information Facilities,CR0 2AQ,WGA ONLY
"Department for Business, Energy and Industrial Strategy","Department for Business, Energy and Industrial Strategy",06/01/2021,Stationery,Business Sectors - Advanced Manufacturing,"Personal Expense, Name Withheld",374144,78,Mf Devolved Admin-stationery,,EMPLOYEE
"Department for Business, Energy and Industrial Strategy","Department for Business, Energy and Industrial Strategy",12/01/2021,International Subscriptions,Business Sectors - Advanced Manufacturing,Ihs Global Ltd,375062,95880,Ams:Research-international Subscriptions,RG12 8FZ,VENDOR
"Department for Business, Energy and Industrial Strategy","Department for Business, Energy and Industrial Strategy",14/01/2021,Economic Consultancy & Research,Business Sectors - Advanced Manufacturing,Whythawk Ltd,375901,780,Ams:Research-economic Consultancy & Research,SO14 2DH,VENDOR
"Department for Business, Energy and Industrial Strategy","Department for Business, Energy and Industrial Strategy",26/01/2021,Stationery,Business Sectors - Advanced Manufacturing,"Personal Expense, Name Withheld",377223,52,Mf Devolved Admin-stationery,,EMPLOYEE
"Department for Business, Energy and Industrial Strategy","Department for Business, Energy and Industrial Strategy",27/01/2021,Publications,Business Sectors - Advanced Manufacturing,Financial Times Ltd (The),377115,-5080,Mf Devolved Admin-publications,EC4M 9BT,VENDOR
"Department for Business, Energy and Industrial Strategy","Department for Business, Energy and Industrial Strategy",27/01/2021,Publications,Business Sectors - Advanced Manufacturing,Financial Times Ltd (The),377115,10160,Mf Devolved Admin-publications,EC4M 9BT,VENDOR
"Department for Business, Energy and Industrial Strategy","Department for Business, Energy and Industrial Strategy",06/01/2021,Publications,Business Sectors - Advanced Manufacturing,Jones Yarrell Leadenhall (Menzies Distribution Ltd),374089,8.34,Mf Devolved Admin-publications,EH12 9DJ,VENDOR
"Department for Business, Energy and Industrial Strategy","Department for Business, Energy and Industrial Strategy",19/01/2021,Misc. Non Procurement Spend,Business Sectors - Advanced Manufacturing,Winchester Consulting Limited,376135,419040,R&C Sponsorship-misc. Non Procurement Spend,SO24 0NL,GRANT
"Department for Business, Energy and Industrial Strategy","Department for Business, Energy and Industrial Strategy",06/01/2021,Current Grants To Private Sector - Npish,Business Sectors - Advanced Manufacturing,Government Legal Department,374090,5400,Automotive:Advanced Propulsion Centre-current Grants To Private Sector - Npish,SW1H 9GL,VENDOR
"Department for Business, Energy and Industrial Strategy","Department for Business, Energy and Industrial Strategy",14/01/2021,R & D Current Grants To Private Sector - Npish,Business Sectors - Advanced Manufacturing,Advanced Propulsion Centre Uk Ltd,375946,8526,Automotive:Advanced Propulsion Centre-r & D Current Grants To Private Sector - Npish,CV4 7AL,GRANT
"Department for Business, Energy and Industrial Strategy","Department for Business, Energy and Industrial Strategy",14/01/2021,R & D Current Grants To Private Sector - Npish,Business Sectors - Advanced Manufacturing,Advanced Propulsion Centre Uk Ltd,375947,16447,Automotive:Advanced Propulsion Centre-r & D Current Grants To Private Sector - Npish,CV4 7AL,GRANT
"Department for Business, Energy and Industrial Strategy","Department for Business, Energy and Industrial Strategy",14/01/2021,R & D Current Grants To Private Sector - Npish,Business Sectors - Advanced Manufacturing,Advanced Propulsion Centre Uk Ltd,375948,14152,Automotive:Advanced Propulsion Centre-r & D Current Grants To Private Sector - Npish,CV4 7AL,GRANT
"Department for Business, Energy and Industrial Strategy","Department for Business, Energy and Industrial Strategy",14/01/2021,R & D Current Grants To Private Sector - Npish,Business Sectors - Advanced Manufacturing,Advanced Propulsion Centre Uk Ltd,375949,2500,Automotive:Advanced Propulsion Centre-r & D Current Grants To Private Sector - Npish,CV4 7AL,GRANT
"Department for Business, Energy and Industrial Strategy","Department for Business, Energy and Industrial Strategy",19/01/2021,R & D Current Grants To Private Sector - Npish,Business Sectors - Advanced Manufacturing,Advanced Propulsion Centre Uk Ltd,376447,70920,Automotive: Transformation Fund-r & D Current Grants To Private Sector - Npish,CV4 7AL,GRANT
"Department for Business, Energy and Industrial Strategy","Department for Business, Energy and Industrial Strategy",19/01/2021,R & D Current Grants To Private Sector - Npish,Business Sectors - Advanced Manufacturing,Advanced Propulsion Centre Uk Ltd,376447,106472,Automotive:Advanced Propulsion Centre-r & D Current Grants To Private Sector - Npish,CV4 7AL,GRANT
"Department for Business, Energy and Industrial Strategy","Department for Business, Energy and Industrial Strategy",21/01/2021,R & D Current Grants To Private Sector - Npish,Business Sectors - Advanced Manufacturing,Advanced Propulsion Centre Uk Ltd,376747,7226.19,Automotive:Advanced Propulsion Centre-r & D Current Grants To Private Sector - Npish,CV4 7AL,GRANT
"Department for Business, Energy and Industrial Strategy","Department for Business, Energy and Industrial Strategy",21/01/2021,R & D Current Grants To Private Sector - Npish,Business Sectors - Advanced Manufacturing,Advanced Propulsion Centre Uk Ltd,376748,43248.92,Automotive:Advanced Propulsion Centre-r & D Current Grants To Private Sector - Npish,CV4 7AL,GRANT
"Department for Business, Energy and Industrial Strategy","Department for Business, Energy and Industrial Strategy",28/01/2021,R & D Current Grants To Private Sector - Npish,Business Sectors - Advanced Manufacturing,Advanced Propulsion Centre Uk Ltd,377250,352655.55,Automotive:Advanced Propulsion Centre-r & D Current Grants To Private Sector - Npish,CV4 7AL,GRANT
"Department for Business, Energy and Industrial Strategy","Department for Business, Energy and Industrial Strategy",28/01/2021,R & D Current Grants To Private Sector - Npish,Business Sectors - Advanced Manufacturing,Advanced Propulsion Centre Uk Ltd,377251,470309.01,Automotive:Advanced Propulsion Centre-r & D Current Grants To Private Sector - Npish,CV4 7AL,GRANT
"Department for Business, Energy and Industrial Strategy","Department for Business, Energy and Industrial Strategy",28/01/2021,R & D Current Grants To Private Sector - Npish,Business Sectors - Advanced Manufacturing,Advanced Propulsion Centre Uk Ltd,377253,479476.82,Automotive:Advanced Propulsion Centre-r & D Current Grants To Private Sector - Npish,CV4 7AL,GRANT
"Department for Business, Energy and Industrial Strategy","Department for Business, Energy and Industrial Strategy",29/01/2021,R & D Current Grants To Private Sector - Npish,Business Sectors - Advanced Manufacturing,Advanced Propulsion Centre Uk Ltd,377629,487640.06,Automotive:Advanced Propulsion Centre-r & D Current Grants To Private Sector - Npish,CV4 7AL,GRANT
"Department for Business, Energy and Industrial Strategy","Department for Business, Energy and Industrial Strategy",06/01/2021,R & D Current Grants To Private Sector - Npish,Business Sectors - Advanced Manufacturing,Aerospace Technology Institute,374204,96070,Aerospace Technology Institute-r & D Current Grants To Private Sector - Npish,MK43 0TR,GRANT
"Department for Business, Energy and Industrial Strategy","Department for Business, Energy and Industrial Strategy",20/01/2021,External Legal Advice And Service,Business Sectors - Advanced Manufacturing,Clifford Chance Llp,376134,-31892.51,Ali: Aerospace Market Analysis And Private Sector Advice-external Legal Advice And Service,E14 5JJ,VENDOR
"Department for Business, Energy and Industrial Strategy","Department for Business, Energy and Industrial Strategy",20/01/2021,External Legal Advice And Service,Business Sectors - Advanced Manufacturing,Clifford Chance Llp,376134,1,Ali: Aerospace Market Analysis And Private Sector Advice-external Legal Advice And Service,E14 5JJ,VENDOR
"Department for Business, Energy and Industrial Strategy","Department for Business, Energy and Industrial Strategy",20/01/2021,External Legal Advice And Service,Business Sectors - Advanced Manufacturing,Clifford Chance Llp,376134,63783.02,Ali: Aerospace Market Analysis And Private Sector Advice-external Legal Advice And Service,E14 5JJ,VENDOR
"Department for Business, Energy and Industrial Strategy","Department for Business, Energy and Industrial Strategy",21/01/2021,Current Grants To Private Sector - Npish,Business Sectors - Advanced Manufacturing,Ads Group Ltd,376369,944056.6,Defence Solution Centre-current Grants To Private Sector - Npish,GU14 6FD,VENDOR
"Department for Business, Energy and Industrial Strategy","Department for Business, Energy and Industrial Strategy",19/01/2021,R & D Current Grants To Private Sector - Npish,Business Sectors - Advanced Manufacturing,Zenzic-uk Ltd,376278,32388.3,Automotive : C-cav Test Bed-r & D Current Grants To Private Sector - Npish,CV4 7AL,VENDOR
"Department for Business, Energy and Industrial Strategy","Department for Business, Energy and Industrial Strategy",19/01/2021,R & D Current Grants To Private Sector - Npish,Business Sectors - Advanced Manufacturing,Zenzic-uk Ltd,376279,45095.5,Mf Devolved Admin-r & D Current Grants To Private Sector - Npish,CV4 7AL,VENDOR
"Department for Business, Energy and Industrial Strategy","Department for Business, Energy and Industrial Strategy",19/01/2021,R & D Current Grants To Private Sector - Npish,Business Sectors - Advanced Manufacturing,Zenzic-uk Ltd,376280,36462.5,Automotive: Ccav The Meridian Hub-r & D Current Grants To Private Sector - Npish,CV4 7AL,VENDOR
"Department for Business, Energy and Industrial Strategy","Department for Business, Energy and Industrial Strategy",19/01/2021,Hire Of Agency Staff,Business Sectors - Business Intelligence And Readiness,Allen Lane Ltd,363858,1815.6,Eu Exit Core Beis Staff: Eu Exit Programme Adm-hire Of Agency Staff,SW1Y 6RJ,VENDOR
"Department for Business, Energy and Industrial Strategy","Department for Business, Energy and Industrial Strategy",19/01/2021,Hire Of Agency Staff,Business Sectors - Business Intelligence And Readiness,Allen Lane Ltd,366255,1815.6,Eu Exit Core Beis Staff: Eu Exit Programme Adm-hire Of Agency Staff,SW1Y 6RJ,VENDOR
"Department for Business, Energy and Industrial Strategy","Department for Business, Energy and Industrial Strategy",04/01/2021,Postage,Business Sectors - Business Intelligence And Readiness,Allied Publicity Services (Manchester) Ltd T/A Aps Group,371570,1771109.2,Eu Exit:Busines Readiness-postage,SK3 0ZP,VENDOR
"Department for Business, Energy and Industrial Strategy","Department for Business, Energy and Industrial Strategy",05/01/2021,Other Ict Costs,Business Sectors - Business Intelligence And Readiness,The Workcast Corporation Ltd,373257,120,Eu Exit:Busines Readiness-other Ict Costs,DH4 5RA,VENDOR
"Department for Business, Energy and Industrial Strategy","Department for Business, Energy and Industrial Strategy",05/01/2021,Other Ict Costs,Business Sectors - Business Intelligence And Readiness,The Workcast Corporation Ltd,373264,480,Eu Exit:Busines Readiness-other Ict Costs,DH4 5RA,VENDOR
"Department for Business, Energy and Industrial Strategy","Department for Business, Energy and Industrial Strategy",20/01/2021,Marketing And Media,Business Sectors - Business Intelligence And Readiness,Kantar Uk Ltd,373822,6666.67,Eu Exit:Busines Readiness-marketing And Media,W5 1UA,VENDOR
"Department for Business, Energy and Industrial Strategy","Department for Business, Energy and Industrial Strategy",08/01/2021,Other Ict Costs,Business Sectors - Business Intelligence And Readiness,The Workcast Corporation Ltd,374506,960,Eu Exit Core Beis Staff: Eu Exit Programme Adm-other Ict Costs,DH4 5RA,VENDOR
"Department for Business, Energy and Industrial Strategy","Department for Business, Energy and Industrial Strategy",08/01/2021,Exp - Miscellaneous Expenditure - Iexpenses,Business Sectors - Business Intelligence And Readiness,"Personal Expense, Name Withheld",374550,216.97,Eu Exit Core Beis Staff: Eu Exit Programme Adm-exp - Miscellaneous Expenditure - Iexpenses,,EMPLOYEE
"Department for Business, Energy and Industrial Strategy","Department for Business, Energy and Industrial Strategy",19/01/2021,Marketing And Media,Business Sectors - Business Intelligence And Readiness,Kantar Uk Ltd,374568,6666.67,Eu Exit:Busines Readiness-marketing And Media,W5 1UA,VENDOR
"Department for Business, Energy and Industrial Strategy","Department for Business, Energy and Industrial Strategy",25/01/2021,Travel Booking,Business Sectors - Business Intelligence And Readiness,The Workcast Corporation Ltd,376978,1500,Eu Exit Core Beis Staff: Eu Exit Programme Adm-travel Booking,DH4 5RA,VENDOR
"Department for Business, Energy and Industrial Strategy","Department for Business, Energy and Industrial Strategy",19/01/2021,Hire Of Agency Staff,Business Sectors - Business Intelligence And Readiness,Allen Lane Ltd,376553,7210.8,Eu Exit Core Beis Staff: Eu Exit Programme Adm-hire Of Agency Staff,SW1Y 5JH,VENDOR
"Department for Business, Energy and Industrial Strategy","Department for Business, Energy and Industrial Strategy",20/01/2021,Hire Of Agency Staff,Business Sectors - Business Intelligence And Readiness,Allen Lane Ltd,376591,7210.8,Eu Exit Core Beis Staff: Eu Exit Programme Adm-hire Of Agency Staff,BN11 2BW,VENDOR
"Department for Business, Energy and Industrial Strategy","Department for Business, Energy and Industrial Strategy",20/01/2021,Hire Of Agency Staff,Business Sectors - Business Intelligence And Readiness,Allen Lane Ltd,376592,2403.6,Eu Exit Core Beis Staff: Eu Exit Programme Adm-hire Of Agency Staff,BN11 2BW,VENDOR
"Department for Business, Energy and Industrial Strategy","Department for Business, Energy and Industrial Strategy",29/01/2021,Stationery,Business Sectors - Business Intelligence And Readiness,"Personal Expense, Name Withheld",377830,7.98,Mf Devolved Admin-stationery,,EMPLOYEE
"Department for Business, Energy and Industrial Strategy","Department for Business, Energy and Industrial Strategy",20/01/2021,Stationery,Business Sectors - Business Intelligence And Readiness,"Personal Expense, Name Withheld",376637,69.99,Eu Exit Core Beis Staff: Eu Exit Programme Adm-stationery,,EMPLOYEE
"Department for Business, Energy and Industrial Strategy","Department for Business, Energy and Industrial Strategy",27/01/2021,Stationery,Business Sectors - Business Intelligence And Readiness,"Personal Expense, Name Withheld",377450,23.99,Eu Exit Core Beis Staff: Eu Exit Programme Adm-stationery,,EMPLOYEE
"Department for Business, Energy and Industrial Strategy","Department for Business, Energy and Industrial Strategy",13/01/2021,Consultancy Expenditure,Business Sectors - Business Sectors Dg Office,Ernst And Young Llp,375366,25000,Mf Devolved Admin-consultancy Expenditure,SE1 2AF,VENDOR
"Department for Business, Energy and Industrial Strategy","Department for Business, Energy and Industrial Strategy",05/01/2021,Stationery,Business Sectors - Cities And Local Growth,"Personal Expense, Name Withheld",373978,57.18,Eu Exit Core Beis Staff: Corporate Services Adm-stationery,,EMPLOYEE
"Department for Business, Energy and Industrial Strategy","Department for Business, Energy and Industrial Strategy",11/01/2021,Other Technical Professional Services,Business Sectors - Cities And Local Growth,Thurrock Borough Council,374446,-363185.63,Mf Devolved Admin-other Technical Professional Services,RM17 6LT,VENDOR
"Department for Business, Energy and Industrial Strategy","Department for Business, Energy and Industrial Strategy",11/01/2021,Other Technical Professional Services,Business Sectors - Cities And Local Growth,Thurrock Borough Council,374446,799008.39,Mf Devolved Admin-other Technical Professional Services,RM17 6LT,VENDOR
"Department for Business, Energy and Industrial Strategy","Department for Business, Energy and Industrial Strategy",14/01/2021,Current Grants To Local Government,Business Sectors - Cities And Local Growth,Shropshire Council,376103,48633.07,Growth Hubs-current Grants To Local Government,SY2 6ND,WGA ONLY
"Department for Business, Energy and Industrial Strategy","Department for Business, Energy and Industrial Strategy",14/01/2021,Other Technical Professional Services,Business Sectors - Cities And Local Growth,Thurrock Borough Council,376107,235738.01,Mf Devolved Admin-other Technical Professional Services,RM17 6LT,VENDOR
"Department for Business, Energy and Industrial Strategy","Department for Business, Energy and Industrial Strategy",22/01/2021,Other Technical Professional Services,Business Sectors - Cities And Local Growth,Thurrock Borough Council,376880,136784.12,Mf Devolved Admin-other Technical Professional Services,RM17 6LT,VENDOR
"Department for Business, Energy and Industrial Strategy","Department for Business, Energy and Industrial Strategy",22/01/2021,Current Grants To Local Government,Business Sectors - Cities And Local Growth,West Yorkshire Combined Authority,376969,127872,Growth Hubs-current Grants To Local Government,LS1 2DE,WGA ONLY
"Department for Business, Energy and Industrial Strategy","Department for Business, Energy and Industrial Strategy",28/01/2021,Current Grants To Local Government,Business Sectors - Cities And Local Growth,Hertfordshire County Council,377568,71750,Growth Hubs-current Grants To Local Government,SG13 8TN,WGA ONLY
"Department for Business, Energy and Industrial Strategy","Department for Business, Energy and Industrial Strategy",28/01/2021,Current Grants To Local Government,Business Sectors - Cities And Local Growth,Gloucestershire County Council,377639,71113,Growth Hubs-current Grants To Local Government,GL1 2TL,WGA ONLY
"Department for Business, Energy and Industrial Strategy","Department for Business, Energy and Industrial Strategy",26/01/2021,Current Grants To Local Government,Business Sectors - Cities And Local Growth,Dorset Council,371505,81250,Growth Hubs-current Grants To Local Government,DT1 1UZ,VENDOR
"Department for Business, Energy and Industrial Strategy","Department for Business, Energy and Industrial Strategy",26/01/2021,Current Grants To Local Government,Business Sectors - Cities And Local Growth,Dorset Council,371506,109650,Growth Hubs-current Grants To Local Government,DT1 1UZ,VENDOR
"Department for Business, Energy and Industrial Strategy","Department for Business, Energy and Industrial Strategy",04/01/2021,Current Grants To Local Government,Business Sectors - Cities And Local Growth,Cambridgeshire And Peterborough Combined Authority,373216,115000,Growth Hubs-current Grants To Local Government,CB7  4LS,GRANT
"Department for Business, Energy and Industrial Strategy","Department for Business, Energy and Industrial Strategy",11/01/2021,Current Grants To Local Government,Business Sectors - Cities And Local Growth,Sheffield City Region Combined Authority,374728,109584,Growth Hubs-current Grants To Local Government,S1 1UJ,GRANT
"Department for Business, Energy and Industrial Strategy","Department for Business, Energy and Industrial Strategy",19/01/2021,Current Grants To Local Government,Business Sectors - Cities And Local Growth,Greater Manchester Combined Authority,376371,24371,Growth Hubs-current Grants To Local Government,M60 2LA,WGA ONLY
"Department for Business, Energy and Industrial Strategy","Department for Business, Energy and Industrial Strategy",25/01/2021,Current Grants To Local Government,Business Sectors - Cities And Local Growth,North Yorkshire County Council,377199,273000,Growth Hubs-current Grants To Local Government,DL7 8AH,WGA ONLY
"Department for Business, Energy and Industrial Strategy","Department for Business, Energy and Industrial Strategy",21/01/2021,Stationery,Business Sectors - Cities And Local Growth,"Personal Expense, Name Withheld",376794,30.99,Eu Exit Core Beis Staff: No Specific Dexeu Issue Adm-stationery,,EMPLOYEE
"Department for Business, Energy and Industrial Strategy","Department for Business, Energy and Industrial Strategy",13/01/2021,Stationery,Business Sectors - Cities And Local Growth,"Personal Expense, Name Withheld",375358,26,Mf Devolved Admin-stationery,,EMPLOYEE
"Department for Business, Energy and Industrial Strategy","Department for Business, Energy and Industrial Strategy",13/01/2021,Stationery,Business Sectors - Cities And Local Growth,"Personal Expense, Name Withheld",375360,26,Mf Devolved Admin-stationery,,EMPLOYEE
"Department for Business, Energy and Industrial Strategy","Department for Business, Energy and Industrial Strategy",26/01/2021,Stationery,Business Sectors - Cities And Local Growth,"Personal Expense, Name Withheld",377163,196.97,Mf Devolved Admin-stationery,,EMPLOYEE
"Department for Business, Energy and Industrial Strategy","Department for Business, Energy and Industrial Strategy",26/01/2021,Stationery,Business Sectors - Cities And Local Growth,"Personal Expense, Name Withheld",377164,257.03,Mf Devolved Admin-stationery,,EMPLOYEE
"Department for Business, Energy and Industrial Strategy","Department for Business, Energy and Industrial Strategy",04/01/2021,Exp - Miscellaneous Expenditure - Iexpenses,Business Sectors - Infrastructure And Materials,"Personal Expense, Name Withheld",373672,139.99,Cyber Security - Bio Chemicals-exp - Miscellaneous Expenditure - Iexpenses,,EMPLOYEE
"Department for Business, Energy and Industrial Strategy","Department for Business, Energy and Industrial Strategy",12/01/2021,Exp - Miscellaneous Expenditure - Iexpenses,Business Sectors - Infrastructure And Materials,"Personal Expense, Name Withheld",375076,10.79,Mf Devolved Admin-exp - Miscellaneous Expenditure - Iexpenses,,EMPLOYEE
"Department for Business, Energy and Industrial Strategy","Department for Business, Energy and Industrial Strategy",12/01/2021,Exp - Miscellaneous Expenditure - Iexpenses,Business Sectors - Infrastructure And Materials,"Personal Expense, Name Withheld",375077,142.8,Mf Devolved Admin-exp - Miscellaneous Expenditure - Iexpenses,,EMPLOYEE
"Department for Business, Energy and Industrial Strategy","Department for Business, Energy and Industrial Strategy",12/01/2021,Exp - Miscellaneous Expenditure - Iexpenses,Business Sectors - Infrastructure And Materials,"Personal Expense, Name Withheld",375078,21.65,Mf Devolved Admin-exp - Miscellaneous Expenditure - Iexpenses,,EMPLOYEE
"Department for Business, Energy and Industrial Strategy","Department for Business, Energy and Industrial Strategy",20/01/2021,Stationery,Business Sectors - Infrastructure And Materials,"Personal Expense, Name Withheld",376620,2.99,Mf Devolved Admin-stationery,,EMPLOYEE
"Department for Business, Energy and Industrial Strategy","Department for Business, Energy and Industrial Strategy",27/01/2021,Exp - Miscellaneous Expenditure - Iexpenses,Business Sectors - Infrastructure And Materials,"Personal Expense, Name Withheld",377429,12.34,Mf Devolved Admin-exp - Miscellaneous Expenditure - Iexpenses,,EMPLOYEE
"Department for Business, Energy and Industrial Strategy","Department for Business, Energy and Industrial Strategy",12/01/2021,Stationery,Business Sectors - Infrastructure And Materials,"Personal Expense, Name Withheld",375083,136.94,Mf Devolved Admin-stationery,,EMPLOYEE
"Department for Business, Energy and Industrial Strategy","Department for Business, Energy and Industrial Strategy",14/01/2021,Stationery,Business Sectors - Infrastructure And Materials,"Personal Expense, Name Withheld",376017,77.49,Mf Devolved Admin-stationery,,EMPLOYEE
"Department for Business, Energy and Industrial Strategy","Department for Business, Energy and Industrial Strategy",08/01/2021,Uk Subscriptions,Business Sectors - Infrastructure And Materials,Cru International Ltd,374467,29358,Materials: Sponsorship-uk Subscriptions,WC2A 1QS,VENDOR
"Department for Business, Energy and Industrial Strategy","Department for Business, Energy and Industrial Strategy",14/01/2021,Stationery,Business Sectors - Infrastructure And Materials,"Personal Expense, Name Withheld",376027,94.97,Mf Devolved Admin-stationery,,EMPLOYEE
"Department for Business, Energy and Industrial Strategy","Department for Business, Energy and Industrial Strategy",19/01/2021,Marketing - Design Services,Business Sectors - Office For Life Sciences,Ministry Of Justice,370579,780,Mf Devolved Admin-marketing - Design Services,NP20 9BB,WGA ONLY
"Department for Business, Energy and Industrial Strategy","Department for Business, Energy and Industrial Strategy",19/01/2021,Marketing - Design Services,Business Sectors - Office For Life Sciences,Ministry Of Justice,370579,3744,Mf Devolved Admin-marketing - Design Services,NP20 9BB,WGA ONLY
"Department for Business, Energy and Industrial Strategy","Department for Business, Energy and Industrial Strategy",11/01/2021,Exp - Miscellaneous Expenditure - Iexpenses,Business Sectors - Office For Life Sciences,"Personal Expense, Name Withheld",374780,136,Mf Devolved Admin-exp - Miscellaneous Expenditure - Iexpenses,,EMPLOYEE
"Department for Business, Energy and Industrial Strategy","Department for Business, Energy and Industrial Strategy",20/01/2021,Stationery,Business Sectors - Office For Life Sciences,"Personal Expense, Name Withheld",376628,23.33,Mf Devolved Admin-stationery,,EMPLOYEE
"Department for Business, Energy and Industrial Strategy","Department for Business, Energy and Industrial Strategy",29/01/2021,Stationery,Business Sectors - Office For Life Sciences,"Personal Expense, Name Withheld",377834,150,Mf Devolved Admin-stationery,,EMPLOYEE
"Department for Business, Energy and Industrial Strategy","Department for Business, Energy and Industrial Strategy",19/01/2021,Stationery,"Business Sectors - Professional Business Services, Retail And Post","Personal Expense, Name Withheld",376468,45.97,Mf Devolved Admin-stationery,,EMPLOYEE
"Department for Business, Energy and Industrial Strategy","Department for Business, Energy and Industrial Strategy",04/01/2021,External Legal Advice And Service,"Business Sectors - Professional Business Services, Retail And Post",Simmons And Simmons Llp,373642,6298.1,Mf Devolved Admin-external Legal Advice And Service,EC2Y 9SS,VENDOR
"Department for Business, Energy and Industrial Strategy","Department for Business, Energy and Industrial Strategy",05/01/2021,Stationery,"Business Sectors - Professional Business Services, Retail And Post","Personal Expense, Name Withheld",373963,441.94,Mf Devolved Admin-stationery,,EMPLOYEE
"Department for Business, Energy and Industrial Strategy","Department for Business, Energy and Industrial Strategy",19/01/2021,Stationery,"Business Sectors - Professional Business Services, Retail And Post","Personal Expense, Name Withheld",376482,401.39,Mf Devolved Admin-stationery,,EMPLOYEE
"Department for Business, Energy and Industrial Strategy","Department for Business, Energy and Industrial Strategy",11/01/2021,External Legal Advice And Service,"Business Sectors - Professional Business Services, Retail And Post",39 Essex Chambers Llp,368787,3724.13,Mf Devolved Admin-external Legal Advice And Service,WC2A 1DD,VENDOR
"Department for Business, Energy and Industrial Strategy","Department for Business, Energy and Industrial Strategy",11/01/2021,External Legal Advice And Service,"Business Sectors - Professional Business Services, Retail And Post",39 Essex Chambers Llp,374610,5486.25,Mf Devolved Admin-external Legal Advice And Service,WC2R 3AT,VENDOR
"Department for Business, Energy and Industrial Strategy","Department for Business, Energy and Industrial Strategy",04/01/2021,Subsidies To Public Corporations (Pcs),"Business Sectors - Professional Business Services, Retail And Post",Post Office Limited,372846,7500000,Po: Network Reforms-subsidies To Public Corporations (Pcs),S49 1PF,VENDOR
"Department for Business, Energy and Industrial Strategy","Department for Business, Energy and Industrial Strategy",06/01/2021,Interest Receivable - Pcs - Loans (Consolidated Fund),"Business Sectors - Professional Business Services, Retail And Post",Post Office Limited,374309,-8781.59,Pol: Interest On Loans-interest Receivable - Pcs - Loans (Consolidated Fund),S49 1PF,VENDOR
"Department for Business, Energy and Industrial Strategy","Department for Business, Energy and Industrial Strategy",06/01/2021,Additions - Other Loans - Public Corporations,"Business Sectors - Professional Business Services, Retail And Post",Post Office Limited,374309,35000000,Pol: Voted Loans-additions - Other Loans - Public Corporations,S49 1PF,VENDOR
"Department for Business, Energy and Industrial Strategy","Department for Business, Energy and Industrial Strategy",12/01/2021,Interest Receivable - Pcs - Loans (Consolidated Fund),"Business Sectors - Professional Business Services, Retail And Post",Post Office Limited,375169,-7180.93,Pol: Interest On Loans-interest Receivable - Pcs - Loans (Consolidated Fund),S49 1PF,VENDOR
"Department for Business, Energy and Industrial Strategy","Department for Business, Energy and Industrial Strategy",12/01/2021,Additions - Other Loans - Public Corporations,"Business Sectors - Professional Business Services, Retail And Post",Post Office Limited,375169,17000000,Pol: Voted Loans-additions - Other Loans - Public Corporations,S49 1PF,VENDOR
"Department for Business, Energy and Industrial Strategy","Department for Business, Energy and Industrial Strategy",13/01/2021,Interest Receivable - Pcs - Loans (Consolidated Fund),"Business Sectors - Professional Business Services, Retail And Post",Post Office Limited,375913,-7432.38,Pol: Interest On Loans-interest Receivable - Pcs - Loans (Consolidated Fund),S49 1PF,VENDOR
"Department for Business, Energy and Industrial Strategy","Department for Business, Energy and Industrial Strategy",13/01/2021,Additions - Other Loans - Public Corporations,"Business Sectors - Professional Business Services, Retail And Post",Post Office Limited,375913,24000000,Pol: Voted Loans-additions - Other Loans - Public Corporations,S49 1PF,VENDOR
"Department for Business, Energy and Industrial Strategy","Department for Business, Energy and Industrial Strategy",19/01/2021,Interest Receivable - Pcs - Loans (Consolidated Fund),"Business Sectors - Professional Business Services, Retail And Post",Post Office Limited,376510,-5926.8,Pol: Interest On Loans-interest Receivable - Pcs - Loans (Consolidated Fund),S49 1PF,VENDOR
"Department for Business, Energy and Industrial Strategy","Department for Business, Energy and Industrial Strategy",19/01/2021,Additions - Other Loans - Public Corporations,"Business Sectors - Professional Business Services, Retail And Post",Post Office Limited,376510,27000000,Pol: Voted Loans-additions - Other Loans - Public Corporations,S49 1PF,VENDOR
"Department for Business, Energy and Industrial Strategy","Department for Business, Energy and Industrial Strategy",20/01/2021,Interest Receivable - Pcs - Loans (Consolidated Fund),"Business Sectors - Professional Business Services, Retail And Post",Post Office Limited,376664,-6324.87,Pol: Interest On Loans-interest Receivable - Pcs - Loans (Consolidated Fund),S49 1PF,VENDOR
"Department for Business, Energy and Industrial Strategy","Department for Business, Energy and Industrial Strategy",20/01/2021,Additions - Other Loans - Public Corporations,"Business Sectors - Professional Business Services, Retail And Post",Post Office Limited,376664,28000000,Pol: Voted Loans-additions - Other Loans - Public Corporations,S49 1PF,VENDOR
"Department for Business, Energy and Industrial Strategy","Department for Business, Energy and Industrial Strategy",27/01/2021,Interest Receivable - Pcs - Loans (Consolidated Fund),"Business Sectors - Professional Business Services, Retail And Post",Post Office Limited,377494,-5971.03,Pol: Interest On Loans-interest Receivable - Pcs - Loans (Consolidated Fund),S49 1PF,VENDOR
"Department for Business, Energy and Industrial Strategy","Department for Business, Energy and Industrial Strategy",27/01/2021,Additions - Other Loans - Public Corporations,"Business Sectors - Professional Business Services, Retail And Post",Post Office Limited,377494,42000000,Pol: Voted Loans-additions - Other Loans - Public Corporations,S49 1PF,VENDOR
"Department for Business, Energy and Industrial Strategy","Department for Business, Energy and Industrial Strategy",29/01/2021,Interest Receivable - Pcs - Loans (Consolidated Fund),"Business Sectors - Professional Business Services, Retail And Post",Post Office Limited,377860,-6544.44,Pol: Interest On Loans-interest Receivable - Pcs - Loans (Consolidated Fund),S49 1PF,VENDOR
"Department for Business, Energy and Industrial Strategy","Department for Business, Energy and Industrial Strategy",29/01/2021,Additions - Other Loans - Public Corporations,"Business Sectors - Professional Business Services, Retail And Post",Post Office Limited,377860,29000000,Pol: Voted Loans-additions - Other Loans - Public Corporations,S49 1PF,VENDOR
"Department for Business, Energy and Industrial Strategy","Department for Business, Energy and Industrial Strategy",04/01/2021,Payroll Ogd Recharge,Corporate Payments,Legal And General Assurance Society Ltd,373651,13121.95,Default-payroll Ogd Recharge,CF24 0EB,VENDOR
"Department for Business, Energy and Industrial Strategy","Department for Business, Energy and Industrial Strategy",04/01/2021,Payroll Ogd Recharge,Corporate Payments,Legal And General Assurance Society Ltd,373652,81503.39,Default-payroll Ogd Recharge,CF24 0EB,VENDOR
"Department for Business, Energy and Industrial Strategy","Department for Business, Energy and Industrial Strategy",07/01/2021,Recoveries Account - Other Payables,Corporate Payments,Ugland Stena Storage As,374298,157.5,Default-recoveries Account - Other Payables,1229,VENDOR
"Department for Business, Energy and Industrial Strategy","Department for Business, Energy and Industrial Strategy",07/01/2021,Recoveries Account - Other Payables,Corporate Payments,"Personal Expense, Name Withheld",374383,29.5,Default-recoveries Account - Other Payables,,
"Department for Business, Energy and Industrial Strategy","Department for Business, Energy and Industrial Strategy",11/01/2021,Recoveries Account - Other Payables,Corporate Payments,Department For International Trade,374932,35,Default-recoveries Account - Other Payables,NP10 8QQ,WGA ONLY
"Department for Business, Energy and Industrial Strategy","Department for Business, Energy and Industrial Strategy",15/01/2021,Payment To Barclaycard For Erac (Enterprise-rent-a-car),Corporate Payments,Barclays Bank Plc,376204,203.85,Default-payment To Barclaycard For Erac (Enterprise-rent-a-car),TS17 6YT,VENDOR
"Department for Business, Energy and Industrial Strategy","Department for Business, Energy and Industrial Strategy",15/01/2021,Gpc New Procedures,Corporate Payments,Barclays Bank Plc,376206,68276.12,Default-gpc New Procedures,TS17 6YT,VENDOR
"Department for Business, Energy and Industrial Strategy","Department for Business, Energy and Industrial Strategy",20/01/2021,Recoveries Account - Other Payables,Corporate Payments,Yorkshire Plywood Ltd,376614,28.8,Default-recoveries Account - Other Payables,HU7 0BZ,VENDOR
"Department for Business, Energy and Industrial Strategy","Department for Business, Energy and Industrial Strategy",20/01/2021,Recoveries Account - Other Payables,Corporate Payments,Yorkshire Plywood Ltd,376614,48,Default-recoveries Account - Other Payables,HU7 0BZ,VENDOR
"Department for Business, Energy and Industrial Strategy","Department for Business, Energy and Industrial Strategy",20/01/2021,Recoveries Account - Other Payables,Corporate Payments,Department For International Trade,376616,72,Default-recoveries Account - Other Payables,NP10 8QQ,WGA ONLY
"Department for Business, Energy and Industrial Strategy","Department for Business, Energy and Industrial Strategy",21/01/2021,Recoveries Account - Other Payables,Corporate Payments,The Furniture Market.Co.Uk Ltd,376828,9.6,Default-recoveries Account - Other Payables,CW6 0SR,VENDOR
"Department for Business, Energy and Industrial Strategy","Department for Business, Energy and Industrial Strategy",26/01/2021,Recoveries Account - Other Payables,Corporate Payments,Beis Concessionary Fuel Gbs Account,377335,569.07,Default-recoveries Account - Other Payables,SW1H 0ET,VENDOR
"Department for Business, Energy and Industrial Strategy","Department for Business, Energy and Industrial Strategy",26/01/2021,Recoveries Account - Other Payables,Corporate Payments,Dorel Home Furnishings Europe Ltd,377354,9.6,Default-recoveries Account - Other Payables,WN2 4EY,VENDOR
"Department for Business, Energy and Industrial Strategy","Department for Business, Energy and Industrial Strategy",26/01/2021,Recoveries Account - Other Payables,Corporate Payments,The Furniture Market.Co.Uk Ltd,377356,19.2,Default-recoveries Account - Other Payables,CW6 0SR,VENDOR
"Department for Business, Energy and Industrial Strategy","Department for Business, Energy and Industrial Strategy",26/01/2021,Recoveries Account - Other Payables,Corporate Payments,Seca Ltd,377357,240,Default-recoveries Account - Other Payables,B5 5QB,VENDOR
"Department for Business, Energy and Industrial Strategy","Department for Business, Energy and Industrial Strategy",26/01/2021,Recoveries Account - Other Payables,Corporate Payments,Golar-nor (Uk) Ltd,377359,205.2,Default-recoveries Account - Other Payables,BS1 6FL,VENDOR
"Department for Business, Energy and Industrial Strategy","Department for Business, Energy and Industrial Strategy",27/01/2021,Recoveries Account - Other Payables,Corporate Payments,Falcon Panel Products Ltd,377537,57.6,Default-recoveries Account - Other Payables,TW17 8AN,VENDOR
"Department for Business, Energy and Industrial Strategy","Department for Business, Energy and Industrial Strategy",27/01/2021,Recoveries Account - Other Payables,Corporate Payments,Minebea Intec Ltd,377538,36,Default-recoveries Account - Other Payables,B37 7YE,VENDOR
"Department for Business, Energy and Industrial Strategy","Department for Business, Energy and Industrial Strategy",28/01/2021,Recoveries Account - Other Payables,Corporate Payments,Hm Treasury,377598,1500,Default-recoveries Account - Other Payables,NR7 0HS,WGA ONLY
"Department for Business, Energy and Industrial Strategy","Department for Business, Energy and Industrial Strategy",04/01/2021,Hire Of Interim Managers,Corporate Services - Commercial & Operations,Alexander Mann Solutions Ltd,373542,2520.24,Mf Devolved Admin-hire Of Interim Managers,EC2N 3AQ,VENDOR
"Department for Business, Energy and Industrial Strategy","Department for Business, Energy and Industrial Strategy",05/01/2021,Stationery,Corporate Services - Commercial & Operations,"Personal Expense, Name Withheld",373917,26,Mf Devolved Admin-stationery,,EMPLOYEE
"Department for Business, Energy and Industrial Strategy","Department for Business, Energy and Industrial Strategy",08/01/2021,Stationery,Corporate Services - Commercial & Operations,"Personal Expense, Name Withheld",374468,26,Mf Devolved Admin-stationery,,EMPLOYEE
"Department for Business, Energy and Industrial Strategy","Department for Business, Energy and Industrial Strategy",12/01/2021,Hire Of Interim Managers,Corporate Services - Commercial & Operations,Alexander Mann Solutions Ltd,374662,3528.34,Mf Devolved Admin-hire Of Interim Managers,EC2N 3AQ,VENDOR
"Department for Business, Energy and Industrial Strategy","Department for Business, Energy and Industrial Strategy",11/01/2021,Consultancy Expenditure,Corporate Services - Commercial & Operations,Deloitte Llp,374726,61630,Eu Exit: Commercial Adm-consultancy Expenditure,EC4A 4TR,VENDOR
"Department for Business, Energy and Industrial Strategy","Department for Business, Energy and Industrial Strategy",12/01/2021,Stationery,Corporate Services - Commercial & Operations,"Personal Expense, Name Withheld",375009,52,Mf Devolved Admin-stationery,,EMPLOYEE
"Department for Business, Energy and Industrial Strategy","Department for Business, Energy and Industrial Strategy",12/01/2021,Stationery,Corporate Services - Commercial & Operations,"Personal Expense, Name Withheld",375015,26,Mf Devolved Admin-stationery,,EMPLOYEE
"Department for Business, Energy and Industrial Strategy","Department for Business, Energy and Industrial Strategy",14/01/2021,Consultancy Expenditure,Corporate Services - Commercial & Operations,Deloitte Llp,376138,55150,Eu Exit: Commercial Adm-consultancy Expenditure,EC4A 4TR,VENDOR
"Department for Business, Energy and Industrial Strategy","Department for Business, Energy and Industrial Strategy",21/01/2021,Hire Of Interim Managers,Corporate Services - Commercial & Operations,Alexander Mann Solutions Ltd,376312,3202.86,Mf Devolved Admin-hire Of Interim Managers,EC2N 3AQ,VENDOR
"Department for Business, Energy and Industrial Strategy","Department for Business, Energy and Industrial Strategy",19/01/2021,Hire Of Interim Managers,Corporate Services - Commercial & Operations,Alexander Mann Solutions Ltd,376352,1134.11,Mf Devolved Admin-hire Of Interim Managers,EC2N 3AQ,VENDOR
"Department for Business, Energy and Industrial Strategy","Department for Business, Energy and Industrial Strategy",19/01/2021,Hire Of Interim Managers,Corporate Services - Commercial & Operations,Alexander Mann Solutions Ltd,376360,693.06,Eu Exit Core Beis Staff: Corporate Services Adm-hire Of Interim Managers,EC2N 3AQ,VENDOR
"Department for Business, Energy and Industrial Strategy","Department for Business, Energy and Industrial Strategy",26/01/2021,Hire Of Interim Managers,Corporate Services - Commercial & Operations,Alexander Mann Solutions Ltd,377094,5040.48,Mf Devolved Admin-hire Of Interim Managers,EC2N 3AQ,VENDOR
"Department for Business, Energy and Industrial Strategy","Department for Business, Energy and Industrial Strategy",25/01/2021,Consultancy Expenditure,Corporate Services - Commercial & Operations,Pa Consulting Services Ltd,377103,70254,Mf Devolved Admin-consultancy Expenditure,SG8 6DP,VENDOR
"Department for Business, Energy and Industrial Strategy","Department for Business, Energy and Industrial Strategy",26/01/2021,Hire Of Interim Managers,Corporate Services - Commercial & Operations,Alexander Mann Solutions Ltd,377127,1890.18,Mf Devolved Admin-hire Of Interim Managers,EC2N 3AQ,VENDOR
"Department for Business, Energy and Industrial Strategy","Department for Business, Energy and Industrial Strategy",26/01/2021,Hire Of Interim Managers,Corporate Services - Commercial & Operations,Alexander Mann Solutions Ltd,377138,3202.86,Mf Devolved Admin-hire Of Interim Managers,EC2N 3AQ,VENDOR
"Department for Business, Energy and Industrial Strategy","Department for Business, Energy and Industrial Strategy",26/01/2021,Hire Of Interim Managers,Corporate Services - Commercial & Operations,Alexander Mann Solutions Ltd,377140,3465.3,Eu Exit Core Beis Staff: Corporate Services Adm-hire Of Interim Managers,EC2N 3AQ,VENDOR
"Department for Business, Energy and Industrial Strategy","Department for Business, Energy and Industrial Strategy",26/01/2021,Hire Of Interim Managers,Corporate Services - Commercial & Operations,Alexander Mann Solutions Ltd,377141,3150.3,Mf Devolved Admin-hire Of Interim Managers,EC2N 3AQ,VENDOR
"Department for Business, Energy and Industrial Strategy","Department for Business, Energy and Industrial Strategy",26/01/2021,Stationery,Corporate Services - Commercial & Operations,"Personal Expense, Name Withheld",377225,26,Mf Devolved Admin-stationery,,EMPLOYEE
"Department for Business, Energy and Industrial Strategy","Department for Business, Energy and Industrial Strategy",27/01/2021,Stationery,Corporate Services - Commercial & Operations,"Personal Expense, Name Withheld",377361,26,Mf Devolved Admin-stationery,,EMPLOYEE
"Department for Business, Energy and Industrial Strategy","Department for Business, Energy and Industrial Strategy",27/01/2021,Stationery,Corporate Services - Commercial & Operations,"Personal Expense, Name Withheld",377362,78,Mf Devolved Admin-stationery,,EMPLOYEE
"Department for Business, Energy and Industrial Strategy","Department for Business, Energy and Industrial Strategy",28/01/2021,Salaries - Seconded Uk Staff - Vat Recoverable,Corporate Services - Commercial & Operations,Cabinet Office,377633,6100,Eu Exit Core Beis Staff: Corporate Services Adm-salaries - Seconded Uk Staff - Vat Recoverable,FY5 3FW,WGA ONLY
"Department for Business, Energy and Industrial Strategy","Department for Business, Energy and Industrial Strategy",28/01/2021,Salaries - Seconded Uk Staff - Vat Recoverable,Corporate Services - Commercial & Operations,Cabinet Office,377633,19825,Mf Devolved Admin-salaries - Seconded Uk Staff - Vat Recoverable,FY5 3FW,WGA ONLY
"Department for Business, Energy and Industrial Strategy","Department for Business, Energy and Industrial Strategy",28/01/2021,Salaries - Seconded Uk Staff - Vat Recoverable,Corporate Services - Commercial & Operations,Cabinet Office,377638,5490,Eu Exit Core Beis Staff: Corporate Services Adm-salaries - Seconded Uk Staff - Vat Recoverable,FY5 3FW,WGA ONLY
"Department for Business, Energy and Industrial Strategy","Department for Business, Energy and Industrial Strategy",28/01/2021,Salaries - Seconded Uk Staff - Vat Recoverable,Corporate Services - Commercial & Operations,Cabinet Office,377638,26229.99,Mf Devolved Admin-salaries - Seconded Uk Staff - Vat Recoverable,FY5 3FW,WGA ONLY
"Department for Business, Energy and Industrial Strategy","Department for Business, Energy and Industrial Strategy",29/01/2021,Stationery,Corporate Services - Commercial & Operations,"Personal Expense, Name Withheld",377767,26,Mf Devolved Admin-stationery,,EMPLOYEE
"Department for Business, Energy and Industrial Strategy","Department for Business, Energy and Industrial Strategy",06/01/2021,Rentals Under Non-pfi Operating Leases - Plant & Machinery,Corporate Services - Commercial & Operations,Detectnology (Uk) Ltd,373798,3600,Mf Devolved Admin-rentals Under Non-pfi Operating Leases - Plant & Machinery,CV37 0AW,VENDOR
"Department for Business, Energy and Industrial Strategy","Department for Business, Energy and Industrial Strategy",06/01/2021,Special Equipment For The Disabled,Corporate Services - Commercial & Operations,Draft Wheelchairs Ltd,373802,3207.86,Mf Devolved Admin-special Equipment For The Disabled,PE29 2LN,VENDOR
"Department for Business, Energy and Industrial Strategy","Department for Business, Energy and Industrial Strategy",07/01/2021,Accommodation & Building Management,Corporate Services - Commercial & Operations,Government Property Agency,374370,101.27,Mf Devolved Admin-accommodation & Building Management,B2 5LS,VENDOR
"Department for Business, Energy and Industrial Strategy","Department for Business, Energy and Industrial Strategy",07/01/2021,Accommodation & Building Management,Corporate Services - Commercial & Operations,Government Property Agency,374370,60844.9,Mf Devolved Admin-accommodation & Building Management,B2 5LS,VENDOR
"Department for Business, Energy and Industrial Strategy","Department for Business, Energy and Industrial Strategy",07/01/2021,Accommodation & Building Management,Corporate Services - Commercial & Operations,Government Property Agency,374370,60844.9,Mf Devolved Admin-accommodation & Building Management,B2 5LS,VENDOR
"Department for Business, Energy and Industrial Strategy","Department for Business, Energy and Industrial Strategy",07/01/2021,Accommodation & Building Management,Corporate Services - Commercial & Operations,Government Property Agency,374370,152661.57,Mf Devolved Admin-accommodation & Building Management,B2 5LS,VENDOR
"Department for Business, Energy and Industrial Strategy","Department for Business, Energy and Industrial Strategy",07/01/2021,Accommodation & Building Management,Corporate Services - Commercial & Operations,Government Property Agency,374371,-60844.9,Mf Devolved Admin-accommodation & Building Management,B2 5LS,VENDOR
"Department for Business, Energy and Industrial Strategy","Department for Business, Energy and Industrial Strategy",11/01/2021,Accommodation & Building Management,Corporate Services - Commercial & Operations,Government Property Agency,374448,11.94,Mf Devolved Admin-accommodation & Building Management,B2 5LS,VENDOR
"Department for Business, Energy and Industrial Strategy","Department for Business, Energy and Industrial Strategy",11/01/2021,Accommodation & Building Management,Corporate Services - Commercial & Operations,Government Property Agency,374448,100,Mf Devolved Admin-accommodation & Building Management,B2 5LS,VENDOR
"Department for Business, Energy and Industrial Strategy","Department for Business, Energy and Industrial Strategy",11/01/2021,Accommodation & Building Management,Corporate Services - Commercial & Operations,Government Property Agency,374448,189.75,Mf Devolved Admin-accommodation & Building Management,B2 5LS,VENDOR
"Department for Business, Energy and Industrial Strategy","Department for Business, Energy and Industrial Strategy",11/01/2021,Accommodation & Building Management,Corporate Services - Commercial & Operations,Government Property Agency,374448,22784.07,Mf Devolved Admin-accommodation & Building Management,B2 5LS,VENDOR
"Department for Business, Energy and Industrial Strategy","Department for Business, Energy and Industrial Strategy",11/01/2021,Accommodation & Building Management,Corporate Services - Commercial & Operations,Government Property Agency,374448,31426.03,Mf Devolved Admin-accommodation & Building Management,B2 5LS,VENDOR
"Department for Business, Energy and Industrial Strategy","Department for Business, Energy and Industrial Strategy",11/01/2021,Accommodation & Building Management,Corporate Services - Commercial & Operations,Government Property Agency,374448,35811.53,Mf Devolved Admin-accommodation & Building Management,B2 5LS,VENDOR
"Department for Business, Energy and Industrial Strategy","Department for Business, Energy and Industrial Strategy",11/01/2021,Accommodation & Building Management,Corporate Services - Commercial & Operations,Government Property Agency,374448,209620.37,Mf Devolved Admin-accommodation & Building Management,B2 5LS,VENDOR
"Department for Business, Energy and Industrial Strategy","Department for Business, Energy and Industrial Strategy",08/01/2021,Accommodation & Building Management,Corporate Services - Commercial & Operations,Government Property Agency,374455,12698.86,Mf Devolved Admin-accommodation & Building Management,B2 5LS,VENDOR
"Department for Business, Energy and Industrial Strategy","Department for Business, Energy and Industrial Strategy",07/01/2021,Accommodation & Building Management,Corporate Services - Commercial & Operations,Government Property Agency,374456,-17304.19,Mf Devolved Admin-accommodation & Building Management,B2 5LS,VENDOR
"Department for Business, Energy and Industrial Strategy","Department for Business, Energy and Industrial Strategy",07/01/2021,Accommodation & Building Management,Corporate Services - Commercial & Operations,Government Property Agency,374458,1187.49,Mf Devolved Admin-accommodation & Building Management,B2 5LS,VENDOR
"Department for Business, Energy and Industrial Strategy","Department for Business, Energy and Industrial Strategy",08/01/2021,Accommodation & Building Management,Corporate Services - Commercial & Operations,Government Property Agency,374460,268.09,Mf Devolved Admin-accommodation & Building Management,B2 5LS,VENDOR
"Department for Business, Energy and Industrial Strategy","Department for Business, Energy and Industrial Strategy",08/01/2021,Accommodation & Building Management,Corporate Services - Commercial & Operations,Government Property Agency,374461,126.85,Mf Devolved Admin-accommodation & Building Management,B2 5LS,VENDOR
"Department for Business, Energy and Industrial Strategy","Department for Business, Energy and Industrial Strategy",08/01/2021,Eye Tests,Corporate Services - Commercial & Operations,"Personal Expense, Name Withheld",374469,100,Mf Non Devolved Admin-eye Tests,,EMPLOYEE
"Department for Business, Energy and Industrial Strategy","Department for Business, Energy and Industrial Strategy",08/01/2021,Eye Tests,Corporate Services - Commercial & Operations,"Personal Expense, Name Withheld",374470,65,Mf Non Devolved Admin-eye Tests,,EMPLOYEE
"Department for Business, Energy and Industrial Strategy","Department for Business, Energy and Industrial Strategy",08/01/2021,Eye Tests,Corporate Services - Commercial & Operations,"Personal Expense, Name Withheld",374471,60,Mf Non Devolved Admin-eye Tests,,EMPLOYEE
"Department for Business, Energy and Industrial Strategy","Department for Business, Energy and Industrial Strategy",08/01/2021,Eye Tests,Corporate Services - Commercial & Operations,"Personal Expense, Name Withheld",374474,75,Mf Non Devolved Admin-eye Tests,,EMPLOYEE
"Department for Business, Energy and Industrial Strategy","Department for Business, Energy and Industrial Strategy",08/01/2021,Other Staff Welfare Costs,Corporate Services - Commercial & Operations,"Personal Expense, Name Withheld",374475,90,Mf Non Devolved Admin-other Staff Welfare Costs,,EMPLOYEE
"Department for Business, Energy and Industrial Strategy","Department for Business, Energy and Industrial Strategy",08/01/2021,Catering Services,Corporate Services - Commercial & Operations,Aramark Ltd,374519,30542.45,Mf Devolved Admin-catering Services,LS16 6QY,VENDOR
"Department for Business, Energy and Industrial Strategy","Department for Business, Energy and Industrial Strategy",08/01/2021,Catering Services,Corporate Services - Commercial & Operations,Aramark Ltd,374519,46769.75,Mf Devolved Admin-catering Services,LS16 6QY,VENDOR
"Department for Business, Energy and Industrial Strategy","Department for Business, Energy and Industrial Strategy",08/01/2021,Catering Services,Corporate Services - Commercial & Operations,Aramark Ltd,374521,22005.31,Mf Devolved Admin-catering Services,LS16 6QY,VENDOR
"Department for Business, Energy and Industrial Strategy","Department for Business, Energy and Industrial Strategy",11/01/2021,Accommodation & Building Management,Corporate Services - Commercial & Operations,Government Property Agency,374738,-209620.37,Mf Devolved Admin-accommodation & Building Management,B2 5LS,VENDOR
"Department for Business, Energy and Industrial Strategy","Department for Business, Energy and Industrial Strategy",11/01/2021,Accommodation & Building Management,Corporate Services - Commercial & Operations,Government Property Agency,374738,-35811.53,Mf Devolved Admin-accommodation & Building Management,B2 5LS,VENDOR
"Department for Business, Energy and Industrial Strategy","Department for Business, Energy and Industrial Strategy",11/01/2021,Accommodation & Building Management,Corporate Services - Commercial & Operations,Government Property Agency,374738,-31426.03,Mf Devolved Admin-accommodation & Building Management,B2 5LS,VENDOR
"Department for Business, Energy and Industrial Strategy","Department for Business, Energy and Industrial Strategy",11/01/2021,Accommodation & Building Management,Corporate Services - Commercial & Operations,Government Property Agency,374738,-22784.07,Mf Devolved Admin-accommodation & Building Management,B2 5LS,VENDOR
"Department for Business, Energy and Industrial Strategy","Department for Business, Energy and Industrial Strategy",11/01/2021,Accommodation & Building Management,Corporate Services - Commercial & Operations,Government Property Agency,374738,-189.75,Mf Devolved Admin-accommodation & Building Management,B2 5LS,VENDOR
"Department for Business, Energy and Industrial Strategy","Department for Business, Energy and Industrial Strategy",11/01/2021,Accommodation & Building Management,Corporate Services - Commercial & Operations,Government Property Agency,374738,-100,Mf Devolved Admin-accommodation & Building Management,B2 5LS,VENDOR
"Department for Business, Energy and Industrial Strategy","Department for Business, Energy and Industrial Strategy",11/01/2021,Accommodation & Building Management,Corporate Services - Commercial & Operations,Government Property Agency,374738,-11.94,Mf Devolved Admin-accommodation & Building Management,B2 5LS,VENDOR
"Department for Business, Energy and Industrial Strategy","Department for Business, Energy and Industrial Strategy",13/01/2021,Accommodation & Building Management,Corporate Services - Commercial & Operations,Government Property Agency,375494,9701.09,Mf Devolved Admin-accommodation & Building Management,B2 5LS,VENDOR
"Department for Business, Energy and Industrial Strategy","Department for Business, Energy and Industrial Strategy",14/01/2021,Accommodation & Building Management,Corporate Services - Commercial & Operations,Government Property Agency,375942,644,Mf Devolved Admin-accommodation & Building Management,B2 5LS,VENDOR
"Department for Business, Energy and Industrial Strategy","Department for Business, Energy and Industrial Strategy",19/01/2021,Accommodation & Building Management,Corporate Services - Commercial & Operations,Government Property Agency,376152,3355,Mf Devolved Admin-accommodation & Building Management,B2 5LS,VENDOR
"Department for Business, Energy and Industrial Strategy","Department for Business, Energy and Industrial Strategy",19/01/2021,Minor Works,Corporate Services - Commercial & Operations,Bouygues E&S Fm Uk Ltd,376158,136.16,Mf Devolved Admin-minor Works,BN1 1HG,VENDOR
"Department for Business, Energy and Industrial Strategy","Department for Business, Energy and Industrial Strategy",19/01/2021,Minor Works,Corporate Services - Commercial & Operations,Bouygues E&S Fm Uk Ltd,376158,470.4,Mf Devolved Admin-minor Works,BN1 1HG,VENDOR
"Department for Business, Energy and Industrial Strategy","Department for Business, Energy and Industrial Strategy",19/01/2021,Minor Works,Corporate Services - Commercial & Operations,Bouygues E&S Fm Uk Ltd,376158,1022.27,Mf Devolved Admin-minor Works,BN1 1HG,VENDOR
"Department for Business, Energy and Industrial Strategy","Department for Business, Energy and Industrial Strategy",19/01/2021,Minor Works,Corporate Services - Commercial & Operations,Bouygues E&S Fm Uk Ltd,376158,1591.3,Mf Devolved Admin-minor Works,BN1 1HG,VENDOR
"Department for Business, Energy and Industrial Strategy","Department for Business, Energy and Industrial Strategy",19/01/2021,Minor Works,Corporate Services - Commercial & Operations,Bouygues E&S Fm Uk Ltd,376160,1334.59,Mf Devolved Admin-minor Works,BN1 1HG,VENDOR
"Department for Business, Energy and Industrial Strategy","Department for Business, Energy and Industrial Strategy",19/01/2021,Accommodation & Building Management,Corporate Services - Commercial & Operations,Government Property Agency,376168,626.31,Mf Devolved Admin-accommodation & Building Management,EC4M 7HP,VENDOR
"Department for Business, Energy and Industrial Strategy","Department for Business, Energy and Industrial Strategy",19/01/2021,Accommodation & Building Management,Corporate Services - Commercial & Operations,Government Property Agency,376169,37.31,Mf Devolved Admin-accommodation & Building Management,B2 5LS,VENDOR
"Department for Business, Energy and Industrial Strategy","Department for Business, Energy and Industrial Strategy",19/01/2021,Accommodation & Building Management,Corporate Services - Commercial & Operations,Government Property Agency,376170,74.62,Mf Devolved Admin-accommodation & Building Management,B2 5LS,VENDOR
"Department for Business, Energy and Industrial Strategy","Department for Business, Energy and Industrial Strategy",19/01/2021,Accommodation & Building Management,Corporate Services - Commercial & Operations,Government Property Agency,376171,1195.93,Mf Devolved Admin-accommodation & Building Management,B2 5LS,VENDOR
"Department for Business, Energy and Industrial Strategy","Department for Business, Energy and Industrial Strategy",19/01/2021,Accommodation & Building Management,Corporate Services - Commercial & Operations,Government Property Agency,376173,535.69,Mf Devolved Admin-accommodation & Building Management,B2 5LS,VENDOR
"Department for Business, Energy and Industrial Strategy","Department for Business, Energy and Industrial Strategy",19/01/2021,Accommodation & Building Management,Corporate Services - Commercial & Operations,Government Property Agency,376195,274918.53,Mf Devolved Admin-accommodation & Building Management,B2 5LS,VENDOR
"Department for Business, Energy and Industrial Strategy","Department for Business, Energy and Industrial Strategy",19/01/2021,Hire Of Conference Facilities,Corporate Services - Commercial & Operations,Central Hall Westminster Ltd,376501,143.9,Mf Devolved Admin-hire Of Conference Facilities,SW1H 9NH,VENDOR
"Department for Business, Energy and Industrial Strategy","Department for Business, Energy and Industrial Strategy",19/01/2021,Hire Of Conference Facilities,Corporate Services - Commercial & Operations,Central Hall Westminster Ltd,376502,60,Mf Devolved Admin-hire Of Conference Facilities,SW1H 9NH,VENDOR
"Department for Business, Energy and Industrial Strategy","Department for Business, Energy and Industrial Strategy",26/01/2021,Rentals Under Non-pfi Operating Leases - Plant & Machinery,Corporate Services - Commercial & Operations,Detectnology (Uk) Ltd,376820,3600,Mf Devolved Admin-rentals Under Non-pfi Operating Leases - Plant & Machinery,CV37 0AW,VENDOR
"Department for Business, Energy and Industrial Strategy","Department for Business, Energy and Industrial Strategy",28/01/2021,Capital Grants To Central Government,Corporate Services - Commercial & Operations,British Tourist Authority T/A Visitbritain,377117,-22000,Estates Eu Exit-capital Grants To Central Government,SW1W 9SZ,GRANT
"Department for Business, Energy and Industrial Strategy","Department for Business, Energy and Industrial Strategy",28/01/2021,Capital Grants To Central Government,Corporate Services - Commercial & Operations,British Tourist Authority T/A Visitbritain,377117,48400,Estates Eu Exit-capital Grants To Central Government,SW1W 9SZ,GRANT
"Department for Business, Energy and Industrial Strategy","Department for Business, Energy and Industrial Strategy",27/01/2021,Eye Tests,Corporate Services - Commercial & Operations,"Personal Expense, Name Withheld",377363,90,Mf Non Devolved Admin-eye Tests,,EMPLOYEE
"Department for Business, Energy and Industrial Strategy","Department for Business, Energy and Industrial Strategy",28/01/2021,Accommodation & Building Management,Corporate Services - Commercial & Operations,Government Property Agency,377498,1821.4,Mf Devolved Admin-accommodation & Building Management,B2 5LS,VENDOR
"Department for Business, Energy and Industrial Strategy","Department for Business, Energy and Industrial Strategy",28/01/2021,Accommodation & Building Management,Corporate Services - Commercial & Operations,Government Property Agency,377504,5627.08,Mf Devolved Admin-accommodation & Building Management,B2 5LS,VENDOR
"Department for Business, Energy and Industrial Strategy","Department for Business, Energy and Industrial Strategy",28/01/2021,Accommodation & Building Management,Corporate Services - Commercial & Operations,Government Property Agency,377505,8405,Mf Devolved Admin-accommodation & Building Management,B2 5LS,VENDOR
"Department for Business, Energy and Industrial Strategy","Department for Business, Energy and Industrial Strategy",28/01/2021,Accommodation & Building Management,Corporate Services - Commercial & Operations,Government Property Agency,377505,64745.48,Mf Devolved Admin-accommodation & Building Management,B2 5LS,VENDOR
"Department for Business, Energy and Industrial Strategy","Department for Business, Energy and Industrial Strategy",28/01/2021,Accommodation & Building Management,Corporate Services - Commercial & Operations,Government Property Agency,377506,4963.53,Mf Devolved Admin-accommodation & Building Management,B2 5LS,VENDOR
"Department for Business, Energy and Industrial Strategy","Department for Business, Energy and Industrial Strategy",28/01/2021,Accommodation & Building Management,Corporate Services - Commercial & Operations,Government Property Agency,377509,617.73,Mf Devolved Admin-accommodation & Building Management,B2 5LS,VENDOR
"Department for Business, Energy and Industrial Strategy","Department for Business, Energy and Industrial Strategy",27/01/2021,Accommodation & Building Management,Corporate Services - Commercial & Operations,Government Property Agency,377513,29067.57,Mf Devolved Admin-accommodation & Building Management,B2 5LS,VENDOR
"Department for Business, Energy and Industrial Strategy","Department for Business, Energy and Industrial Strategy",28/01/2021,Accommodation & Building Management,Corporate Services - Commercial & Operations,Government Property Agency,377517,3265.75,Mf Devolved Admin-accommodation & Building Management,B2 5LS,VENDOR
"Department for Business, Energy and Industrial Strategy","Department for Business, Energy and Industrial Strategy",28/01/2021,Accommodation & Building Management,Corporate Services - Commercial & Operations,Government Property Agency,377517,5407.3,Mf Devolved Admin-accommodation & Building Management,B2 5LS,VENDOR
"Department for Business, Energy and Industrial Strategy","Department for Business, Energy and Industrial Strategy",28/01/2021,Accommodation & Building Management,Corporate Services - Commercial & Operations,Government Property Agency,377519,128365.25,Mf Devolved Admin-accommodation & Building Management,B2 5LS,VENDOR
"Department for Business, Energy and Industrial Strategy","Department for Business, Energy and Industrial Strategy",28/01/2021,Accommodation & Building Management,Corporate Services - Commercial & Operations,Government Property Agency,377562,20917.25,Mf Devolved Admin-accommodation & Building Management,B2 5LS,VENDOR
"Department for Business, Energy and Industrial Strategy","Department for Business, Energy and Industrial Strategy",28/01/2021,Accommodation & Building Management,Corporate Services - Commercial & Operations,Government Property Agency,377562,52776.09,Fleetbank House-accommodation & Building Management,B2 5LS,VENDOR
"Department for Business, Energy and Industrial Strategy","Department for Business, Energy and Industrial Strategy",28/01/2021,Accommodation & Building Management,Corporate Services - Commercial & Operations,Government Property Agency,377563,247001.57,Fleetbank House-accommodation & Building Management,B2 5LS,VENDOR
"Department for Business, Energy and Industrial Strategy","Department for Business, Energy and Industrial Strategy",28/01/2021,Accommodation & Building Management,Corporate Services - Commercial & Operations,Government Property Agency,377565,22064.68,Mf Devolved Admin-accommodation & Building Management,B2 5LS,VENDOR
"Department for Business, Energy and Industrial Strategy","Department for Business, Energy and Industrial Strategy",28/01/2021,Accommodation & Building Management,Corporate Services - Commercial & Operations,Government Property Agency,377567,401.22,Fleetbank House-accommodation & Building Management,B2 5LS,VENDOR
"Department for Business, Energy and Industrial Strategy","Department for Business, Energy and Industrial Strategy",28/01/2021,Hire Of Conference Facilities,Corporate Services - Commercial & Operations,Central Hall Westminster Ltd,377616,1035,Mf Devolved Admin-hire Of Conference Facilities,SW1H 9NH,VENDOR
"Department for Business, Energy and Industrial Strategy","Department for Business, Energy and Industrial Strategy",28/01/2021,Hire Of Conference Facilities,Corporate Services - Commercial & Operations,Central Hall Westminster Ltd,377619,2071.2,Mf Devolved Admin-hire Of Conference Facilities,SW1H 9NH,VENDOR
"Department for Business, Energy and Industrial Strategy","Department for Business, Energy and Industrial Strategy",28/01/2021,Hire Of Conference Facilities,Corporate Services - Commercial & Operations,Central Hall Westminster Ltd,377623,-846,Mf Devolved Admin-hire Of Conference Facilities,SW1H 9NH,VENDOR
"Department for Business, Energy and Industrial Strategy","Department for Business, Energy and Industrial Strategy",11/01/2021,Reprographic Services,Corporate Services - Commercial & Operations,Allied Publicity Services (Manchester) Ltd T/A Aps Group,374936,1077.7,Mf Devolved Admin-reprographic Services,SK3 0ZP,VENDOR
"Department for Business, Energy and Industrial Strategy","Department for Business, Energy and Industrial Strategy",29/01/2021,Reprographic Services,Corporate Services - Commercial & Operations,Allied Publicity Services (Manchester) Ltd T/A Aps Group,377817,236.18,Mf Devolved Admin-reprographic Services,SK3 0ZP,VENDOR
"Department for Business, Energy and Industrial Strategy","Department for Business, Energy and Industrial Strategy",29/01/2021,Reprographic Services,Corporate Services - Commercial & Operations,Allied Publicity Services (Manchester) Ltd T/A Aps Group,377817,2657.71,Mf Devolved Admin-reprographic Services,SK3 0ZP,VENDOR
"Department for Business, Energy and Industrial Strategy","Department for Business, Energy and Industrial Strategy",04/01/2021,Exp - Miscellaneous Expenditure - Iexpenses,Corporate Services - Commercial & Operations,"Personal Expense, Name Withheld",373664,115,Mf Devolved Admin-exp - Miscellaneous Expenditure - Iexpenses,,EMPLOYEE
"Department for Business, Energy and Industrial Strategy","Department for Business, Energy and Industrial Strategy",06/01/2021,Printing,Corporate Services - Commercial & Operations,Ethos Communication Solutions Ltd,374154,94.5,Scope Intelligence-printing,EC3V 1LT,VENDOR
"Department for Business, Energy and Industrial Strategy","Department for Business, Energy and Industrial Strategy",13/01/2021,Service Charges,Corporate Services - Commercial & Operations,Cabinet Office,375715,74568,Mf Devolved Admin-service Charges,FY1 9JN,WGA ONLY
"Department for Business, Energy and Industrial Strategy","Department for Business, Energy and Industrial Strategy",13/01/2021,Clearing Account   - Cost - Computer Equipment,Corporate Services - Commercial & Operations,Cabinet Office,375715,198978,Foxhound/Rosa-clearing Account   - Cost - Computer Equipment,FY1 9JN,WGA ONLY
"Department for Business, Energy and Industrial Strategy","Department for Business, Energy and Industrial Strategy",13/01/2021,Training & Skills - Consultancy,Corporate Services - Commercial & Operations,Hut 6 Security Ltd,375804,45164.8,Mf Devolved Admin-training & Skills - Consultancy,NP20 4NW,VENDOR
"Department for Business, Energy and Industrial Strategy","Department for Business, Energy and Industrial Strategy",19/01/2021,Guarding And Security Services,Corporate Services - Commercial & Operations,Hm Revenue And Customs,376277,363233.17,Mf Devolved Admin-guarding And Security Services,BN12 4XJ,WGA ONLY
"Department for Business, Energy and Industrial Strategy","Department for Business, Energy and Industrial Strategy",21/01/2021,It Services,Corporate Services - Commercial & Operations,Cabinet Office,376830,630043.2,Mf Devolved Admin-it Services,FY1 9JN,WGA ONLY
"Department for Business, Energy and Industrial Strategy","Department for Business, Energy and Industrial Strategy",25/01/2021,Recruitment Advice And Services,Corporate Services - Commercial & Operations,Cabinet Office,377035,5929.6,Mf Devolved Admin-recruitment Advice And Services,FY1 9JN,WGA ONLY
"Department for Business, Energy and Industrial Strategy","Department for Business, Energy and Industrial Strategy",27/01/2021,Guarding And Security Services,Corporate Services - Commercial & Operations,Swiss Post Solutions Ltd,377393,7278.49,Mf Devolved Admin-guarding And Security Services,TW10 6TP,VENDOR
"Department for Business, Energy and Industrial Strategy","Department for Business, Energy and Industrial Strategy",11/01/2021,Hire Of Interim Managers,Corporate Services - Commercial & Operations,Alexander Mann Solutions Ltd,374439,4003.56,Mf Devolved Admin-hire Of Interim Managers,EC2N 3AQ,VENDOR
"Department for Business, Energy and Industrial Strategy","Department for Business, Energy and Industrial Strategy",12/01/2021,Hire Of Interim Managers,Corporate Services - Commercial & Operations,Alexander Mann Solutions Ltd,374609,2402.14,Mf Devolved Admin-hire Of Interim Managers,EC2N 3AQ,VENDOR
"Department for Business, Energy and Industrial Strategy","Department for Business, Energy and Industrial Strategy",28/01/2021,Salaries - Seconded Uk Staff - Vat Recoverable,Corporate Services - Commercial & Operations,Cabinet Office,377633,1525,Mf Devolved Admin-salaries - Seconded Uk Staff - Vat Recoverable,FY5 3FW,WGA ONLY
"Department for Business, Energy and Industrial Strategy","Department for Business, Energy and Industrial Strategy",28/01/2021,Salaries - Seconded Uk Staff - Vat Recoverable,Corporate Services - Commercial & Operations,Cabinet Office,377638,1830,Mf Devolved Admin-salaries - Seconded Uk Staff - Vat Recoverable,FY5 3FW,WGA ONLY
"Department for Business, Energy and Industrial Strategy","Department for Business, Energy and Industrial Strategy",20/01/2021,Marketing And Media,Corporate Services - Communications,Kantar Uk Ltd,373904,28750,Eu Exit: Cpg Adm-marketing And Media,W5 1UA,VENDOR
"Department for Business, Energy and Industrial Strategy","Department for Business, Energy and Industrial Strategy",19/01/2021,Marketing And Media,Corporate Services - Communications,Kantar Uk Ltd,375926,28750,Eu Exit: Cpg Adm-marketing And Media,W5 1UA,VENDOR
"Department for Business, Energy and Industrial Strategy","Department for Business, Energy and Industrial Strategy",05/01/2021,Taxi Services Uk,Corporate Services - Communications,"Personal Expense, Name Withheld",373983,79.38,Mf Devolved Admin-taxi Services Uk,,EMPLOYEE
"Department for Business, Energy and Industrial Strategy","Department for Business, Energy and Industrial Strategy",06/01/2021,Stationery,Corporate Services - Communications,"Personal Expense, Name Withheld",374248,103.95,Mf Devolved Admin-stationery,,EMPLOYEE
"Department for Business, Energy and Industrial Strategy","Department for Business, Energy and Industrial Strategy",19/01/2021,Advertising,Corporate Services - Communications,Intelogy Ltd,374379,168.67,Mf Devolved Admin-advertising,TW16 7DY,VENDOR
"Department for Business, Energy and Industrial Strategy","Department for Business, Energy and Industrial Strategy",19/01/2021,Advertising,Corporate Services - Communications,Intelogy Ltd,374379,843.33,Mf Devolved Admin-advertising,TW16 7DY,VENDOR
"Department for Business, Energy and Industrial Strategy","Department for Business, Energy and Industrial Strategy",19/01/2021,Advertising,Corporate Services - Communications,Intelogy Ltd,374379,1012,Mf Devolved Admin-advertising,TW16 7DY,VENDOR
"Department for Business, Energy and Industrial Strategy","Department for Business, Energy and Industrial Strategy",11/01/2021,Exp - Miscellaneous Expenditure - Iexpenses,Corporate Services - Communications,"Personal Expense, Name Withheld",374782,17.79,Eu Exit Core Beis Staff: Corporate Services Adm-exp - Miscellaneous Expenditure - Iexpenses,,EMPLOYEE
"Department for Business, Energy and Industrial Strategy","Department for Business, Energy and Industrial Strategy",11/01/2021,Taxi Services Uk,Corporate Services - Communications,"Personal Expense, Name Withheld",374782,33.37,Eu Exit Core Beis Staff: Corporate Services Adm-taxi Services Uk,,EMPLOYEE
"Department for Business, Energy and Industrial Strategy","Department for Business, Energy and Industrial Strategy",14/01/2021,Taxi Services Uk,Corporate Services - Communications,"Personal Expense, Name Withheld",376020,89.87,Mf Devolved Admin-taxi Services Uk,,EMPLOYEE
"Department for Business, Energy and Industrial Strategy","Department for Business, Energy and Industrial Strategy",19/01/2021,Taxi Services Uk,Corporate Services - Communications,"Personal Expense, Name Withheld",376263,108.95,Mf Devolved Admin-taxi Services Uk,,EMPLOYEE
"Department for Business, Energy and Industrial Strategy","Department for Business, Energy and Industrial Strategy",21/01/2021,Taxi Services Uk,Corporate Services - Communications,"Personal Expense, Name Withheld",376777,52.41,Mf Devolved Admin-taxi Services Uk,,EMPLOYEE
"Department for Business, Energy and Industrial Strategy","Department for Business, Energy and Industrial Strategy",21/01/2021,Taxi Services Uk,Corporate Services - Communications,"Personal Expense, Name Withheld",376778,56.4,Mf Devolved Admin-taxi Services Uk,,EMPLOYEE
"Department for Business, Energy and Industrial Strategy","Department for Business, Energy and Industrial Strategy",22/01/2021,Exp - Miscellaneous Expenditure - Iexpenses,Corporate Services - Communications,"Personal Expense, Name Withheld",376925,11.99,Mf Devolved Admin-exp - Miscellaneous Expenditure - Iexpenses,,EMPLOYEE
"Department for Business, Energy and Industrial Strategy","Department for Business, Energy and Industrial Strategy",26/01/2021,Taxi Services Uk,Corporate Services - Communications,"Personal Expense, Name Withheld",377309,115.09,Mf Devolved Admin-taxi Services Uk,,EMPLOYEE
"Department for Business, Energy and Industrial Strategy","Department for Business, Energy and Industrial Strategy",26/01/2021,Publications,Corporate Services - Communications,Jones Yarrell Leadenhall (Menzies Distribution Ltd),377344,92.66,Mf Devolved Admin-publications,EH12 9DJ,VENDOR
"Department for Business, Energy and Industrial Strategy","Department for Business, Energy and Industrial Strategy",26/01/2021,Publications,Corporate Services - Communications,Jones Yarrell Leadenhall (Menzies Distribution Ltd),377345,193.33,Mf Devolved Admin-publications,EH12 9DJ,VENDOR
"Department for Business, Energy and Industrial Strategy","Department for Business, Energy and Industrial Strategy",27/01/2021,Taxi Services Uk,Corporate Services - Communications,"Personal Expense, Name Withheld",377430,51.02,Mf Devolved Admin-taxi Services Uk,,EMPLOYEE
"Department for Business, Energy and Industrial Strategy","Department for Business, Energy and Industrial Strategy",27/01/2021,Stationery,Corporate Services - Communications,"Personal Expense, Name Withheld",377448,304.43,Eu Exit Core Beis Staff: Corporate Services Adm-stationery,,EMPLOYEE
"Department for Business, Energy and Industrial Strategy","Department for Business, Energy and Industrial Strategy",29/01/2021,Stationery,Corporate Services - Communications,"Personal Expense, Name Withheld",377828,165,Mf Devolved Admin-stationery,,EMPLOYEE
"Department for Business, Energy and Industrial Strategy","Department for Business, Energy and Industrial Strategy",19/01/2021,Consultancy Expenditure,Corporate Services - Communications,Alexander Mann Solutions Ltd,373569,1134.11,Mf Devolved Admin-consultancy Expenditure,EC2N 3AQ,VENDOR
"Department for Business, Energy and Industrial Strategy","Department for Business, Energy and Industrial Strategy",20/01/2021,Marketing And Media,Corporate Services - Communications,Kantar Uk Ltd,373822,38458.33,Eu Exit:Busines Readiness-marketing And Media,W5 1UA,VENDOR
"Department for Business, Energy and Industrial Strategy","Department for Business, Energy and Industrial Strategy",20/01/2021,Consultancy Expenditure,Corporate Services - Communications,Alexander Mann Solutions Ltd,373895,2268.22,Mf Devolved Admin-consultancy Expenditure,EC2N 3AQ,VENDOR
"Department for Business, Energy and Industrial Strategy","Department for Business, Energy and Industrial Strategy",19/01/2021,Marketing And Media,Corporate Services - Communications,Kantar Uk Ltd,374568,38458.33,Eu Exit:Busines Readiness-marketing And Media,W5 1UA,VENDOR
"Department for Business, Energy and Industrial Strategy","Department for Business, Energy and Industrial Strategy",19/01/2021,Consultancy Expenditure,Corporate Services - Communications,Alexander Mann Solutions Ltd,374691,4158.4,Mf Devolved Admin-consultancy Expenditure,EC2N 3AQ,VENDOR
"Department for Business, Energy and Industrial Strategy","Department for Business, Energy and Industrial Strategy",20/01/2021,Consultancy Expenditure,Corporate Services - Communications,Alexander Mann Solutions Ltd,374694,756.07,Mf Devolved Admin-consultancy Expenditure,EC2N 3AQ,VENDOR
"Department for Business, Energy and Industrial Strategy","Department for Business, Energy and Industrial Strategy",20/01/2021,Purchase Of Intangible Software,Corporate Services - Communications,Granicus Llc,375907,469.75,Mf Devolved Admin-purchase Of Intangible Software,55102,VENDOR
"Department for Business, Energy and Industrial Strategy","Department for Business, Energy and Industrial Strategy",19/01/2021,Consultancy Expenditure,Corporate Services - Communications,Alexander Mann Solutions Ltd,376353,2268.22,Mf Devolved Admin-consultancy Expenditure,EC2N 3AQ,VENDOR
"Department for Business, Energy and Industrial Strategy","Department for Business, Energy and Industrial Strategy",20/01/2021,Consultancy Expenditure,Corporate Services - Communications,Alexander Mann Solutions Ltd,376355,1512.14,Mf Devolved Admin-consultancy Expenditure,EC2N 3AQ,VENDOR
"Department for Business, Energy and Industrial Strategy","Department for Business, Energy and Industrial Strategy",20/01/2021,Consultancy Expenditure,Corporate Services - Communications,Alexander Mann Solutions Ltd,376356,1890.18,Mf Devolved Admin-consultancy Expenditure,EC2N 3AQ,VENDOR
"Department for Business, Energy and Industrial Strategy","Department for Business, Energy and Industrial Strategy",26/01/2021,Consultancy Expenditure,Corporate Services - Communications,Alexander Mann Solutions Ltd,377129,1890.18,Mf Devolved Admin-consultancy Expenditure,EC2N 3AQ,VENDOR
"Department for Business, Energy and Industrial Strategy","Department for Business, Energy and Industrial Strategy",26/01/2021,Consultancy Expenditure,Corporate Services - Communications,Alexander Mann Solutions Ltd,377131,1890.18,Mf Devolved Admin-consultancy Expenditure,EC2N 3AQ,VENDOR
"Department for Business, Energy and Industrial Strategy","Department for Business, Energy and Industrial Strategy",26/01/2021,Consultancy Expenditure,Corporate Services - Communications,Alexander Mann Solutions Ltd,377133,1890.18,Mf Devolved Admin-consultancy Expenditure,EC2N 3AQ,VENDOR
"Department for Business, Energy and Industrial Strategy","Department for Business, Energy and Industrial Strategy",25/01/2021,Purchase Of Intangible Software,Corporate Services - Communications,Socialsignin Ltd,377210,13860,Mf Devolved Admin-purchase Of Intangible Software,B7 4BB,VENDOR
"Department for Business, Energy and Industrial Strategy","Department for Business, Energy and Industrial Strategy",28/01/2021,Purchase Of Intangible Software,Corporate Services - Communications,Granicus Llc,377646,469.75,Mf Devolved Admin-purchase Of Intangible Software,55102,VENDOR
"Department for Business, Energy and Industrial Strategy","Department for Business, Energy and Industrial Strategy",19/01/2021,It Services,Corporate Services - Communications,Company Net Ltd,374178,4000,Mf Devolved Admin-it Services,EH2 4JS,VENDOR
"Department for Business, Energy and Industrial Strategy","Department for Business, Energy and Industrial Strategy",13/01/2021,Stationery,Corporate Services - Communications,"Personal Expense, Name Withheld",375357,93.98,Mf Devolved Admin-stationery,,EMPLOYEE
"Department for Business, Energy and Industrial Strategy","Department for Business, Energy and Industrial Strategy",27/01/2021,Central Telecommunications Services,Corporate Services - Communications,British Telecommunications Plc (Bt),377373,45.46,Mf Devolved Admin-central Telecommunications Services,DH98 1BT,VENDOR
"Department for Business, Energy and Industrial Strategy","Department for Business, Energy and Industrial Strategy",06/01/2021,Stationery,Corporate Services - Dg Cs Office,"Personal Expense, Name Withheld",374260,230.95,Eu Exit Core Beis Staff: Corporate Services Adm-stationery,,EMPLOYEE
"Department for Business, Energy and Industrial Strategy","Department for Business, Energy and Industrial Strategy",06/01/2021,Clarity Travel Management,"Corporate Services - Digital, Data & Technology",Corporate Travel Management (North) Ltd,374231,22.6,Default-clarity Travel Management,BD1 5HQ,VENDOR
"Department for Business, Energy and Industrial Strategy","Department for Business, Energy and Industrial Strategy",06/01/2021,Clarity Travel Management,"Corporate Services - Digital, Data & Technology",Corporate Travel Management (North) Ltd,374231,12768.23,Default-clarity Travel Management,BD1 5HQ,VENDOR
"Department for Business, Energy and Industrial Strategy","Department for Business, Energy and Industrial Strategy",27/01/2021,Telecoms,"Corporate Services - Digital, Data & Technology",Daisy Communications Ltd,376966,42.67,Mf Devolved Admin-telecoms,BB9 5SR,VENDOR
"Department for Business, Energy and Industrial Strategy","Department for Business, Energy and Industrial Strategy",14/01/2021,Uksbs - Service Costs,"Corporate Services - Digital, Data & Technology",Uk Shared Business Services Limited,375938,94333.33,Eu Exit: Digital Adm-uksbs - Service Costs,SN2 1FF,VENDOR
"Department for Business, Energy and Industrial Strategy","Department for Business, Energy and Industrial Strategy",14/01/2021,Uksbs - Service Costs,"Corporate Services - Digital, Data & Technology",Uk Shared Business Services Limited,375938,546750,Mf Devolved Admin-uksbs - Service Costs,SN2 1FF,VENDOR
"Department for Business, Energy and Industrial Strategy","Department for Business, Energy and Industrial Strategy",28/01/2021,Uksbs - Service Costs,"Corporate Services - Digital, Data & Technology",Uk Shared Business Services Limited,377492,73542,Mf Devolved Admin-uksbs - Service Costs,SN2 1FF,VENDOR
"Department for Business, Energy and Industrial Strategy","Department for Business, Energy and Industrial Strategy",28/01/2021,Financial Advice And Services,"Corporate Services - Digital, Data & Technology",Pen-gage Ltd,377604,350,Mf Devolved Admin-financial Advice And Services,NE10 9UN,VENDOR
"Department for Business, Energy and Industrial Strategy","Department for Business, Energy and Industrial Strategy",28/01/2021,Financial Advice And Services,"Corporate Services - Digital, Data & Technology",Pen-gage Ltd,377605,125,Mf Devolved Admin-financial Advice And Services,NE10 9UN,VENDOR
"Department for Business, Energy and Industrial Strategy","Department for Business, Energy and Industrial Strategy",28/01/2021,Advertising,"Corporate Services - Digital, Data & Technology",Cabinet Office,373941,2235.85,Mf Devolved Admin-advertising,FY1 9JN,WGA ONLY
"Department for Business, Energy and Industrial Strategy","Department for Business, Energy and Industrial Strategy",13/01/2021,Purchase Of Intangible Software,"Corporate Services - Digital, Data & Technology",Boxxe Ltd,366004,-71803.15,Mf Devolved Admin-purchase Of Intangible Software,YO61 1ET,VENDOR
"Department for Business, Energy and Industrial Strategy","Department for Business, Energy and Industrial Strategy",19/01/2021,Purchase Of Intangible Software,"Corporate Services - Digital, Data & Technology",Boxxe Ltd,366475,48163.68,Mf Devolved Admin-purchase Of Intangible Software,YO61 1ET,VENDOR
"Department for Business, Energy and Industrial Strategy","Department for Business, Energy and Industrial Strategy",19/01/2021,Purchase Of Intangible Software,"Corporate Services - Digital, Data & Technology",Boxxe Ltd,366478,131625.84,Mf Devolved Admin-purchase Of Intangible Software,YO61 1ET,VENDOR
"Department for Business, Energy and Industrial Strategy","Department for Business, Energy and Industrial Strategy",19/01/2021,Purchase Of Intangible Software,"Corporate Services - Digital, Data & Technology",Boxxe Ltd,366481,48313.08,Mf Devolved Admin-purchase Of Intangible Software,YO61 1ET,VENDOR
"Department for Business, Energy and Industrial Strategy","Department for Business, Energy and Industrial Strategy",19/01/2021,Purchase Of Intangible Software,"Corporate Services - Digital, Data & Technology",Boxxe Ltd,366772,13646.63,Mf Devolved Admin-purchase Of Intangible Software,YO61 1ET,VENDOR
"Department for Business, Energy and Industrial Strategy","Department for Business, Energy and Industrial Strategy",19/01/2021,Purchase Of Intangible Software,"Corporate Services - Digital, Data & Technology",Boxxe Ltd,366775,10723.65,Mf Devolved Admin-purchase Of Intangible Software,YO61 1ET,VENDOR
"Department for Business, Energy and Industrial Strategy","Department for Business, Energy and Industrial Strategy",19/01/2021,Purchase Of Intangible Software,"Corporate Services - Digital, Data & Technology",Boxxe Ltd,366777,262.8,Mf Devolved Admin-purchase Of Intangible Software,YO61 1ET,VENDOR
"Department for Business, Energy and Industrial Strategy","Department for Business, Energy and Industrial Strategy",19/01/2021,Purchase Of Intangible Software,"Corporate Services - Digital, Data & Technology",Boxxe Ltd,366801,42.24,Mf Devolved Admin-purchase Of Intangible Software,YO61 1ET,VENDOR
"Department for Business, Energy and Industrial Strategy","Department for Business, Energy and Industrial Strategy",19/01/2021,Purchase Of Intangible Software,"Corporate Services - Digital, Data & Technology",Boxxe Ltd,366818,29736.58,Mf Devolved Admin-purchase Of Intangible Software,YO61 1ET,VENDOR
"Department for Business, Energy and Industrial Strategy","Department for Business, Energy and Industrial Strategy",21/01/2021,Clearing Account   - Cost - Computer Equipment,"Corporate Services - Digital, Data & Technology",Bechtle Direct Ltd,367557,10944.23,Digital Infrastructure And Maintenanc-clearing Account   - Cost - Computer Equipment,SN14 0GF,VENDOR
"Department for Business, Energy and Industrial Strategy","Department for Business, Energy and Industrial Strategy",21/01/2021,Clearing Account   - Cost - Computer Equipment,"Corporate Services - Digital, Data & Technology",Bechtle Direct Ltd,368381,171725.27,Digital Infrastructure And Maintenanc-clearing Account   - Cost - Computer Equipment,SN14 0GF,VENDOR
"Department for Business, Energy and Industrial Strategy","Department for Business, Energy and Industrial Strategy",19/01/2021,Purchase Of Intangible Software,"Corporate Services - Digital, Data & Technology",Boxxe Ltd,368852,10420.14,Mf Devolved Admin-purchase Of Intangible Software,YO61 1ET,VENDOR
"Department for Business, Energy and Industrial Strategy","Department for Business, Energy and Industrial Strategy",21/01/2021,Clearing Account   - Cost - Computer Equipment,"Corporate Services - Digital, Data & Technology",Bechtle Direct Ltd,369172,114448.7,Digital Infrastructure And Maintenanc-clearing Account   - Cost - Computer Equipment,SN14 0GF,VENDOR
"Department for Business, Energy and Industrial Strategy","Department for Business, Energy and Industrial Strategy",19/01/2021,Purchase Of Intangible Software,"Corporate Services - Digital, Data & Technology",Boxxe Ltd,369192,3591.53,Mf Devolved Admin-purchase Of Intangible Software,YO61 1ET,VENDOR
"Department for Business, Energy and Industrial Strategy","Department for Business, Energy and Industrial Strategy",19/01/2021,Purchase Of Intangible Software,"Corporate Services - Digital, Data & Technology",Boxxe Ltd,369196,675.35,Mf Devolved Admin-purchase Of Intangible Software,YO61 1ET,VENDOR
"Department for Business, Energy and Industrial Strategy","Department for Business, Energy and Industrial Strategy",19/01/2021,Purchase Of Intangible Software,"Corporate Services - Digital, Data & Technology",Boxxe Ltd,369484,1324.5,Mf Devolved Admin-purchase Of Intangible Software,YO61 1ET,VENDOR
"Department for Business, Energy and Industrial Strategy","Department for Business, Energy and Industrial Strategy",19/01/2021,Purchase Of Intangible Software,"Corporate Services - Digital, Data & Technology",Boxxe Ltd,369487,574.8,Mf Devolved Admin-purchase Of Intangible Software,YO61 1ET,VENDOR
"Department for Business, Energy and Industrial Strategy","Department for Business, Energy and Industrial Strategy",19/01/2021,Purchase Of Intangible Software,"Corporate Services - Digital, Data & Technology",Boxxe Ltd,369780,7363.52,Mf Devolved Admin-purchase Of Intangible Software,YO61 1ET,VENDOR
"Department for Business, Energy and Industrial Strategy","Department for Business, Energy and Industrial Strategy",19/01/2021,Purchase Of Intangible Software,"Corporate Services - Digital, Data & Technology",Boxxe Ltd,369782,48344.64,Mf Devolved Admin-purchase Of Intangible Software,YO61 1ET,VENDOR
"Department for Business, Energy and Industrial Strategy","Department for Business, Energy and Industrial Strategy",26/01/2021,Clearing Account   - Cost - Computer Equipment,"Corporate Services - Digital, Data & Technology",Bechtle Direct Ltd,370620,4292.44,Digital Infrastructure And Maintenanc-clearing Account   - Cost - Computer Equipment,SN14 0GF,VENDOR
"Department for Business, Energy and Industrial Strategy","Department for Business, Energy and Industrial Strategy",26/01/2021,Clearing Account   - Cost - Computer Equipment,"Corporate Services - Digital, Data & Technology",Bechtle Direct Ltd,370804,208.22,Digital Infrastructure And Maintenanc-clearing Account   - Cost - Computer Equipment,SN14 0GF,VENDOR
"Department for Business, Energy and Industrial Strategy","Department for Business, Energy and Industrial Strategy",27/01/2021,Outsourced Technical Support,"Corporate Services - Digital, Data & Technology",Sight And Sound Technology Ltd,373034,395,Mf Devolved Admin-outsourced Technical Support,NN3 6WD,VENDOR
"Department for Business, Energy and Industrial Strategy","Department for Business, Energy and Industrial Strategy",22/01/2021,Central Telecommunications Services,"Corporate Services - Digital, Data & Technology",British Telecommunications Plc (Bt),373206,45.47,Mf Devolved Admin-central Telecommunications Services,DH98 1BT,VENDOR
"Department for Business, Energy and Industrial Strategy","Department for Business, Energy and Industrial Strategy",22/01/2021,Central Telecommunications Services,"Corporate Services - Digital, Data & Technology",British Telecommunications Plc (Bt),373210,102.96,Mf Devolved Admin-central Telecommunications Services,DH98 1BT,VENDOR
"Department for Business, Energy and Industrial Strategy","Department for Business, Energy and Industrial Strategy",05/01/2021,Central Telecommunications Services,"Corporate Services - Digital, Data & Technology",Vodafone Ltd,373322,0.04,Mf Devolved Admin-central Telecommunications Services,RG14 2FN,VENDOR
"Department for Business, Energy and Industrial Strategy","Department for Business, Energy and Industrial Strategy",04/01/2021,Stationery,"Corporate Services - Digital, Data & Technology","Personal Expense, Name Withheld",373662,142,Mf Devolved Admin-stationery,,EMPLOYEE
"Department for Business, Energy and Industrial Strategy","Department for Business, Energy and Industrial Strategy",04/01/2021,Stationery,"Corporate Services - Digital, Data & Technology","Personal Expense, Name Withheld",373674,23.97,Mf Devolved Admin-stationery,,EMPLOYEE
"Department for Business, Energy and Industrial Strategy","Department for Business, Energy and Industrial Strategy",13/01/2021,Purchase Of Intangible Software,"Corporate Services - Digital, Data & Technology",Boxxe Ltd,373873,666.74,Mf Devolved Admin-purchase Of Intangible Software,YO61 1ET,VENDOR
"Department for Business, Energy and Industrial Strategy","Department for Business, Energy and Industrial Strategy",13/01/2021,Purchase Of Intangible Software,"Corporate Services - Digital, Data & Technology",Boxxe Ltd,373874,128380.1,Mf Devolved Admin-purchase Of Intangible Software,YO61 1ET,VENDOR
"Department for Business, Energy and Industrial Strategy","Department for Business, Energy and Industrial Strategy",21/01/2021,Central Telecommunications Services,"Corporate Services - Digital, Data & Technology",Centurylink Communications Uk Ltd,373957,221275.92,Mf Devolved Admin-central Telecommunications Services,EC1V 7EB,VENDOR
"Department for Business, Energy and Industrial Strategy","Department for Business, Energy and Industrial Strategy",06/01/2021,Exp - Miscellaneous Expenditure - Iexpenses,"Corporate Services - Digital, Data & Technology","Personal Expense, Name Withheld",374243,97.37,Mf Devolved Admin-exp - Miscellaneous Expenditure - Iexpenses,,EMPLOYEE
"Department for Business, Energy and Industrial Strategy","Department for Business, Energy and Industrial Strategy",06/01/2021,Other Travel,"Corporate Services - Digital, Data & Technology","Personal Expense, Name Withheld",374243,308,Mf Devolved Admin-other Travel,,EMPLOYEE
"Department for Business, Energy and Industrial Strategy","Department for Business, Energy and Industrial Strategy",13/01/2021,Purchase Of Intangible Software,"Corporate Services - Digital, Data & Technology",Boxxe Ltd,374294,3554.88,Mf Devolved Admin-purchase Of Intangible Software,YO61 1ET,VENDOR
"Department for Business, Energy and Industrial Strategy","Department for Business, Energy and Industrial Strategy",12/01/2021,Central Telecommunications Services,"Corporate Services - Digital, Data & Technology",Daisy Communications Ltd,374372,1349.5,Mf Devolved Admin-central Telecommunications Services,BB9 5SR,VENDOR
"Department for Business, Energy and Industrial Strategy","Department for Business, Energy and Industrial Strategy",08/01/2021,Purchase Of Intangible Software,"Corporate Services - Digital, Data & Technology",Specialist Computer Centres (Ssc),374417,3347.04,Mf Devolved Admin-purchase Of Intangible Software,B11 2LE,VENDOR
"Department for Business, Energy and Industrial Strategy","Department for Business, Energy and Industrial Strategy",19/01/2021,Purchase Of Intangible Software,"Corporate Services - Digital, Data & Technology",Boxxe Ltd,374424,28572.58,Mf Devolved Admin-purchase Of Intangible Software,YO61 1ET,VENDOR
"Department for Business, Energy and Industrial Strategy","Department for Business, Energy and Industrial Strategy",19/01/2021,Purchase Of Intangible Software,"Corporate Services - Digital, Data & Technology",Boxxe Ltd,374447,342090.43,Mf Devolved Admin-purchase Of Intangible Software,YO61 1ET,VENDOR
"Department for Business, Energy and Industrial Strategy","Department for Business, Energy and Industrial Strategy",11/01/2021,Central Telecommunications Services,"Corporate Services - Digital, Data & Technology",Vodafone Ltd,374723,2840.64,Mf Devolved Admin-central Telecommunications Services,RG14 2FN,VENDOR
"Department for Business, Energy and Industrial Strategy","Department for Business, Energy and Industrial Strategy",28/01/2021,It Services,"Corporate Services - Digital, Data & Technology",Fdm Group Ltd,374753,1820,Mf Devolved Admin-it Services,SE1 2QG,VENDOR
"Department for Business, Energy and Industrial Strategy","Department for Business, Energy and Industrial Strategy",28/01/2021,It Services,"Corporate Services - Digital, Data & Technology",Fdm Group Ltd,374756,2080,Mf Devolved Admin-it Services,SE1 2QG,VENDOR
"Department for Business, Energy and Industrial Strategy","Department for Business, Energy and Industrial Strategy",14/01/2021,It Services,"Corporate Services - Digital, Data & Technology",Fdm Group Ltd,374814,3787.5,Mf Devolved Admin-it Services,SE1 2QG,VENDOR
"Department for Business, Energy and Industrial Strategy","Department for Business, Energy and Industrial Strategy",22/01/2021,Central Telecommunications Services,"Corporate Services - Digital, Data & Technology",British Telecommunications Plc (Bt),374817,40,Mf Devolved Admin-central Telecommunications Services,DH98 1BT,VENDOR
"Department for Business, Energy and Industrial Strategy","Department for Business, Energy and Industrial Strategy",22/01/2021,Central Telecommunications Services,"Corporate Services - Digital, Data & Technology",British Telecommunications Plc (Bt),374817,67.07,Mf Devolved Admin-central Telecommunications Services,DH98 1BT,VENDOR
"Department for Business, Energy and Industrial Strategy","Department for Business, Energy and Industrial Strategy",14/01/2021,It Services,"Corporate Services - Digital, Data & Technology",Fdm Group Ltd,374894,5670,Mf Devolved Admin-it Services,SE1 2QG,VENDOR
"Department for Business, Energy and Industrial Strategy","Department for Business, Energy and Industrial Strategy",14/01/2021,It Services,"Corporate Services - Digital, Data & Technology",Fdm Group Ltd,374906,4860,Mf Devolved Admin-it Services,SE1 2QG,VENDOR
"Department for Business, Energy and Industrial Strategy","Department for Business, Energy and Industrial Strategy",14/01/2021,It Services,"Corporate Services - Digital, Data & Technology",Fdm Group Ltd,374922,4050,Mf Devolved Admin-it Services,SE1 2QG,VENDOR
"Department for Business, Energy and Industrial Strategy","Department for Business, Energy and Industrial Strategy",14/01/2021,It Services,"Corporate Services - Digital, Data & Technology",Fdm Group Ltd,374930,4590,Mf Devolved Admin-it Services,SE1 2QG,VENDOR
"Department for Business, Energy and Industrial Strategy","Department for Business, Energy and Industrial Strategy",12/01/2021,Ict Training,"Corporate Services - Digital, Data & Technology",Qa Ltd,375012,1062.5,Mf Devolved Admin-ict Training,SL1 1SG,VENDOR
"Department for Business, Energy and Industrial Strategy","Department for Business, Energy and Industrial Strategy",25/01/2021,Clearing Account   - Cost - Computer Equipment,"Corporate Services - Digital, Data & Technology",Bechtle Direct Ltd,375365,1975.07,Digital Infrastructure And Maintenanc-clearing Account   - Cost - Computer Equipment,SN14 0GF,VENDOR
"Department for Business, Energy and Industrial Strategy","Department for Business, Energy and Industrial Strategy",21/01/2021,Central Telecommunications Services,"Corporate Services - Digital, Data & Technology",Centurylink Communications Uk Ltd,375979,-345.92,Mf Devolved Admin-central Telecommunications Services,EC1V 7EB,VENDOR
"Department for Business, Energy and Industrial Strategy","Department for Business, Energy and Industrial Strategy",14/01/2021,Purchase Of Intangible Software,"Corporate Services - Digital, Data & Technology",Specialist Computer Centres (Ssc),375980,659.88,Mf Devolved Admin-purchase Of Intangible Software,B11 2LE,VENDOR
"Department for Business, Energy and Industrial Strategy","Department for Business, Energy and Industrial Strategy",27/01/2021,Central Telecommunications Services,"Corporate Services - Digital, Data & Technology",British Telecommunications Plc (Bt),375985,40,Mf Devolved Admin-central Telecommunications Services,DH98 1BT,VENDOR
"Department for Business, Energy and Industrial Strategy","Department for Business, Energy and Industrial Strategy",27/01/2021,Central Telecommunications Services,"Corporate Services - Digital, Data & Technology",British Telecommunications Plc (Bt),375985,67.07,Mf Devolved Admin-central Telecommunications Services,DH98 1BT,VENDOR
"Department for Business, Energy and Industrial Strategy","Department for Business, Energy and Industrial Strategy",27/01/2021,Central Telecommunications Services,"Corporate Services - Digital, Data & Technology",British Telecommunications Plc (Bt),375988,-110.06,Mf Devolved Admin-central Telecommunications Services,DH98 1BT,VENDOR
"Department for Business, Energy and Industrial Strategy","Department for Business, Energy and Industrial Strategy",27/01/2021,Central Telecommunications Services,"Corporate Services - Digital, Data & Technology",British Telecommunications Plc (Bt),375988,40,Mf Devolved Admin-central Telecommunications Services,DH98 1BT,VENDOR
"Department for Business, Energy and Industrial Strategy","Department for Business, Energy and Industrial Strategy",27/01/2021,Central Telecommunications Services,"Corporate Services - Digital, Data & Technology",British Telecommunications Plc (Bt),375988,194.13,Mf Devolved Admin-central Telecommunications Services,DH98 1BT,VENDOR
"Department for Business, Energy and Industrial Strategy","Department for Business, Energy and Industrial Strategy",27/01/2021,Central Telecommunications Services,"Corporate Services - Digital, Data & Technology",British Telecommunications Plc (Bt),375990,40,Mf Devolved Admin-central Telecommunications Services,DH98 1BT,VENDOR
"Department for Business, Energy and Industrial Strategy","Department for Business, Energy and Industrial Strategy",27/01/2021,Central Telecommunications Services,"Corporate Services - Digital, Data & Technology",British Telecommunications Plc (Bt),375990,67.07,Mf Devolved Admin-central Telecommunications Services,DH98 1BT,VENDOR
"Department for Business, Energy and Industrial Strategy","Department for Business, Energy and Industrial Strategy",25/01/2021,Clearing Account   - Cost - Computer Equipment,"Corporate Services - Digital, Data & Technology",Bechtle Direct Ltd,376432,-1975.07,Digital Infrastructure And Maintenanc-clearing Account   - Cost - Computer Equipment,SN14 0GF,VENDOR
"Department for Business, Energy and Industrial Strategy","Department for Business, Energy and Industrial Strategy",20/01/2021,Standard Desktop Plus Services,"Corporate Services - Digital, Data & Technology",Visionist Ltd,376712,270826,Mf Devolved Admin-standard Desktop Plus Services,BH24 3FG,VENDOR
"Department for Business, Energy and Industrial Strategy","Department for Business, Energy and Industrial Strategy",20/01/2021,Outsourced Technical Support,"Corporate Services - Digital, Data & Technology",Visionist Ltd,376713,306792,Mf Devolved Admin-outsourced Technical Support,BH24 3FG,VENDOR
"Department for Business, Energy and Industrial Strategy","Department for Business, Energy and Industrial Strategy",20/01/2021,Central Telecommunications Services,"Corporate Services - Digital, Data & Technology",Visionist Ltd,376714,101325,Mf Devolved Admin-central Telecommunications Services,BH24 3FG,VENDOR
"Department for Business, Energy and Industrial Strategy","Department for Business, Energy and Industrial Strategy",27/01/2021,Outsourced Technical Support,"Corporate Services - Digital, Data & Technology",Sight And Sound Technology Ltd,376763,395,Mf Devolved Admin-outsourced Technical Support,NN3 6WD,VENDOR
"Department for Business, Energy and Industrial Strategy","Department for Business, Energy and Industrial Strategy",21/01/2021,It Services,"Corporate Services - Digital, Data & Technology",Visionist Ltd,376769,237493.75,Mf Devolved Admin-it Services,BH24 3FG,VENDOR
"Department for Business, Energy and Industrial Strategy","Department for Business, Energy and Industrial Strategy",22/01/2021,It Hosting Services,"Corporate Services - Digital, Data & Technology",Amazon Web Services Emea Sarl,376860,-56937.24,Mf Devolved Admin-it Hosting Services,L-2338,VENDOR
"Department for Business, Energy and Industrial Strategy","Department for Business, Energy and Industrial Strategy",22/01/2021,It Hosting Services,"Corporate Services - Digital, Data & Technology",Amazon Web Services Emea Sarl,376860,108223.93,Mf Devolved Admin-it Hosting Services,L-2338,VENDOR
"Department for Business, Energy and Industrial Strategy","Department for Business, Energy and Industrial Strategy",22/01/2021,Application Support Service,"Corporate Services - Digital, Data & Technology",Cgi It Uk Ltd,376868,13157,Mf Devolved Admin-application Support Service,EC3M 3BY,VENDOR
"Department for Business, Energy and Industrial Strategy","Department for Business, Energy and Industrial Strategy",22/01/2021,Application Support Service,"Corporate Services - Digital, Data & Technology",Cgi It Uk Ltd,376869,29774.83,Mf Devolved Admin-application Support Service,EC3M 3BY,VENDOR
"Department for Business, Energy and Industrial Strategy","Department for Business, Energy and Industrial Strategy",22/01/2021,Application Support Service,"Corporate Services - Digital, Data & Technology",Inform Ltd T/A The Inform Team,376872,10404,Mf Devolved Admin-application Support Service,SE11 5SW,VENDOR
"Department for Business, Energy and Industrial Strategy","Department for Business, Energy and Industrial Strategy",22/01/2021,Application Support Service,"Corporate Services - Digital, Data & Technology",Cgi It Uk Ltd,376898,1266.36,Mf Devolved Admin-application Support Service,EC3M 3BY,VENDOR
"Department for Business, Energy and Industrial Strategy","Department for Business, Energy and Industrial Strategy",25/01/2021,It Infrastructure Support,"Corporate Services - Digital, Data & Technology",Oil And Gas Authority,377183,102105.74,Mf Devolved Admin-it Infrastructure Support,WC1B 3HF,VENDOR
"Department for Business, Energy and Industrial Strategy","Department for Business, Energy and Industrial Strategy",26/01/2021,Central Telecommunications Services,"Corporate Services - Digital, Data & Technology",Vodafone Ltd,377351,765.22,Mf Devolved Admin-central Telecommunications Services,RG14 9LE,VENDOR
"Department for Business, Energy and Industrial Strategy","Department for Business, Energy and Industrial Strategy",26/01/2021,Central Telecommunications Services,"Corporate Services - Digital, Data & Technology",Vodafone Ltd,377352,1038.8,Mf Devolved Admin-central Telecommunications Services,RG14 9LE,VENDOR
"Department for Business, Energy and Industrial Strategy","Department for Business, Energy and Industrial Strategy",26/01/2021,Central Telecommunications Services,"Corporate Services - Digital, Data & Technology",Vodafone Ltd,377353,13098.48,Mf Devolved Admin-central Telecommunications Services,RG14 9LE,VENDOR
"Department for Business, Energy and Industrial Strategy","Department for Business, Energy and Industrial Strategy",27/01/2021,Central Telecommunications Services,"Corporate Services - Digital, Data & Technology",Vodafone Ltd,377365,2002.69,Mf Devolved Admin-central Telecommunications Services,MK3 5JP,VENDOR
"Department for Business, Energy and Industrial Strategy","Department for Business, Energy and Industrial Strategy",27/01/2021,Central Telecommunications Services,"Corporate Services - Digital, Data & Technology",Vodafone Ltd,377366,907.62,Mf Devolved Admin-central Telecommunications Services,MK3 5JP,VENDOR
"Department for Business, Energy and Industrial Strategy","Department for Business, Energy and Industrial Strategy",27/01/2021,Central Telecommunications Services,"Corporate Services - Digital, Data & Technology",Vodafone Ltd,377367,258495.71,Mf Devolved Admin-central Telecommunications Services,RG14 2FN,VENDOR
"Department for Business, Energy and Industrial Strategy","Department for Business, Energy and Industrial Strategy",27/01/2021,It Infrastructure Support,"Corporate Services - Digital, Data & Technology",Fcdo Services,377399,5842.13,Mf Devolved Admin-it Infrastructure Support,MK19 7BH,WGA ONLY
"Department for Business, Energy and Industrial Strategy","Department for Business, Energy and Industrial Strategy",28/01/2021,Central Telecommunications Services,"Corporate Services - Digital, Data & Technology",Vodafone Ltd,377613,5752.93,Mf Devolved Admin-central Telecommunications Services,RG14 1LA,VENDOR
"Department for Business, Energy and Industrial Strategy","Department for Business, Energy and Industrial Strategy",05/01/2021,Hire Of Interim Managers,"Corporate Services - Digital, Data & Technology",Hays Specialist Recruitment Ltd,373363,3880.5,Mf Devolved Admin-hire Of Interim Managers,KT3 4QF,VENDOR
"Department for Business, Energy and Industrial Strategy","Department for Business, Energy and Industrial Strategy",05/01/2021,Hire Of Interim Managers,"Corporate Services - Digital, Data & Technology",Hays Specialist Recruitment Ltd,373366,3880.5,Mf Devolved Admin-hire Of Interim Managers,KT3 4QF,VENDOR
"Department for Business, Energy and Industrial Strategy","Department for Business, Energy and Industrial Strategy",05/01/2021,Hire Of Interim Managers,"Corporate Services - Digital, Data & Technology",Hays Specialist Recruitment Ltd,373367,3880.5,Mf Devolved Admin-hire Of Interim Managers,KT3 4QF,VENDOR
"Department for Business, Energy and Industrial Strategy","Department for Business, Energy and Industrial Strategy",05/01/2021,Hire Of Interim Managers,"Corporate Services - Digital, Data & Technology",Hays Specialist Recruitment Ltd,373403,3880.5,Mf Devolved Admin-hire Of Interim Managers,KT3 4QF,VENDOR
"Department for Business, Energy and Industrial Strategy","Department for Business, Energy and Industrial Strategy",06/01/2021,Ppm Consultancy,"Corporate Services - Digital, Data & Technology",Veracity Osi Uk Ltd,374162,18590,Mf Devolved Admin-ppm Consultancy,EC3R 8LJ,VENDOR
"Department for Business, Energy and Industrial Strategy","Department for Business, Energy and Industrial Strategy",29/01/2021,Other It Consultancy,"Corporate Services - Digital, Data & Technology",Cognitive Group Ltd,374191,-14220,Mf Devolved Admin-other It Consultancy,EC3R 7BB,VENDOR
"Department for Business, Energy and Industrial Strategy","Department for Business, Energy and Industrial Strategy",29/01/2021,Other It Consultancy,"Corporate Services - Digital, Data & Technology",Cognitive Group Ltd,374191,8590,Mf Devolved Admin-other It Consultancy,EC3R 7BB,VENDOR
"Department for Business, Energy and Industrial Strategy","Department for Business, Energy and Industrial Strategy",29/01/2021,Other It Consultancy,"Corporate Services - Digital, Data & Technology",Cognitive Group Ltd,374191,19850,Mf Devolved Admin-other It Consultancy,EC3R 7BB,VENDOR
"Department for Business, Energy and Industrial Strategy","Department for Business, Energy and Industrial Strategy",11/01/2021,Ppm Consultancy,"Corporate Services - Digital, Data & Technology",Triad Group Plc,374305,47715.25,Mf Devolved Admin-ppm Consultancy,GU7 1XE,VENDOR
"Department for Business, Energy and Industrial Strategy","Department for Business, Energy and Industrial Strategy",11/01/2021,Hire Of Interim Managers,"Corporate Services - Digital, Data & Technology",Hays Specialist Recruitment Ltd,374502,3880.5,Mf Devolved Admin-hire Of Interim Managers,KT3 4JQ,VENDOR
"Department for Business, Energy and Industrial Strategy","Department for Business, Energy and Industrial Strategy",11/01/2021,Other It Consultancy,"Corporate Services - Digital, Data & Technology",Albany Beck Consultancy Services Ltd,374576,12980,Mf Devolved Admin-other It Consultancy,HP4 2DF,VENDOR
"Department for Business, Energy and Industrial Strategy","Department for Business, Energy and Industrial Strategy",12/01/2021,Ppm Consultancy,"Corporate Services - Digital, Data & Technology",Veracity Osi Uk Ltd,375065,17745,Mf Devolved Admin-ppm Consultancy,EC3R 8LJ,VENDOR
"Department for Business, Energy and Industrial Strategy","Department for Business, Energy and Industrial Strategy",20/01/2021,Other It Consultancy,"Corporate Services - Digital, Data & Technology",Aiimi Ltd,375317,5940,Mf Devolved Admin-other It Consultancy,MK9 1FH,VENDOR
"Department for Business, Energy and Industrial Strategy","Department for Business, Energy and Industrial Strategy",20/01/2021,Hire Of Interim Managers,"Corporate Services - Digital, Data & Technology",Hays Specialist Recruitment Ltd,376127,3880.5,Mf Devolved Admin-hire Of Interim Managers,KT3 4JQ,VENDOR
"Department for Business, Energy and Industrial Strategy","Department for Business, Energy and Industrial Strategy",22/01/2021,Ppm Consultancy,"Corporate Services - Digital, Data & Technology",Veracity Osi Uk Ltd,376840,77958,Mf Devolved Admin-ppm Consultancy,EC3R 8LJ,VENDOR
"Department for Business, Energy and Industrial Strategy","Department for Business, Energy and Industrial Strategy",22/01/2021,Hire Of Interim Managers,"Corporate Services - Digital, Data & Technology",Hays Specialist Recruitment Ltd,376962,3880.5,Mf Devolved Admin-hire Of Interim Managers,KT3 4QF,VENDOR
"Department for Business, Energy and Industrial Strategy","Department for Business, Energy and Industrial Strategy",29/01/2021,Stationery,"Corporate Services - Digital, Data & Technology","Personal Expense, Name Withheld",377836,79.98,Mf Devolved Admin-stationery,,EMPLOYEE
"Department for Business, Energy and Industrial Strategy","Department for Business, Energy and Industrial Strategy",20/01/2021,Advertising,"Corporate Services - Digital, Data & Technology",Damn Fine Media Ltd,376668,1187.5,Mf Devolved Admin-advertising,SW9 7QD,VENDOR
"Department for Business, Energy and Industrial Strategy","Department for Business, Energy and Industrial Strategy",25/01/2021,Stationery,"Corporate Services - Digital, Data & Technology","Personal Expense, Name Withheld",377157,214.99,Mf Devolved Admin-stationery,,EMPLOYEE
"Department for Business, Energy and Industrial Strategy","Department for Business, Energy and Industrial Strategy",05/01/2021,Hire Of Interim Managers,"Corporate Services - Digital, Data & Technology",Alexander Mann Solutions Ltd,372776,2771.69,Eu Exit: Digital Adm-hire Of Interim Managers,EC2N 3AQ,VENDOR
"Department for Business, Energy and Industrial Strategy","Department for Business, Energy and Industrial Strategy",05/01/2021,Hire Of Interim Managers,"Corporate Services - Digital, Data & Technology",Alexander Mann Solutions Ltd,372786,3237.06,Eu Exit: Digital Adm-hire Of Interim Managers,EC2N 3AQ,VENDOR
"Department for Business, Energy and Industrial Strategy","Department for Business, Energy and Industrial Strategy",05/01/2021,Hire Of Interim Managers,"Corporate Services - Digital, Data & Technology",Alexander Mann Solutions Ltd,372787,3849.54,Eu Exit: Digital Adm-hire Of Interim Managers,EC2N 3AQ,VENDOR
"Department for Business, Energy and Industrial Strategy","Department for Business, Energy and Industrial Strategy",06/01/2021,Hire Of Interim Managers,"Corporate Services - Digital, Data & Technology",Alexander Mann Solutions Ltd,372788,3387.66,Eu Exit: Digital Adm-hire Of Interim Managers,EC2N 3AQ,VENDOR
"Department for Business, Energy and Industrial Strategy","Department for Business, Energy and Industrial Strategy",05/01/2021,Hire Of Interim Managers,"Corporate Services - Digital, Data & Technology",Alexander Mann Solutions Ltd,373440,2956.46,Eu Exit: Digital Adm-hire Of Interim Managers,EC2N 3AQ,VENDOR
"Department for Business, Energy and Industrial Strategy","Department for Business, Energy and Industrial Strategy",05/01/2021,Hire Of Interim Managers,"Corporate Services - Digital, Data & Technology",Alexander Mann Solutions Ltd,373451,3237.06,Eu Exit: Digital Adm-hire Of Interim Managers,EC2N 3AQ,VENDOR
"Department for Business, Energy and Industrial Strategy","Department for Business, Energy and Industrial Strategy",05/01/2021,Hire Of Interim Managers,"Corporate Services - Digital, Data & Technology",Alexander Mann Solutions Ltd,373453,3849.54,Eu Exit: Digital Adm-hire Of Interim Managers,EC2N 3AQ,VENDOR
"Department for Business, Energy and Industrial Strategy","Department for Business, Energy and Industrial Strategy",06/01/2021,Hire Of Interim Managers,"Corporate Services - Digital, Data & Technology",Alexander Mann Solutions Ltd,373458,3387.66,Eu Exit: Digital Adm-hire Of Interim Managers,EC2N 3AQ,VENDOR
"Department for Business, Energy and Industrial Strategy","Department for Business, Energy and Industrial Strategy",05/01/2021,Hire Of Interim Managers,"Corporate Services - Digital, Data & Technology",Alexander Mann Solutions Ltd,373827,1847.8,Eu Exit: Digital Adm-hire Of Interim Managers,EC2N 3AQ,VENDOR
"Department for Business, Energy and Industrial Strategy","Department for Business, Energy and Industrial Strategy",05/01/2021,Hire Of Interim Managers,"Corporate Services - Digital, Data & Technology",Alexander Mann Solutions Ltd,373828,1942.24,Eu Exit: Digital Adm-hire Of Interim Managers,EC2N 3AQ,VENDOR
"Department for Business, Energy and Industrial Strategy","Department for Business, Energy and Industrial Strategy",05/01/2021,Hire Of Interim Managers,"Corporate Services - Digital, Data & Technology",Alexander Mann Solutions Ltd,373829,2309.72,Eu Exit: Digital Adm-hire Of Interim Managers,EC2N 3AQ,VENDOR
"Department for Business, Energy and Industrial Strategy","Department for Business, Energy and Industrial Strategy",13/01/2021,Hire Of Interim Managers,"Corporate Services - Digital, Data & Technology",Alexander Mann Solutions Ltd,373830,12300.83,Eu Exit: Digital Adm-hire Of Interim Managers,EC2N 3AQ,VENDOR
"Department for Business, Energy and Industrial Strategy","Department for Business, Energy and Industrial Strategy",12/01/2021,Hire Of Interim Managers,"Corporate Services - Digital, Data & Technology",Alexander Mann Solutions Ltd,374602,3237.06,Eu Exit: Digital Adm-hire Of Interim Managers,EC2N 3AQ,VENDOR
"Department for Business, Energy and Industrial Strategy","Department for Business, Energy and Industrial Strategy",12/01/2021,Hire Of Interim Managers,"Corporate Services - Digital, Data & Technology",Alexander Mann Solutions Ltd,374605,2710.13,Eu Exit: Digital Adm-hire Of Interim Managers,EC2N 3AQ,VENDOR
"Department for Business, Energy and Industrial Strategy","Department for Business, Energy and Industrial Strategy",20/01/2021,Hire Of Interim Managers,"Corporate Services - Digital, Data & Technology",Alexander Mann Solutions Ltd,376186,2586.91,Eu Exit: Digital Adm-hire Of Interim Managers,EC2N 3AQ,VENDOR
"Department for Business, Energy and Industrial Strategy","Department for Business, Energy and Industrial Strategy",29/01/2021,Hire Of Interim Managers,"Corporate Services - Digital, Data & Technology",Alexander Mann Solutions Ltd,376212,3237.06,Eu Exit: Digital Adm-hire Of Interim Managers,EC2N 3AQ,VENDOR
"Department for Business, Energy and Industrial Strategy","Department for Business, Energy and Industrial Strategy",20/01/2021,Hire Of Interim Managers,"Corporate Services - Digital, Data & Technology",Alexander Mann Solutions Ltd,376222,3079.63,Eu Exit: Digital Adm-hire Of Interim Managers,EC2N 3AQ,VENDOR
"Department for Business, Energy and Industrial Strategy","Department for Business, Energy and Industrial Strategy",26/01/2021,Hire Of Interim Managers,"Corporate Services - Digital, Data & Technology",Alexander Mann Solutions Ltd,376995,2217.35,Eu Exit: Digital Adm-hire Of Interim Managers,EC2N 3AQ,VENDOR
"Department for Business, Energy and Industrial Strategy","Department for Business, Energy and Industrial Strategy",29/01/2021,Hire Of Interim Managers,"Corporate Services - Digital, Data & Technology",Alexander Mann Solutions Ltd,376997,3237.06,Eu Exit: Digital Adm-hire Of Interim Managers,EC2N 3AQ,VENDOR
"Department for Business, Energy and Industrial Strategy","Department for Business, Energy and Industrial Strategy",26/01/2021,Hire Of Interim Managers,"Corporate Services - Digital, Data & Technology",Alexander Mann Solutions Ltd,376998,3849.54,Eu Exit: Digital Adm-hire Of Interim Managers,EC2N 3AQ,VENDOR
"Department for Business, Energy and Industrial Strategy","Department for Business, Energy and Industrial Strategy",26/01/2021,Hire Of Interim Managers,"Corporate Services - Digital, Data & Technology",Alexander Mann Solutions Ltd,377000,4065.19,Eu Exit: Digital Adm-hire Of Interim Managers,EC2N 3AQ,VENDOR
"Department for Business, Energy and Industrial Strategy","Department for Business, Energy and Industrial Strategy",05/01/2021,Hire Of Agency Staff,"Corporate Services - Digital, Data & Technology",Alexander Mann Solutions Ltd,372813,677.71,Mf Devolved Admin-hire Of Agency Staff,EC2N 3AQ,VENDOR
"Department for Business, Energy and Industrial Strategy","Department for Business, Energy and Industrial Strategy",05/01/2021,Hire Of Agency Staff,"Corporate Services - Digital, Data & Technology",Alexander Mann Solutions Ltd,373495,677.71,Mf Devolved Admin-hire Of Agency Staff,EC2N 3AQ,VENDOR
"Department for Business, Energy and Industrial Strategy","Department for Business, Energy and Industrial Strategy",07/01/2021,International Subscriptions,"Corporate Services - Digital, Data & Technology",Lexisnexis (A Division Of Relx (Uk) Ltd),374147,-7154.4,Mf Devolved Admin-international Subscriptions,SM2 5AS,VENDOR
"Department for Business, Energy and Industrial Strategy","Department for Business, Energy and Industrial Strategy",07/01/2021,International Subscriptions,"Corporate Services - Digital, Data & Technology",Lexisnexis (A Division Of Relx (Uk) Ltd),374147,13116.4,Mf Devolved Admin-international Subscriptions,SM2 5AS,VENDOR
"Department for Business, Energy and Industrial Strategy","Department for Business, Energy and Industrial Strategy",06/01/2021,International Subscriptions,"Corporate Services - Digital, Data & Technology",Lexisnexis (A Division Of Relx (Uk) Ltd),374151,-7154.4,Mf Devolved Admin-international Subscriptions,SM2 5AS,VENDOR
"Department for Business, Energy and Industrial Strategy","Department for Business, Energy and Industrial Strategy",06/01/2021,International Subscriptions,"Corporate Services - Digital, Data & Technology",Lexisnexis (A Division Of Relx (Uk) Ltd),374151,13116.4,Mf Devolved Admin-international Subscriptions,SM2 5AS,VENDOR
"Department for Business, Energy and Industrial Strategy","Department for Business, Energy and Industrial Strategy",06/01/2021,Subsistence Uk,"Corporate Services - Digital, Data & Technology","Personal Expense, Name Withheld",374244,3.5,Mf Devolved Admin-subsistence Uk,,EMPLOYEE
"Department for Business, Energy and Industrial Strategy","Department for Business, Energy and Industrial Strategy",06/01/2021,Subsistence Uk,"Corporate Services - Digital, Data & Technology","Personal Expense, Name Withheld",374244,5,Mf Devolved Admin-subsistence Uk,,EMPLOYEE
"Department for Business, Energy and Industrial Strategy","Department for Business, Energy and Industrial Strategy",06/01/2021,Other Travel,"Corporate Services - Digital, Data & Technology","Personal Expense, Name Withheld",374244,5.2,Mf Devolved Admin-other Travel,,EMPLOYEE
"Department for Business, Energy and Industrial Strategy","Department for Business, Energy and Industrial Strategy",06/01/2021,Subsistence Uk,"Corporate Services - Digital, Data & Technology","Personal Expense, Name Withheld",374244,11.95,Mf Devolved Admin-subsistence Uk,,EMPLOYEE
"Department for Business, Energy and Industrial Strategy","Department for Business, Energy and Industrial Strategy",06/01/2021,Hotel & Accommodation Uk,"Corporate Services - Digital, Data & Technology","Personal Expense, Name Withheld",374244,46.2,Mf Devolved Admin-hotel & Accommodation Uk,,EMPLOYEE
"Department for Business, Energy and Industrial Strategy","Department for Business, Energy and Industrial Strategy",07/01/2021,Other It Consultancy,"Corporate Services - Digital, Data & Technology",Triad Group Plc,374300,17166.6,Mf Devolved Admin-other It Consultancy,GU7 1XE,VENDOR
"Department for Business, Energy and Industrial Strategy","Department for Business, Energy and Industrial Strategy",07/01/2021,Other It Consultancy,"Corporate Services - Digital, Data & Technology",Triad Group Plc,374301,12327,Mf Devolved Admin-other It Consultancy,GU7 1XE,VENDOR
"Department for Business, Energy and Industrial Strategy","Department for Business, Energy and Industrial Strategy",07/01/2021,Other It Consultancy,"Corporate Services - Digital, Data & Technology",Triad Group Plc,374302,7606.5,Mf Devolved Admin-other It Consultancy,GU7 1XE,VENDOR
"Department for Business, Energy and Industrial Strategy","Department for Business, Energy and Industrial Strategy",07/01/2021,Hr Training Education Consultancy,"Corporate Services - Digital, Data & Technology",Inform Ltd T/A The Inform Team,374351,5900,Mf Devolved Admin-hr Training Education Consultancy,SE11 5SW,VENDOR
"Department for Business, Energy and Industrial Strategy","Department for Business, Energy and Industrial Strategy",11/01/2021,Training And Development Expenditure,"Corporate Services - Digital, Data & Technology",Revolution Events Ltd,374730,1298,Mf Devolved Admin-training And Development Expenditure,TN2 4AG,VENDOR
"Department for Business, Energy and Industrial Strategy","Department for Business, Energy and Industrial Strategy",13/01/2021,Storage And Distribution,"Corporate Services - Digital, Data & Technology",Restore Plc,375351,8122.52,Mf Devolved Admin-storage And Distribution,RH1 5DY,VENDOR
"Department for Business, Energy and Industrial Strategy","Department for Business, Energy and Industrial Strategy",19/01/2021,Storage And Distribution,"Corporate Services - Digital, Data & Technology",Restore Plc,376060,8393.83,Mf Devolved Admin-storage And Distribution,RH1 5DY,VENDOR
"Department for Business, Energy and Industrial Strategy","Department for Business, Energy and Industrial Strategy",19/01/2021,Hire Of Agency Staff,"Corporate Services - Digital, Data & Technology",Alexander Mann Solutions Ltd,376231,847.14,Mf Devolved Admin-hire Of Agency Staff,EC2N 3AQ,VENDOR
"Department for Business, Energy and Industrial Strategy","Department for Business, Energy and Industrial Strategy",20/01/2021,Stationery,"Corporate Services - Digital, Data & Technology","Personal Expense, Name Withheld",376623,8.45,Mf Devolved Admin-stationery,,EMPLOYEE
"Department for Business, Energy and Industrial Strategy","Department for Business, Energy and Industrial Strategy",20/01/2021,Stationery,"Corporate Services - Digital, Data & Technology","Personal Expense, Name Withheld",376629,35.75,Mf Devolved Admin-stationery,,EMPLOYEE
"Department for Business, Energy and Industrial Strategy","Department for Business, Energy and Industrial Strategy",28/01/2021,Hire Of Agency Staff,"Corporate Services - Digital, Data & Technology",Alexander Mann Solutions Ltd,377010,847.14,Mf Devolved Admin-hire Of Agency Staff,EC2N 3AQ,VENDOR
"Department for Business, Energy and Industrial Strategy","Department for Business, Energy and Industrial Strategy",29/01/2021,Stationery,"Corporate Services - Digital, Data & Technology","Personal Expense, Name Withheld",377821,173.31,Mf Devolved Admin-stationery,,EMPLOYEE
"Department for Business, Energy and Industrial Strategy","Department for Business, Energy and Industrial Strategy",04/01/2021,Hire Of Interim Managers,"Corporate Services - Digital, Data & Technology",Alexander Mann Solutions Ltd,373473,3387.66,Mf Devolved Admin-hire Of Interim Managers,EC2N 3AQ,VENDOR
"Department for Business, Energy and Industrial Strategy","Department for Business, Energy and Industrial Strategy",04/01/2021,Hire Of Interim Managers,"Corporate Services - Digital, Data & Technology",Alexander Mann Solutions Ltd,373505,3849.54,Mf Devolved Admin-hire Of Interim Managers,EC2N 3AQ,VENDOR
"Department for Business, Energy and Industrial Strategy","Department for Business, Energy and Industrial Strategy",04/01/2021,Hire Of Interim Managers,"Corporate Services - Digital, Data & Technology",Alexander Mann Solutions Ltd,373506,4188.3,Mf Devolved Admin-hire Of Interim Managers,EC2N 3AQ,VENDOR
"Department for Business, Energy and Industrial Strategy","Department for Business, Energy and Industrial Strategy",07/01/2021,Hire Of Interim Managers,"Corporate Services - Digital, Data & Technology",Methods Business And Digital Technology Ltd,374203,17256.46,Mf Devolved Admin-hire Of Interim Managers,EC1N 8TS,VENDOR
"Department for Business, Energy and Industrial Strategy","Department for Business, Energy and Industrial Strategy",07/01/2021,Hire Of Interim Managers,"Corporate Services - Digital, Data & Technology",Methods Business And Digital Technology Ltd,374207,14791.25,Mf Devolved Admin-hire Of Interim Managers,EC1N 8TS,VENDOR
"Department for Business, Energy and Industrial Strategy","Department for Business, Energy and Industrial Strategy",08/01/2021,Hire Of Interim Managers,"Corporate Services - Digital, Data & Technology",Methods Business And Digital Technology Ltd,374310,11836.8,Mf Devolved Admin-hire Of Interim Managers,EC1A 4EN,VENDOR
"Department for Business, Energy and Industrial Strategy","Department for Business, Energy and Industrial Strategy",08/01/2021,Strategy Consultancy,"Corporate Services - Digital, Data & Technology",Veracity Osi Uk Ltd,374580,14365,Mf Devolved Admin-strategy Consultancy,EC3R 8LJ,VENDOR
"Department for Business, Energy and Industrial Strategy","Department for Business, Energy and Industrial Strategy",11/01/2021,Hire Of Agency Staff,"Corporate Services - Digital, Data & Technology",Alexander Mann Solutions Ltd,374612,1394.09,Mf Devolved Admin-hire Of Agency Staff,EC2N 3AQ,VENDOR
"Department for Business, Energy and Industrial Strategy","Department for Business, Energy and Industrial Strategy",14/01/2021,Contractor Expenditure,"Corporate Services - Digital, Data & Technology",Uk Shared Business Services Limited,375941,6589.18,Mf Devolved Admin-contractor Expenditure,SN2 1FF,VENDOR
"Department for Business, Energy and Industrial Strategy","Department for Business, Energy and Industrial Strategy",20/01/2021,Hire Of Interim Managers,"Corporate Services - Digital, Data & Technology",Methods Business And Digital Technology Ltd,376164,8548.8,Mf Devolved Admin-hire Of Interim Managers,EC1A 4EN,VENDOR
"Department for Business, Energy and Industrial Strategy","Department for Business, Energy and Industrial Strategy",19/01/2021,Hire Of Interim Managers,"Corporate Services - Digital, Data & Technology",Alexander Mann Solutions Ltd,376227,3387.66,Mf Devolved Admin-hire Of Interim Managers,EC2N 3AQ,VENDOR
"Department for Business, Energy and Industrial Strategy","Department for Business, Energy and Industrial Strategy",19/01/2021,Hire Of Interim Managers,"Corporate Services - Digital, Data & Technology",Alexander Mann Solutions Ltd,376238,3849.54,Mf Devolved Admin-hire Of Interim Managers,EC2N 3AQ,VENDOR
"Department for Business, Energy and Industrial Strategy","Department for Business, Energy and Industrial Strategy",19/01/2021,Hire Of Interim Managers,"Corporate Services - Digital, Data & Technology",Alexander Mann Solutions Ltd,376239,4188.3,Mf Devolved Admin-hire Of Interim Managers,EC2N 3AQ,VENDOR
"Department for Business, Energy and Industrial Strategy","Department for Business, Energy and Industrial Strategy",19/01/2021,Hire Of Interim Managers,"Corporate Services - Digital, Data & Technology",Alexander Mann Solutions Ltd,376244,4500,Mf Devolved Admin-hire Of Interim Managers,EC2N 3AQ,VENDOR
"Department for Business, Energy and Industrial Strategy","Department for Business, Energy and Industrial Strategy",25/01/2021,Hire Of Interim Managers,"Corporate Services - Digital, Data & Technology",Alexander Mann Solutions Ltd,377017,3849.54,Mf Devolved Admin-hire Of Interim Managers,EC2N 3AQ,VENDOR
"Department for Business, Energy and Industrial Strategy","Department for Business, Energy and Industrial Strategy",25/01/2021,Hire Of Interim Managers,"Corporate Services - Digital, Data & Technology",Alexander Mann Solutions Ltd,377018,4188.3,Mf Devolved Admin-hire Of Interim Managers,EC2N 3AQ,VENDOR
"Department for Business, Energy and Industrial Strategy","Department for Business, Energy and Industrial Strategy",25/01/2021,Hire Of Interim Managers,"Corporate Services - Digital, Data & Technology",Alexander Mann Solutions Ltd,377027,4500,Mf Devolved Admin-hire Of Interim Managers,EC2N 3AQ,VENDOR
"Department for Business, Energy and Industrial Strategy","Department for Business, Energy and Industrial Strategy",25/01/2021,Hire Of Interim Managers,"Corporate Services - Digital, Data & Technology",Alexander Mann Solutions Ltd,377143,3387.66,Mf Devolved Admin-hire Of Interim Managers,EC2N 3AQ,VENDOR
"Department for Business, Energy and Industrial Strategy","Department for Business, Energy and Industrial Strategy",14/01/2021,Utilisation Of Provisions - Purchase Of Goods & Services - Other,Corporate Services - Finance Directorate,Arthur D Harverd,376139,11908.4,Payment to assessor,N2 9NJ,VENDOR
"Department for Business, Energy and Industrial Strategy","Department for Business, Energy and Industrial Strategy",19/01/2021,Misc. Non Procurement Spend,Corporate Services - Finance Directorate,Angela Landau,376450,730.73,Mf Devolved Admin-misc. Non Procurement Spend,NW11 6NH,VENDOR
"Department for Business, Energy and Industrial Strategy","Department for Business, Energy and Industrial Strategy",19/01/2021,Utilisation Of Provisions - Purchase Of Goods & Services - Other,Corporate Services - Finance Directorate,Charles Barrington,376452,584.58,Payment to assessor,IP13 6NW,VENDOR
"Department for Business, Energy and Industrial Strategy","Department for Business, Energy and Industrial Strategy",19/01/2021,Utilisation Of Provisions - Purchase Of Goods & Services - Other,Corporate Services - Finance Directorate,Michael Posen,376453,-584.48,Payment to assessor,NW11 8AE,VENDOR
"Department for Business, Energy and Industrial Strategy","Department for Business, Energy and Industrial Strategy",19/01/2021,Utilisation Of Provisions - Purchase Of Goods & Services - Other,Corporate Services - Finance Directorate,Michael Posen,376453,1169.06,Payment to assessor,NW11 8AE,VENDOR
"Department for Business, Energy and Industrial Strategy","Department for Business, Energy and Industrial Strategy",19/01/2021,Utilisation Of Provisions - Purchase Of Goods & Services - Other,Corporate Services - Finance Directorate,Sally Friend,376454,584.58,Payment to assessor,NW3 6QA,VENDOR
"Department for Business, Energy and Industrial Strategy","Department for Business, Energy and Industrial Strategy",26/01/2021,Stationery,Corporate Services - Finance Directorate,"Personal Expense, Name Withheld",377314,15.81,Mf Devolved Admin-stationery,,EMPLOYEE
"Department for Business, Energy and Industrial Strategy","Department for Business, Energy and Industrial Strategy",26/01/2021,Utilisation Of Provisions - Purchase Of Goods & Services - Other,Corporate Services - Finance Directorate,Landmark Chambers,377368,420,Payment to assessor,EC4A 2HG,VENDOR
"Department for Business, Energy and Industrial Strategy","Department for Business, Energy and Industrial Strategy",29/01/2021,Misc. Non Procurement Spend,Corporate Services - Finance Directorate,Angela Landau,377745,-1169.16,Mf Devolved Admin-misc. Non Procurement Spend,NW11 6NH,VENDOR
"Department for Business, Energy and Industrial Strategy","Department for Business, Energy and Industrial Strategy",29/01/2021,Misc. Non Procurement Spend,Corporate Services - Finance Directorate,Angela Landau,377747,1266.59,Mf Devolved Admin-misc. Non Procurement Spend,NW11 6NH,VENDOR
"Department for Business, Energy and Industrial Strategy","Department for Business, Energy and Industrial Strategy",08/01/2021,Stationery,Corporate Services - Finance Directorate,"Personal Expense, Name Withheld",374527,119.96,Mf Devolved Admin-stationery,,EMPLOYEE
"Department for Business, Energy and Industrial Strategy","Department for Business, Energy and Industrial Strategy",19/01/2021,Recruitment Advice And Services,Corporate Services - Finance Directorate,Cabinet Office,376216,170,Mf Devolved Admin-recruitment Advice And Services,CF14 3UW,WGA ONLY
"Department for Business, Energy and Industrial Strategy","Department for Business, Energy and Industrial Strategy",06/01/2021,Stationery,Corporate Services - Finance Directorate,"Personal Expense, Name Withheld",374264,177.94,Mf Devolved Admin-stationery,,EMPLOYEE
"Department for Business, Energy and Industrial Strategy","Department for Business, Energy and Industrial Strategy",06/01/2021,Stationery,Corporate Services - Finance Directorate,"Personal Expense, Name Withheld",374265,66.94,Mf Devolved Admin-stationery,,EMPLOYEE
"Department for Business, Energy and Industrial Strategy","Department for Business, Energy and Industrial Strategy",06/01/2021,Professional Subscriptions,Corporate Services - Finance Directorate,"Personal Expense, Name Withheld",374265,258,Mf Devolved Admin-professional Subscriptions,,EMPLOYEE
"Department for Business, Energy and Industrial Strategy","Department for Business, Energy and Industrial Strategy",28/01/2021,Hire Of Interim Managers,Corporate Services - Finance Directorate,Allen Lane Ltd,377586,3939.84,Mf Devolved Admin-hire Of Interim Managers,BN11 2BW,VENDOR
"Department for Business, Energy and Industrial Strategy","Department for Business, Energy and Industrial Strategy",28/01/2021,Hire Of Interim Managers,Corporate Services - Finance Directorate,Allen Lane Ltd,377587,5377.68,Mf Devolved Admin-hire Of Interim Managers,BN11 2BW,VENDOR
"Department for Business, Energy and Industrial Strategy","Department for Business, Energy and Industrial Strategy",28/01/2021,Hire Of Interim Managers,Corporate Services - Finance Directorate,Allen Lane Ltd,377588,6914.16,Mf Devolved Admin-hire Of Interim Managers,BN11 2BW,VENDOR
"Department for Business, Energy and Industrial Strategy","Department for Business, Energy and Industrial Strategy",28/01/2021,Hire Of Interim Managers,Corporate Services - Finance Directorate,Allen Lane Ltd,377593,4627.2,Mf Devolved Admin-hire Of Interim Managers,BN11 2BW,VENDOR
"Department for Business, Energy and Industrial Strategy","Department for Business, Energy and Industrial Strategy",28/01/2021,Hire Of Interim Managers,Corporate Services - Finance Directorate,Allen Lane Ltd,377596,4395.84,Mf Devolved Admin-hire Of Interim Managers,BN11 2BW,VENDOR
"Department for Business, Energy and Industrial Strategy","Department for Business, Energy and Industrial Strategy",14/01/2021,Internal Audit Services,Corporate Services - Finance Directorate,Hm Treasury,375966,317500,Mf Devolved Admin-internal Audit Services,NR7 0HS,WGA ONLY
"Department for Business, Energy and Industrial Strategy","Department for Business, Energy and Industrial Strategy",06/01/2021,Legal Services And Advice Agency,Corporate Services - Finance Directorate,Gowling Wlg (Uk) Llp,374230,13500,Eu Exit: Legal Adm-legal Services And Advice Agency,B4 6WR,VENDOR
"Department for Business, Energy and Industrial Strategy","Department for Business, Energy and Industrial Strategy",06/01/2021,Legal Services And Advice Agency,Corporate Services - Finance Directorate,Gowling Wlg (Uk) Llp,374232,5492,Eu Exit: Legal Adm-legal Services And Advice Agency,B4 6WR,VENDOR
"Department for Business, Energy and Industrial Strategy","Department for Business, Energy and Industrial Strategy",11/01/2021,Legal Services And Advice Agency,Corporate Services - Finance Directorate,Gowling Wlg (Uk) Llp,374731,16147.8,Eu Exit: Legal Adm-legal Services And Advice Agency,B4 6WR,VENDOR
"Department for Business, Energy and Industrial Strategy","Department for Business, Energy and Industrial Strategy",12/01/2021,Legal Services And Advice Agency,Corporate Services - Finance Directorate,Gowling Wlg (Uk) Llp,375324,27663,Eu Exit: Legal Adm-legal Services And Advice Agency,B4 6WR,VENDOR
"Department for Business, Energy and Industrial Strategy","Department for Business, Energy and Industrial Strategy",19/01/2021,Legal Services And Advice Agency,Corporate Services - Finance Directorate,Gowling Wlg (Uk) Llp,376507,13500,Eu Exit: Legal Adm-legal Services And Advice Agency,B4 6WR,VENDOR
"Department for Business, Energy and Industrial Strategy","Department for Business, Energy and Industrial Strategy",20/01/2021,Legal Services And Advice Agency,Corporate Services - Finance Directorate,Gowling Wlg (Uk) Llp,376692,19448.3,Eu Exit: Legal Adm-legal Services And Advice Agency,B4 6WR,VENDOR
"Department for Business, Energy and Industrial Strategy","Department for Business, Energy and Industrial Strategy",04/01/2021,Clearing - Cost - Assets Under Construction - Internally Developed Software,Corporate Services - Finance Directorate,Alexander Mann Solutions Ltd,373435,4280.7,Finance Infrastructure And Maintenance-clearing - Cost - Assets Under Construction - Internally Developed Software,EC2N 3AQ,VENDOR
"Department for Business, Energy and Industrial Strategy","Department for Business, Energy and Industrial Strategy",05/01/2021,Hire Of Agency Staff,Corporate Services - Finance Directorate,Alexander Mann Solutions Ltd,373563,3079.62,Mf Devolved Admin-hire Of Agency Staff,EC2N 3AQ,VENDOR
"Department for Business, Energy and Industrial Strategy","Department for Business, Energy and Industrial Strategy",04/01/2021,Stationery,Corporate Services - Finance Directorate,"Personal Expense, Name Withheld",373655,227.17,Mf Devolved Admin-stationery,,EMPLOYEE
"Department for Business, Energy and Industrial Strategy","Department for Business, Energy and Industrial Strategy",07/01/2021,Hire Of Agency Staff,Corporate Services - Finance Directorate,Allen Lane Ltd,374221,3845.76,Mf Devolved Admin-hire Of Agency Staff,BN11 2BW,VENDOR
"Department for Business, Energy and Industrial Strategy","Department for Business, Energy and Industrial Strategy",07/01/2021,Hire Of Agency Staff,Corporate Services - Finance Directorate,Allen Lane Ltd,374223,3441.84,Mf Devolved Admin-hire Of Agency Staff,BN11 2BW,VENDOR
"Department for Business, Energy and Industrial Strategy","Department for Business, Energy and Industrial Strategy",07/01/2021,Hire Of Agency Staff,Corporate Services - Finance Directorate,Allen Lane Ltd,374225,5419.68,Mf Devolved Admin-hire Of Agency Staff,BN11 2BW,VENDOR
"Department for Business, Energy and Industrial Strategy","Department for Business, Energy and Industrial Strategy",07/01/2021,Professional Training,Corporate Services - Finance Directorate,"Personal Expense, Name Withheld",374400,190,Mf Devolved Admin-professional Training,,EMPLOYEE
"Department for Business, Energy and Industrial Strategy","Department for Business, Energy and Industrial Strategy",11/01/2021,Hire Of Agency Staff,Corporate Services - Finance Directorate,Allen Lane Ltd,374443,2790.72,Mf Devolved Admin-hire Of Agency Staff,BN11 2BW,VENDOR
"Department for Business, Energy and Industrial Strategy","Department for Business, Energy and Industrial Strategy",08/01/2021,Stationery,Corporate Services - Finance Directorate,"Personal Expense, Name Withheld",374551,249.51,Mf Devolved Admin-stationery,,EMPLOYEE
"Department for Business, Energy and Industrial Strategy","Department for Business, Energy and Industrial Strategy",11/01/2021,Clearing - Cost - Assets Under Construction - Internally Developed Software,Corporate Services - Finance Directorate,Alexander Mann Solutions Ltd,374586,4280.7,Finance Infrastructure And Maintenance-clearing - Cost - Assets Under Construction - Internally Developed Software,EC2N 3AQ,VENDOR
"Department for Business, Energy and Industrial Strategy","Department for Business, Energy and Industrial Strategy",12/01/2021,Hire Of Agency Staff,Corporate Services - Finance Directorate,Alexander Mann Solutions Ltd,374674,4311.47,Mf Devolved Admin-hire Of Agency Staff,EC2N 3AQ,VENDOR
"Department for Business, Energy and Industrial Strategy","Department for Business, Energy and Industrial Strategy",12/01/2021,Hire Of Agency Staff,Corporate Services - Finance Directorate,Alexander Mann Solutions Ltd,374676,5543.32,Mf Devolved Admin-hire Of Agency Staff,EC2N 3AQ,VENDOR
"Department for Business, Energy and Industrial Strategy","Department for Business, Energy and Industrial Strategy",12/01/2021,Stationery,Corporate Services - Finance Directorate,"Personal Expense, Name Withheld",375095,29.99,Mf Devolved Admin-stationery,,EMPLOYEE
"Department for Business, Energy and Industrial Strategy","Department for Business, Energy and Industrial Strategy",19/01/2021,Hire Of Agency Staff,Corporate Services - Finance Directorate,Allen Lane Ltd,375898,3871.2,Mf Devolved Admin-hire Of Agency Staff,BN11 2BW,VENDOR
"Department for Business, Energy and Industrial Strategy","Department for Business, Energy and Industrial Strategy",19/01/2021,Hire Of Agency Staff,Corporate Services - Finance Directorate,Allen Lane Ltd,375900,2403.6,Mf Devolved Admin-hire Of Agency Staff,BN11 2BW,VENDOR
"Department for Business, Energy and Industrial Strategy","Department for Business, Energy and Industrial Strategy",19/01/2021,Hire Of Agency Staff,Corporate Services - Finance Directorate,Allen Lane Ltd,375902,-5581.44,Mf Devolved Admin-hire Of Agency Staff,BN11 2BW,VENDOR
"Department for Business, Energy and Industrial Strategy","Department for Business, Energy and Industrial Strategy",19/01/2021,Hire Of Agency Staff,Corporate Services - Finance Directorate,Allen Lane Ltd,375902,11162.88,Mf Devolved Admin-hire Of Agency Staff,BN11 2BW,VENDOR
"Department for Business, Energy and Industrial Strategy","Department for Business, Energy and Industrial Strategy",19/01/2021,Hire Of Agency Staff,Corporate Services - Finance Directorate,Allen Lane Ltd,375905,3441.84,Mf Devolved Admin-hire Of Agency Staff,BN11 2BW,VENDOR
"Department for Business, Energy and Industrial Strategy","Department for Business, Energy and Industrial Strategy",19/01/2021,Stationery,Corporate Services - Finance Directorate,"Personal Expense, Name Withheld",376267,15.99,Mf Devolved Admin-stationery,,EMPLOYEE
"Department for Business, Energy and Industrial Strategy","Department for Business, Energy and Industrial Strategy",19/01/2021,Hire Of Agency Staff,Corporate Services - Finance Directorate,Alexander Mann Solutions Ltd,376333,3079.62,Mf Devolved Admin-hire Of Agency Staff,EC2N 3AQ,VENDOR
"Department for Business, Energy and Industrial Strategy","Department for Business, Energy and Industrial Strategy",22/01/2021,Hire Of Agency Staff,Corporate Services - Finance Directorate,Alexander Mann Solutions Ltd,376334,3079.62,Mf Devolved Admin-hire Of Agency Staff,EC2N 3AQ,VENDOR
"Department for Business, Energy and Industrial Strategy","Department for Business, Energy and Industrial Strategy",25/01/2021,Hire Of Agency Staff,Corporate Services - Finance Directorate,Allen Lane Ltd,376674,3871.2,Mf Devolved Admin-hire Of Agency Staff,BN11 2BW,VENDOR
"Department for Business, Energy and Industrial Strategy","Department for Business, Energy and Industrial Strategy",25/01/2021,Hire Of Agency Staff,Corporate Services - Finance Directorate,Allen Lane Ltd,376676,480.72,Mf Devolved Admin-hire Of Agency Staff,BN11 2BW,VENDOR
"Department for Business, Energy and Industrial Strategy","Department for Business, Energy and Industrial Strategy",25/01/2021,Hire Of Agency Staff,Corporate Services - Finance Directorate,Allen Lane Ltd,376677,3441.84,Mf Devolved Admin-hire Of Agency Staff,BN11 2BW,VENDOR
"Department for Business, Energy and Industrial Strategy","Department for Business, Energy and Industrial Strategy",25/01/2021,Hire Of Agency Staff,Corporate Services - Finance Directorate,Allen Lane Ltd,376680,4651.2,Mf Devolved Admin-hire Of Agency Staff,BN11 2BW,VENDOR
"Department for Business, Energy and Industrial Strategy","Department for Business, Energy and Industrial Strategy",28/01/2021,Clearing - Cost - Assets Under Construction - Internally Developed Software,Corporate Services - Finance Directorate,Alexander Mann Solutions Ltd,376994,8561.4,Finance Infrastructure And Maintenance-clearing - Cost - Assets Under Construction - Internally Developed Software,EC2N 3AQ,VENDOR
"Department for Business, Energy and Industrial Strategy","Department for Business, Energy and Industrial Strategy",26/01/2021,Hire Of Agency Staff,Corporate Services - Finance Directorate,Alexander Mann Solutions Ltd,377108,3079.62,Mf Devolved Admin-hire Of Agency Staff,EC2N 3AQ,VENDOR
"Department for Business, Energy and Industrial Strategy","Department for Business, Energy and Industrial Strategy",25/01/2021,Hire Of Agency Staff,Corporate Services - Finance Directorate,Alexander Mann Solutions Ltd,377110,3079.62,Mf Devolved Admin-hire Of Agency Staff,EC2N 3AQ,VENDOR
"Department for Business, Energy and Industrial Strategy","Department for Business, Energy and Industrial Strategy",27/01/2021,Stationery,Corporate Services - Finance Directorate,"Personal Expense, Name Withheld",377453,129,Mf Devolved Admin-stationery,,EMPLOYEE
"Department for Business, Energy and Industrial Strategy","Department for Business, Energy and Industrial Strategy",28/01/2021,Hire Of Agency Staff,Corporate Services - Finance Directorate,Allen Lane Ltd,377580,2403.6,Mf Devolved Admin-hire Of Agency Staff,BN11 2BW,VENDOR
"Department for Business, Energy and Industrial Strategy","Department for Business, Energy and Industrial Strategy",28/01/2021,Hire Of Agency Staff,Corporate Services - Finance Directorate,Allen Lane Ltd,377581,4651.2,Mf Devolved Admin-hire Of Agency Staff,BN11 2BW,VENDOR
"Department for Business, Energy and Industrial Strategy","Department for Business, Energy and Industrial Strategy",28/01/2021,Hire Of Agency Staff,Corporate Services - Finance Directorate,Allen Lane Ltd,377582,3441.84,Mf Devolved Admin-hire Of Agency Staff,BN11 2BW,VENDOR
"Department for Business, Energy and Industrial Strategy","Department for Business, Energy and Industrial Strategy",28/01/2021,Hire Of Agency Staff,Corporate Services - Finance Directorate,Allen Lane Ltd,377583,3871.2,Mf Devolved Admin-hire Of Agency Staff,BN11 2BW,VENDOR
"Department for Business, Energy and Industrial Strategy","Department for Business, Energy and Industrial Strategy",07/01/2021,Recruitment Advice And Services,Corporate Services - Finance Directorate,Systemsaccountants Ltd,374321,13327.2,Mf Devolved Admin-recruitment Advice And Services,LE16 7QU,VENDOR
"Department for Business, Energy and Industrial Strategy","Department for Business, Energy and Industrial Strategy",19/01/2021,It Software Licences And Software Maintenance,Corporate Services - Finance Directorate,Computacenter Plc,375950,201841.97,Mf Devolved Admin-it Software Licences And Software Maintenance,AL10 9TW,VENDOR
"Department for Business, Energy and Industrial Strategy","Department for Business, Energy and Industrial Strategy",22/01/2021,Payment-recovery Of Overpayment Re Exits,Corporate Services - Finance Directorate,Cabinet Office,376904,647.55,Default-payment-recovery Of Overpayment Re Exits,RG24 9NW,WGA ONLY
"Department for Business, Energy and Industrial Strategy","Department for Business, Energy and Industrial Strategy",22/01/2021,Payment-recovery Of Overpayment Re Exits,Corporate Services - Finance Directorate,Cabinet Office,376905,2242.74,Default-payment-recovery Of Overpayment Re Exits,RG24 9NW,WGA ONLY
"Department for Business, Energy and Industrial Strategy","Department for Business, Energy and Industrial Strategy",26/01/2021,Utilisation Of Provisions - Purchase Of Goods & Services - Other,Corporate Services - Finance Directorate,South Tyneside Council,377209,3234.43,Mf Devolved Admin-utilisation Of Provisions - Purchase Of Goods & Services - Other,NE32 3DP,WGA ONLY
"Department for Business, Energy and Industrial Strategy","Department for Business, Energy and Industrial Strategy",26/01/2021,Stationery,Corporate Services - Finance Directorate,"Personal Expense, Name Withheld",377303,13.99,Mf Devolved Admin-stationery,,EMPLOYEE
"Department for Business, Energy and Industrial Strategy","Department for Business, Energy and Industrial Strategy",27/01/2021,Stationery,Corporate Services - Finance Directorate,"Personal Expense, Name Withheld",377442,18.69,Mf Devolved Admin-stationery,,EMPLOYEE
"Department for Business, Energy and Industrial Strategy","Department for Business, Energy and Industrial Strategy",29/01/2021,Professional Subscriptions,Corporate Services - Finance Directorate,"Personal Expense, Name Withheld",377823,297,Mf Devolved Admin-professional Subscriptions,,EMPLOYEE
"Department for Business, Energy and Industrial Strategy","Department for Business, Energy and Industrial Strategy",13/01/2021,Misc. Non Procurement Spend,Corporate Services - Human Resources,Alexander Mann Solutions Ltd,372889,2898.24,Mf Devolved Admin-misc. Non Procurement Spend,EC2N 3AQ,VENDOR
"Department for Business, Energy and Industrial Strategy","Department for Business, Energy and Industrial Strategy",05/01/2021,Hire Of Interim Managers,Corporate Services - Human Resources,Allen Lane Ltd,373239,6432,Mf Devolved Admin-hire Of Interim Managers,SW1Y 6RJ,VENDOR
"Department for Business, Energy and Industrial Strategy","Department for Business, Energy and Industrial Strategy",13/01/2021,Misc. Non Procurement Spend,Corporate Services - Human Resources,Alexander Mann Solutions Ltd,373579,2898.24,Mf Devolved Admin-misc. Non Procurement Spend,EC2N 3AQ,VENDOR
"Department for Business, Energy and Industrial Strategy","Department for Business, Energy and Industrial Strategy",13/01/2021,Misc. Non Procurement Spend,Corporate Services - Human Resources,Alexander Mann Solutions Ltd,373869,2028.77,Mf Devolved Admin-misc. Non Procurement Spend,EC2N 3AQ,VENDOR
"Department for Business, Energy and Industrial Strategy","Department for Business, Energy and Industrial Strategy",07/01/2021,Hire Of Interim Managers,Corporate Services - Human Resources,Allen Lane Ltd,374222,3216,Mf Devolved Admin-hire Of Interim Managers,BN11 2BW,VENDOR
"Department for Business, Energy and Industrial Strategy","Department for Business, Energy and Industrial Strategy",06/01/2021,Stationery,Corporate Services - Human Resources,"Personal Expense, Name Withheld",374262,374.98,Mf Devolved Admin-stationery,,EMPLOYEE
"Department for Business, Energy and Industrial Strategy","Department for Business, Energy and Industrial Strategy",08/01/2021,Exp - Miscellaneous Expenditure - Iexpenses,Corporate Services - Human Resources,"Personal Expense, Name Withheld",374542,237.34,Mf Devolved Admin-exp - Miscellaneous Expenditure - Iexpenses,,EMPLOYEE
"Department for Business, Energy and Industrial Strategy","Department for Business, Energy and Industrial Strategy",08/01/2021,Professional Subscriptions,Corporate Services - Human Resources,"Personal Expense, Name Withheld",374553,190,Mf Devolved Admin-professional Subscriptions,,EMPLOYEE
"Department for Business, Energy and Industrial Strategy","Department for Business, Energy and Industrial Strategy",08/01/2021,Stationery,Corporate Services - Human Resources,"Personal Expense, Name Withheld",374554,29.97,Mf Devolved Admin-stationery,,EMPLOYEE
"Department for Business, Energy and Industrial Strategy","Department for Business, Energy and Industrial Strategy",08/01/2021,Other Travel,Corporate Services - Human Resources,"Personal Expense, Name Withheld",374560,48.94,Mf Devolved Admin-other Travel,,EMPLOYEE
"Department for Business, Energy and Industrial Strategy","Department for Business, Energy and Industrial Strategy",13/01/2021,Misc. Non Procurement Spend,Corporate Services - Human Resources,Alexander Mann Solutions Ltd,374643,869.47,Mf Devolved Admin-misc. Non Procurement Spend,EC2N 3AQ,VENDOR
"Department for Business, Energy and Industrial Strategy","Department for Business, Energy and Industrial Strategy",14/01/2021,Hire Of Interim Managers,Corporate Services - Human Resources,Allen Lane Ltd,375974,3216,Mf Devolved Admin-hire Of Interim Managers,BN11 2BW,VENDOR
"Department for Business, Energy and Industrial Strategy","Department for Business, Energy and Industrial Strategy",14/01/2021,Stationery,Corporate Services - Human Resources,"Personal Expense, Name Withheld",376021,115,Mf Devolved Admin-stationery,,EMPLOYEE
"Department for Business, Energy and Industrial Strategy","Department for Business, Energy and Industrial Strategy",19/01/2021,Misc. Non Procurement Spend,Corporate Services - Human Resources,Alexander Mann Solutions Ltd,376300,2898.24,Mf Devolved Admin-misc. Non Procurement Spend,EC2N 3AQ,VENDOR
"Department for Business, Energy and Industrial Strategy","Department for Business, Energy and Industrial Strategy",19/01/2021,Learning And Dev - Cs Skills,Corporate Services - Human Resources,Mycsp Ltd,376442,850,Mf Devolved Admin-learning And Dev - Cs Skills,SK3 0XN,VENDOR
"Department for Business, Energy and Industrial Strategy","Department for Business, Energy and Industrial Strategy",19/01/2021,Exp - Miscellaneous Expenditure - Iexpenses,Corporate Services - Human Resources,"Personal Expense, Name Withheld",376466,115.92,Mf Devolved Admin-exp - Miscellaneous Expenditure - Iexpenses,,EMPLOYEE
"Department for Business, Energy and Industrial Strategy","Department for Business, Energy and Industrial Strategy",19/01/2021,Stationery,Corporate Services - Human Resources,"Personal Expense, Name Withheld",376470,10.99,Mf Devolved Admin-stationery,,EMPLOYEE
"Department for Business, Energy and Industrial Strategy","Department for Business, Energy and Industrial Strategy",21/01/2021,Hire Of Interim Managers,Corporate Services - Human Resources,Allen Lane Ltd,376675,3216,Mf Devolved Admin-hire Of Interim Managers,BN11 2BW,VENDOR
"Department for Business, Energy and Industrial Strategy","Department for Business, Energy and Industrial Strategy",22/01/2021,Exp - Miscellaneous Expenditure - Iexpenses,Corporate Services - Human Resources,"Personal Expense, Name Withheld",376937,169.59,Mf Devolved Admin-exp - Miscellaneous Expenditure - Iexpenses,,EMPLOYEE
"Department for Business, Energy and Industrial Strategy","Department for Business, Energy and Industrial Strategy",26/01/2021,Misc. Non Procurement Spend,Corporate Services - Human Resources,Alexander Mann Solutions Ltd,377066,2898.24,Mf Devolved Admin-misc. Non Procurement Spend,EC2N 3AQ,VENDOR
"Department for Business, Energy and Industrial Strategy","Department for Business, Energy and Industrial Strategy",28/01/2021,Hire Of Interim Managers,Corporate Services - Human Resources,Allen Lane Ltd,377590,3216,Mf Devolved Admin-hire Of Interim Managers,BN11 2BW,VENDOR
"Department for Business, Energy and Industrial Strategy","Department for Business, Energy and Industrial Strategy",19/01/2021,Legal Services And Advice Agency,Corporate Services - Human Resources,Government Legal Department,376445,7192.9,Mf Non Devolved Admin-legal Services And Advice Agency,SW1H 9GL,VENDOR
"Department for Business, Energy and Industrial Strategy","Department for Business, Energy and Industrial Strategy",19/01/2021,Recruitment Advice And Services,Corporate Services - Human Resources,Cabinet Office,369308,77500,Mf Non Devolved Admin-recruitment Advice And Services,FY1 9JN,WGA ONLY
"Department for Business, Energy and Industrial Strategy","Department for Business, Energy and Industrial Strategy",04/01/2021,Recruitment Advice And Services,Corporate Services - Human Resources,Cabinet Office,372810,38200,Mf Non Devolved Admin-recruitment Advice And Services,FY1 9JN,WGA ONLY
"Department for Business, Energy and Industrial Strategy","Department for Business, Energy and Industrial Strategy",11/01/2021,Recruitment Advice And Services,Corporate Services - Human Resources,Cabinet Office,374509,-1952.75,Mf Non Devolved Admin-recruitment Advice And Services,FY1 9JN,WGA ONLY
"Department for Business, Energy and Industrial Strategy","Department for Business, Energy and Industrial Strategy",11/01/2021,Recruitment Advice And Services,Corporate Services - Human Resources,Cabinet Office,374509,1679,Mf Non Devolved Admin-recruitment Advice And Services,FY1 9JN,WGA ONLY
"Department for Business, Energy and Industrial Strategy","Department for Business, Energy and Industrial Strategy",11/01/2021,Recruitment Advice And Services,Corporate Services - Human Resources,Cabinet Office,374509,2226.5,Mf Non Devolved Admin-recruitment Advice And Services,FY1 9JN,WGA ONLY
"Department for Business, Energy and Industrial Strategy","Department for Business, Energy and Industrial Strategy",19/01/2021,Recruitment Advice And Services,Corporate Services - Human Resources,Cabinet Office,375998,-20939.23,Mf Non Devolved Admin-recruitment Advice And Services,FY1 9JN,WGA ONLY
"Department for Business, Energy and Industrial Strategy","Department for Business, Energy and Industrial Strategy",19/01/2021,Recruitment Advice And Services,Corporate Services - Human Resources,Cabinet Office,375998,38388.59,Mf Non Devolved Admin-recruitment Advice And Services,FY1 9JN,WGA ONLY
"Department for Business, Energy and Industrial Strategy","Department for Business, Energy and Industrial Strategy",29/01/2021,Recruitment Advice And Services,Corporate Services - Human Resources,Cabinet Office,377875,10468.5,Mf Non Devolved Admin-recruitment Advice And Services,FY1 9JN,WGA ONLY
"Department for Business, Energy and Industrial Strategy","Department for Business, Energy and Industrial Strategy",14/01/2021,Fast Stream - Full Cost,Corporate Services - Human Resources,Cabinet Office,375923,2400,Mf Non Devolved Admin-fast Stream - Full Cost,FY1 9JN,WGA ONLY
"Department for Business, Energy and Industrial Strategy","Department for Business, Energy and Industrial Strategy",21/01/2021,Stationery,Corporate Services - Human Resources,"Personal Expense, Name Withheld",376732,78,Default-stationery,,
"Department for Business, Energy and Industrial Strategy","Department for Business, Energy and Industrial Strategy",25/01/2021,Fast Stream - Full Cost,Corporate Services - Human Resources,Cabinet Office,377032,4941.11,Mf Non Devolved Admin-fast Stream - Full Cost,FY1 9JN,WGA ONLY
"Department for Business, Energy and Industrial Strategy","Department for Business, Energy and Industrial Strategy",08/01/2021,Consultancy Expenditure,Corporate Services - Human Resources,Qa Ltd,366297,395,Mf Non Devolved Admin-consultancy Expenditure,SL1 1SG,VENDOR
"Department for Business, Energy and Industrial Strategy","Department for Business, Energy and Industrial Strategy",08/01/2021,Consultancy Expenditure,Corporate Services - Human Resources,Qa Ltd,374501,-395,Mf Non Devolved Admin-consultancy Expenditure,SL1 1SG,VENDOR
"Department for Business, Energy and Industrial Strategy","Department for Business, Energy and Industrial Strategy",11/01/2021,Other Staff Welfare Costs,Corporate Services - Human Resources,Ase Corporate Eyecare Ltd,374422,46.8,Mf Non Devolved Admin-other Staff Welfare Costs,TN32 5RA,VENDOR
"Department for Business, Energy and Industrial Strategy","Department for Business, Energy and Industrial Strategy",19/01/2021,Misc. Non Procurement Spend,Corporate Services - Human Resources,Diversity Marketplace Ltd,376441,3000,Mf Non Devolved Admin-misc. Non Procurement Spend,MK4 4TY,VENDOR
"Department for Business, Energy and Industrial Strategy","Department for Business, Energy and Industrial Strategy",19/01/2021,Consultancy Expenditure,Corporate Services - Human Resources,Dods Parliamentary Communications Ltd,376444,600,Mf Non Devolved Admin-consultancy Expenditure,SE1 9SG,VENDOR
"Department for Business, Energy and Industrial Strategy","Department for Business, Energy and Industrial Strategy",22/01/2021,Learning And Dev - Cs Skills,Corporate Services - Human Resources,Kpmg Llp,364799,-5701,Mf Non Devolved Admin-learning And Dev - Cs Skills,WD17 1DE,VENDOR
"Department for Business, Energy and Industrial Strategy","Department for Business, Energy and Industrial Strategy",08/01/2021,Professional Training,Corporate Services - Human Resources,Qa Ltd,369852,999.35,Mf Non Devolved Admin-professional Training,LS12 6BD,VENDOR
"Department for Business, Energy and Industrial Strategy","Department for Business, Energy and Industrial Strategy",04/01/2021,Professional Subscriptions,Corporate Services - Human Resources,"Personal Expense, Name Withheld",373661,395,Mf Devolved Admin-professional Subscriptions,,EMPLOYEE
"Department for Business, Energy and Industrial Strategy","Department for Business, Energy and Industrial Strategy",04/01/2021,Professional Subscriptions,Corporate Services - Human Resources,"Personal Expense, Name Withheld",373663,297,Mf Devolved Admin-professional Subscriptions,,EMPLOYEE
"Department for Business, Energy and Industrial Strategy","Department for Business, Energy and Industrial Strategy",04/01/2021,Professional Subscriptions,Corporate Services - Human Resources,"Personal Expense, Name Withheld",373673,120,Mf Devolved Admin-professional Subscriptions,,EMPLOYEE
"Department for Business, Energy and Industrial Strategy","Department for Business, Energy and Industrial Strategy",05/01/2021,Professional Subscriptions,Corporate Services - Human Resources,"Personal Expense, Name Withheld",373975,120,Mf Devolved Admin-professional Subscriptions,,EMPLOYEE
"Department for Business, Energy and Industrial Strategy","Department for Business, Energy and Industrial Strategy",05/01/2021,Professional Subscriptions,Corporate Services - Human Resources,"Personal Expense, Name Withheld",373979,395,Mf Devolved Admin-professional Subscriptions,,EMPLOYEE
"Department for Business, Energy and Industrial Strategy","Department for Business, Energy and Industrial Strategy",05/01/2021,Professional Training,Corporate Services - Human Resources,"Personal Expense, Name Withheld",373981,681,Mf Devolved Admin-professional Training,,EMPLOYEE
"Department for Business, Energy and Industrial Strategy","Department for Business, Energy and Industrial Strategy",06/01/2021,Learning And Dev - Cs Skills,Corporate Services - Human Resources,Oxford Said Business School Ltd,374085,3813.33,Mf Non Devolved Admin-learning And Dev - Cs Skills,OX1 5NY,VENDOR
"Department for Business, Energy and Industrial Strategy","Department for Business, Energy and Industrial Strategy",06/01/2021,Professional Subscriptions,Corporate Services - Human Resources,"Personal Expense, Name Withheld",374238,332,Mf Devolved Admin-professional Subscriptions,,EMPLOYEE
"Department for Business, Energy and Industrial Strategy","Department for Business, Energy and Industrial Strategy",06/01/2021,Professional Subscriptions,Corporate Services - Human Resources,"Personal Expense, Name Withheld",374241,120,Mf Devolved Admin-professional Subscriptions,,EMPLOYEE
"Department for Business, Energy and Industrial Strategy","Department for Business, Energy and Industrial Strategy",06/01/2021,Professional Training,Corporate Services - Human Resources,"Personal Expense, Name Withheld",374242,185,Mf Devolved Admin-professional Training,,EMPLOYEE
"Department for Business, Energy and Industrial Strategy","Department for Business, Energy and Industrial Strategy",06/01/2021,Professional Subscriptions,Corporate Services - Human Resources,"Personal Expense, Name Withheld",374270,332,Mf Devolved Admin-professional Subscriptions,,EMPLOYEE
"Department for Business, Energy and Industrial Strategy","Department for Business, Energy and Industrial Strategy",06/01/2021,Professional Subscriptions,Corporate Services - Human Resources,"Personal Expense, Name Withheld",374275,112,Mf Devolved Admin-professional Subscriptions,,EMPLOYEE
"Department for Business, Energy and Industrial Strategy","Department for Business, Energy and Industrial Strategy",07/01/2021,Professional Training,Corporate Services - Human Resources,Iet Services Ltd T/A The Institute Of Engineering And Technology,374299,-1174.5,Mf Non Devolved Admin-professional Training,SG1 2SD,VENDOR
"Department for Business, Energy and Industrial Strategy","Department for Business, Energy and Industrial Strategy",07/01/2021,Professional Subscriptions,Corporate Services - Human Resources,"Personal Expense, Name Withheld",374405,395,Mf Devolved Admin-professional Subscriptions,,EMPLOYEE
"Department for Business, Energy and Industrial Strategy","Department for Business, Energy and Industrial Strategy",07/01/2021,Professional Subscriptions,Corporate Services - Human Resources,"Personal Expense, Name Withheld",374406,395,Mf Devolved Admin-professional Subscriptions,,EMPLOYEE
"Department for Business, Energy and Industrial Strategy","Department for Business, Energy and Industrial Strategy",07/01/2021,Professional Subscriptions,Corporate Services - Human Resources,"Personal Expense, Name Withheld",374410,258,Mf Devolved Admin-professional Subscriptions,,EMPLOYEE
"Department for Business, Energy and Industrial Strategy","Department for Business, Energy and Industrial Strategy",07/01/2021,Professional Training,Corporate Services - Human Resources,Iet Services Ltd T/A The Institute Of Engineering And Technology,374423,1903.5,Mf Non Devolved Admin-professional Training,SG1 2SD,VENDOR
"Department for Business, Energy and Industrial Strategy","Department for Business, Energy and Industrial Strategy",08/01/2021,Professional Subscriptions,Corporate Services - Human Resources,"Personal Expense, Name Withheld",374548,297,Mf Devolved Admin-professional Subscriptions,,EMPLOYEE
"Department for Business, Energy and Industrial Strategy","Department for Business, Energy and Industrial Strategy",08/01/2021,Professional Training,Corporate Services - Human Resources,Ismi Certification Ltd,374572,795,Mf Non Devolved Admin-professional Training,N1 7GU,VENDOR
"Department for Business, Energy and Industrial Strategy","Department for Business, Energy and Industrial Strategy",26/01/2021,Learning And Dev - Cs Skills,Corporate Services - Human Resources,Capita Business Services Ltd T/A Knowledgepool,374673,503.72,Mf Non Devolved Admin-learning And Dev - Cs Skills,DL1 9HN,VENDOR
"Department for Business, Energy and Industrial Strategy","Department for Business, Energy and Industrial Strategy",26/01/2021,Learning And Dev - Cs Skills,Corporate Services - Human Resources,Capita Business Services Ltd T/A Knowledgepool,374675,695.18,Mf Non Devolved Admin-learning And Dev - Cs Skills,DL1 9HN,VENDOR
"Department for Business, Energy and Industrial Strategy","Department for Business, Energy and Industrial Strategy",26/01/2021,Learning And Dev - Cs Skills,Corporate Services - Human Resources,Capita Business Services Ltd T/A Knowledgepool,374682,695.18,Mf Non Devolved Admin-learning And Dev - Cs Skills,DL1 9HN,VENDOR
"Department for Business, Energy and Industrial Strategy","Department for Business, Energy and Industrial Strategy",12/01/2021,Learning And Dev - Cs Skills,Corporate Services - Human Resources,Capita Business Services Ltd T/A Knowledgepool,374683,695.18,Mf Non Devolved Admin-learning And Dev - Cs Skills,DL1 9HN,VENDOR
"Department for Business, Energy and Industrial Strategy","Department for Business, Energy and Industrial Strategy",26/01/2021,Learning And Dev - Cs Skills,Corporate Services - Human Resources,Capita Business Services Ltd T/A Knowledgepool,374690,695.18,Mf Non Devolved Admin-learning And Dev - Cs Skills,DL1 9HN,VENDOR
"Department for Business, Energy and Industrial Strategy","Department for Business, Energy and Industrial Strategy",19/01/2021,Leadership & People Management,Corporate Services - Human Resources,Capita Business Services Ltd T/A Knowledgepool,374692,1390.36,Mf Non Devolved Admin-leadership & People Management,DL1 9HN,VENDOR
"Department for Business, Energy and Industrial Strategy","Department for Business, Energy and Industrial Strategy",26/01/2021,Learning And Dev - Cs Skills,Corporate Services - Human Resources,Capita Business Services Ltd T/A Knowledgepool,374695,-1390.36,Mf Non Devolved Admin-learning And Dev - Cs Skills,DL1 9HN,VENDOR
"Department for Business, Energy and Industrial Strategy","Department for Business, Energy and Industrial Strategy",26/01/2021,Learning And Dev - Cs Skills,Corporate Services - Human Resources,Capita Business Services Ltd T/A Knowledgepool,374695,2085.54,Mf Non Devolved Admin-learning And Dev - Cs Skills,DL1 9HN,VENDOR
"Department for Business, Energy and Industrial Strategy","Department for Business, Energy and Industrial Strategy",11/01/2021,Training And Development Expenditure,Corporate Services - Human Resources,Achilles Information Ltd,374737,10000.02,Mf Non Devolved Admin-training And Development Expenditure,OX14 4SH,VENDOR
"Department for Business, Energy and Industrial Strategy","Department for Business, Energy and Industrial Strategy",26/01/2021,Learning And Dev - Cs Skills,Corporate Services - Human Resources,Capita Business Services Ltd T/A Knowledgepool,374739,695.18,Mf Non Devolved Admin-learning And Dev - Cs Skills,DL1 9HN,VENDOR
"Department for Business, Energy and Industrial Strategy","Department for Business, Energy and Industrial Strategy",26/01/2021,Learning And Dev - Cs Skills,Corporate Services - Human Resources,Capita Business Services Ltd T/A Knowledgepool,374740,695.18,Mf Non Devolved Admin-learning And Dev - Cs Skills,DL1 9HN,VENDOR
"Department for Business, Energy and Industrial Strategy","Department for Business, Energy and Industrial Strategy",26/01/2021,Learning And Dev - Cs Skills,Corporate Services - Human Resources,Capita Business Services Ltd T/A Knowledgepool,374741,695.18,Mf Non Devolved Admin-learning And Dev - Cs Skills,DL1 9HN,VENDOR
"Department for Business, Energy and Industrial Strategy","Department for Business, Energy and Industrial Strategy",26/01/2021,Learning And Dev - Cs Skills,Corporate Services - Human Resources,Capita Business Services Ltd T/A Knowledgepool,374742,695.18,Mf Non Devolved Admin-learning And Dev - Cs Skills,DL1 9HN,VENDOR
"Department for Business, Energy and Industrial Strategy","Department for Business, Energy and Industrial Strategy",26/01/2021,Learning And Dev - Cs Skills,Corporate Services - Human Resources,Capita Business Services Ltd T/A Knowledgepool,374743,695.18,Mf Non Devolved Admin-learning And Dev - Cs Skills,DL1 9HN,VENDOR
"Department for Business, Energy and Industrial Strategy","Department for Business, Energy and Industrial Strategy",26/01/2021,Learning And Dev - Cs Skills,Corporate Services - Human Resources,Capita Business Services Ltd T/A Knowledgepool,374744,695.18,Mf Non Devolved Admin-learning And Dev - Cs Skills,DL1 9HN,VENDOR
"Department for Business, Energy and Industrial Strategy","Department for Business, Energy and Industrial Strategy",26/01/2021,Learning And Dev - Cs Skills,Corporate Services - Human Resources,Capita Business Services Ltd T/A Knowledgepool,374747,2085.54,Mf Non Devolved Admin-learning And Dev - Cs Skills,DL1 9HN,VENDOR
"Department for Business, Energy and Industrial Strategy","Department for Business, Energy and Industrial Strategy",26/01/2021,Learning And Dev - Cs Skills,Corporate Services - Human Resources,Capita Business Services Ltd T/A Knowledgepool,374748,695.18,Mf Non Devolved Admin-learning And Dev - Cs Skills,DL1 9HN,VENDOR
"Department for Business, Energy and Industrial Strategy","Department for Business, Energy and Industrial Strategy",26/01/2021,Learning And Dev - Cs Skills,Corporate Services - Human Resources,Capita Business Services Ltd T/A Knowledgepool,374749,695.18,Mf Non Devolved Admin-learning And Dev - Cs Skills,DL1 9HN,VENDOR
"Department for Business, Energy and Industrial Strategy","Department for Business, Energy and Industrial Strategy",26/01/2021,Learning And Dev - Cs Skills,Corporate Services - Human Resources,Capita Business Services Ltd T/A Knowledgepool,374750,695.18,Mf Non Devolved Admin-learning And Dev - Cs Skills,DL1 9HN,VENDOR
"Department for Business, Energy and Industrial Strategy","Department for Business, Energy and Industrial Strategy",11/01/2021,Professional Subscriptions,Corporate Services - Human Resources,"Personal Expense, Name Withheld",374767,112,Mf Devolved Admin-professional Subscriptions,,EMPLOYEE
"Department for Business, Energy and Industrial Strategy","Department for Business, Energy and Industrial Strategy",11/01/2021,Professional Subscriptions,Corporate Services - Human Resources,"Personal Expense, Name Withheld",374774,258,Mf Devolved Admin-professional Subscriptions,,EMPLOYEE
"Department for Business, Energy and Industrial Strategy","Department for Business, Energy and Industrial Strategy",11/01/2021,Professional Subscriptions,Corporate Services - Human Resources,"Personal Expense, Name Withheld",374777,297,Mf Devolved Admin-professional Subscriptions,,EMPLOYEE
"Department for Business, Energy and Industrial Strategy","Department for Business, Energy and Industrial Strategy",11/01/2021,Learning And Dev - Cs Skills,Corporate Services - Human Resources,The Stationery Office Ltd,374834,900,Mf Non Devolved Admin-learning And Dev - Cs Skills,NR3 1QZ,VENDOR
"Department for Business, Energy and Industrial Strategy","Department for Business, Energy and Industrial Strategy",12/01/2021,Training And Development Expenditure,Corporate Services - Human Resources,City University London,375058,3750,Mf Non Devolved Admin-training And Development Expenditure,EC1V 0HB,VENDOR
"Department for Business, Energy and Industrial Strategy","Department for Business, Energy and Industrial Strategy",12/01/2021,Professional Subscriptions,Corporate Services - Human Resources,"Personal Expense, Name Withheld",375099,354.66,Mf Devolved Admin-professional Subscriptions,,EMPLOYEE
"Department for Business, Energy and Industrial Strategy","Department for Business, Energy and Industrial Strategy",13/01/2021,Training And Development Expenditure,Corporate Services - Human Resources,Operational Research Society,375457,625,Mf Non Devolved Admin-training And Development Expenditure,B1 2RX,VENDOR
"Department for Business, Energy and Industrial Strategy","Department for Business, Energy and Industrial Strategy",13/01/2021,Training And Development Expenditure,Corporate Services - Human Resources,Operational Research Society,375482,4791.8,Mf Non Devolved Admin-training And Development Expenditure,B1 2RX,VENDOR
"Department for Business, Energy and Industrial Strategy","Department for Business, Energy and Industrial Strategy",14/01/2021,Ppm (Project & Programme Management),Corporate Services - Human Resources,Ilx Group Plc,375760,210,Mf Non Devolved Admin-ppm (Project & Programme Management),RG12 1WA,VENDOR
"Department for Business, Energy and Industrial Strategy","Department for Business, Energy and Industrial Strategy",14/01/2021,Training And Development Expenditure,Corporate Services - Human Resources,Lsr Training & Development Ltd,375796,740,Mf Non Devolved Admin-training And Development Expenditure,YO42 4RE,VENDOR
"Department for Business, Energy and Industrial Strategy","Department for Business, Energy and Industrial Strategy",13/01/2021,Professional Subscriptions,Corporate Services - Human Resources,"Personal Expense, Name Withheld",375864,297,Mf Devolved Admin-professional Subscriptions,,EMPLOYEE
"Department for Business, Energy and Industrial Strategy","Department for Business, Energy and Industrial Strategy",13/01/2021,Professional Subscriptions,Corporate Services - Human Resources,"Personal Expense, Name Withheld",375872,258,Mf Devolved Admin-professional Subscriptions,,EMPLOYEE
"Department for Business, Energy and Industrial Strategy","Department for Business, Energy and Industrial Strategy",13/01/2021,Professional Subscriptions,Corporate Services - Human Resources,"Personal Expense, Name Withheld",375886,258,Mf Devolved Admin-professional Subscriptions,,EMPLOYEE
"Department for Business, Energy and Industrial Strategy","Department for Business, Energy and Industrial Strategy",14/01/2021,Learning And Dev - Cs Skills,Corporate Services - Human Resources,Kpmg Llp,375908,2509,Mf Non Devolved Admin-learning And Dev - Cs Skills,E14 5GL,VENDOR
"Department for Business, Energy and Industrial Strategy","Department for Business, Energy and Industrial Strategy",25/01/2021,Learning And Dev - Cs Skills,Corporate Services - Human Resources,Escal Institute Of Advanced Technologies T/A Sans Institute,375914,5721.16,Mf Non Devolved Admin-learning And Dev - Cs Skills,20852,VENDOR
"Department for Business, Energy and Industrial Strategy","Department for Business, Energy and Industrial Strategy",14/01/2021,Training And Development Expenditure,Corporate Services - Human Resources,Open Data Institute (Odi),375919,245,Mf Non Devolved Admin-training And Development Expenditure,EC2A 4JE,VENDOR
"Department for Business, Energy and Industrial Strategy","Department for Business, Energy and Industrial Strategy",14/01/2021,Training And Development Expenditure,Corporate Services - Human Resources,Royal Academy Of Engineering Rae,375921,2200,Mf Non Devolved Admin-training And Development Expenditure,SW1Y 5DG,VENDOR
"Department for Business, Energy and Industrial Strategy","Department for Business, Energy and Industrial Strategy",14/01/2021,Training And Development Expenditure,Corporate Services - Human Resources,Eml Learning Ltd,375970,490,Mf Non Devolved Admin-training And Development Expenditure,LS1 9PX,VENDOR
"Department for Business, Energy and Industrial Strategy","Department for Business, Energy and Industrial Strategy",14/01/2021,Training And Development Expenditure,Corporate Services - Human Resources,Eml Learning Ltd,375972,490,Mf Non Devolved Admin-training And Development Expenditure,LS1 9PX,VENDOR
"Department for Business, Energy and Industrial Strategy","Department for Business, Energy and Industrial Strategy",19/01/2021,Professional Training,Corporate Services - Human Resources,Informa Connect Limited,375975,5995,Mf Non Devolved Admin-professional Training,CO3 3LP,VENDOR
"Department for Business, Energy and Industrial Strategy","Department for Business, Energy and Industrial Strategy",14/01/2021,Training And Development Expenditure,Corporate Services - Human Resources,The University Of Manchester,376000,7500,Mf Non Devolved Admin-training And Development Expenditure,M13 9PL,VENDOR
"Department for Business, Energy and Industrial Strategy","Department for Business, Energy and Industrial Strategy",14/01/2021,Professional Subscriptions,Corporate Services - Human Resources,"Personal Expense, Name Withheld",376009,495,Mf Devolved Admin-professional Subscriptions,,EMPLOYEE
"Department for Business, Energy and Industrial Strategy","Department for Business, Energy and Industrial Strategy",19/01/2021,Learning And Dev - Cs Skills,Corporate Services - Human Resources,Kpmg Llp,376207,1634,Mf Non Devolved Admin-learning And Dev - Cs Skills,E14 5GL,VENDOR
"Department for Business, Energy and Industrial Strategy","Department for Business, Energy and Industrial Strategy",19/01/2021,Learning And Dev - Cs Skills,Corporate Services - Human Resources,Kpmg Llp,376209,1634,Mf Non Devolved Admin-learning And Dev - Cs Skills,E14 5GL,VENDOR
"Department for Business, Energy and Industrial Strategy","Department for Business, Energy and Industrial Strategy",19/01/2021,Professional Training,Corporate Services - Human Resources,"Personal Expense, Name Withheld",376258,289,Mf Devolved Admin-professional Training,,EMPLOYEE
"Department for Business, Energy and Industrial Strategy","Department for Business, Energy and Industrial Strategy",19/01/2021,Professional Subscriptions,Corporate Services - Human Resources,"Personal Expense, Name Withheld",376260,395,Mf Devolved Admin-professional Subscriptions,,EMPLOYEE
"Department for Business, Energy and Industrial Strategy","Department for Business, Energy and Industrial Strategy",26/01/2021,Learning And Dev - Cs Skills,Corporate Services - Human Resources,Cabinet Office,376309,21405.38,Mf Non Devolved Admin-learning And Dev - Cs Skills,FY5 3FW,WGA ONLY
"Department for Business, Energy and Industrial Strategy","Department for Business, Energy and Industrial Strategy",19/01/2021,Learning And Dev - Cs Skills,Corporate Services - Human Resources,Capita Business Services Ltd T/A Knowledgepool,376336,12988.01,Mf Non Devolved Admin-learning And Dev - Cs Skills,DL1 9HN,VENDOR
"Department for Business, Energy and Industrial Strategy","Department for Business, Energy and Industrial Strategy",19/01/2021,Learning And Dev - Cs Skills,Corporate Services - Human Resources,Capita Business Services Ltd T/A Knowledgepool,376338,12988.01,Mf Non Devolved Admin-learning And Dev - Cs Skills,DL1 9HN,VENDOR
"Department for Business, Energy and Industrial Strategy","Department for Business, Energy and Industrial Strategy",19/01/2021,Learning And Dev - Cs Skills,Corporate Services - Human Resources,Capita Business Services Ltd T/A Knowledgepool,376340,12988.01,Mf Non Devolved Admin-learning And Dev - Cs Skills,DL1 9HN,VENDOR
"Department for Business, Energy and Industrial Strategy","Department for Business, Energy and Industrial Strategy",19/01/2021,Learning And Dev - Cs Skills,Corporate Services - Human Resources,Capita Business Services Ltd T/A Knowledgepool,376342,12988.01,Mf Non Devolved Admin-learning And Dev - Cs Skills,DL1 9HN,VENDOR
"Department for Business, Energy and Industrial Strategy","Department for Business, Energy and Industrial Strategy",19/01/2021,Finance Training,Corporate Services - Human Resources,Lexisnexis (A Division Of Relx (Uk) Ltd),376346,347.22,Mf Devolved Admin-finance Training,SM2 5AS,VENDOR
"Department for Business, Energy and Industrial Strategy","Department for Business, Energy and Industrial Strategy",19/01/2021,Finance Training,Corporate Services - Human Resources,Lexisnexis (A Division Of Relx (Uk) Ltd),376346,1688.88,Mf Devolved Admin-finance Training,SM2 5AS,VENDOR
"Department for Business, Energy and Industrial Strategy","Department for Business, Energy and Industrial Strategy",19/01/2021,Learning And Dev - Cs Skills,Corporate Services - Human Resources,Gbrw Learning Ltd,376363,4896,Mf Non Devolved Admin-learning And Dev - Cs Skills,EC2M 1QS,VENDOR
"Department for Business, Energy and Industrial Strategy","Department for Business, Energy and Industrial Strategy",19/01/2021,Learning And Dev - Cs Skills,Corporate Services - Human Resources,Capita Business Services Ltd T/A Knowledgepool,376392,695.18,Mf Non Devolved Admin-learning And Dev - Cs Skills,DL1 9HN,VENDOR
"Department for Business, Energy and Industrial Strategy","Department for Business, Energy and Industrial Strategy",19/01/2021,Learning And Dev - Cs Skills,Corporate Services - Human Resources,Capita Business Services Ltd T/A Knowledgepool,376393,695.18,Mf Non Devolved Admin-learning And Dev - Cs Skills,DL1 9HN,VENDOR
"Department for Business, Energy and Industrial Strategy","Department for Business, Energy and Industrial Strategy",19/01/2021,Learning And Dev - Cs Skills,Corporate Services - Human Resources,Capita Business Services Ltd T/A Knowledgepool,376394,695.18,Mf Non Devolved Admin-learning And Dev - Cs Skills,DL1 9HN,VENDOR
"Department for Business, Energy and Industrial Strategy","Department for Business, Energy and Industrial Strategy",19/01/2021,Learning And Dev - Cs Skills,Corporate Services - Human Resources,Capita Business Services Ltd T/A Knowledgepool,376395,695.18,Mf Non Devolved Admin-learning And Dev - Cs Skills,DL1 9HN,VENDOR
"Department for Business, Energy and Industrial Strategy","Department for Business, Energy and Industrial Strategy",19/01/2021,Learning And Dev - Cs Skills,Corporate Services - Human Resources,Capita Business Services Ltd T/A Knowledgepool,376396,695.18,Mf Non Devolved Admin-learning And Dev - Cs Skills,DL1 9HN,VENDOR
"Department for Business, Energy and Industrial Strategy","Department for Business, Energy and Industrial Strategy",19/01/2021,Learning And Dev - Cs Skills,Corporate Services - Human Resources,Capita Business Services Ltd T/A Knowledgepool,376397,695.18,Mf Non Devolved Admin-learning And Dev - Cs Skills,DL1 9HN,VENDOR
"Department for Business, Energy and Industrial Strategy","Department for Business, Energy and Industrial Strategy",19/01/2021,Learning And Dev - Cs Skills,Corporate Services - Human Resources,Capita Business Services Ltd T/A Knowledgepool,376398,695.18,Mf Non Devolved Admin-learning And Dev - Cs Skills,DL1 9HN,VENDOR
"Department for Business, Energy and Industrial Strategy","Department for Business, Energy and Industrial Strategy",19/01/2021,Learning And Dev - Cs Skills,Corporate Services - Human Resources,Capita Business Services Ltd T/A Knowledgepool,376399,695.18,Mf Non Devolved Admin-learning And Dev - Cs Skills,DL1 9HN,VENDOR
"Department for Business, Energy and Industrial Strategy","Department for Business, Energy and Industrial Strategy",19/01/2021,Learning And Dev - Cs Skills,Corporate Services - Human Resources,Capita Business Services Ltd T/A Knowledgepool,376400,695.18,Mf Non Devolved Admin-learning And Dev - Cs Skills,DL1 9HN,VENDOR
"Department for Business, Energy and Industrial Strategy","Department for Business, Energy and Industrial Strategy",26/01/2021,Learning And Dev - Cs Skills,Corporate Services - Human Resources,Capita Business Services Ltd T/A Knowledgepool,376401,695.18,Mf Non Devolved Admin-learning And Dev - Cs Skills,DL1 9HN,VENDOR
"Department for Business, Energy and Industrial Strategy","Department for Business, Energy and Industrial Strategy",19/01/2021,Learning And Dev - Cs Skills,Corporate Services - Human Resources,Capita Business Services Ltd T/A Knowledgepool,376403,695.18,Mf Non Devolved Admin-learning And Dev - Cs Skills,DL1 9HN,VENDOR
"Department for Business, Energy and Industrial Strategy","Department for Business, Energy and Industrial Strategy",19/01/2021,Learning And Dev - Cs Skills,Corporate Services - Human Resources,Kpmg Llp,376428,1634,Mf Non Devolved Admin-learning And Dev - Cs Skills,E14 5GL,VENDOR
"Department for Business, Energy and Industrial Strategy","Department for Business, Energy and Industrial Strategy",20/01/2021,Learning And Dev - Cs Skills,Corporate Services - Human Resources,The Whitehall And Industry Group,376580,5060,Mf Non Devolved Admin-learning And Dev - Cs Skills,SW1H 9EX,VENDOR
"Department for Business, Energy and Industrial Strategy","Department for Business, Energy and Industrial Strategy",22/01/2021,Learning And Dev - Cs Skills,Corporate Services - Human Resources,Kpmg Llp,376661,1558,Mf Non Devolved Admin-learning And Dev - Cs Skills,E14 5GL,VENDOR
"Department for Business, Energy and Industrial Strategy","Department for Business, Energy and Industrial Strategy",22/01/2021,Learning And Dev - Cs Skills,Corporate Services - Human Resources,Kpmg Llp,376662,317,Mf Non Devolved Admin-learning And Dev - Cs Skills,E14 5GL,VENDOR
"Department for Business, Energy and Industrial Strategy","Department for Business, Energy and Industrial Strategy",22/01/2021,Learning And Dev - Cs Skills,Corporate Services - Human Resources,Kpmg Llp,376663,317,Mf Non Devolved Admin-learning And Dev - Cs Skills,E14 5GL,VENDOR
"Department for Business, Energy and Industrial Strategy","Department for Business, Energy and Industrial Strategy",25/01/2021,Learning And Dev - Cs Skills,Corporate Services - Human Resources,Kpmg Llp,376665,1558,Mf Non Devolved Admin-learning And Dev - Cs Skills,E14 5GL,VENDOR
